Workbook

Sheet Data (hidden)
A1: Tick | B1: Semester | C1: Year | D1: Skills
A2: √ | B2: 1 | C2: 1 | D2: Knowledge and understanding | E2: Cognitive skills
B3: 2 | C3: 2 | D3: Cognitive skills | E3: Interpersonal skills
B4: 3 | C4: 3 | D4: Practical skills | E4: Communication skills
C5: 4 | D5: Interpersonal skills | E5: Digital skills
C6: 5 | D6: Communication skills | E6: Numeracy skills
C7: 6 | D7: Digital skills | E7: Leadership, autonomy and responsibility
D8: Numeracy skills | E8: Personal skills
D9: Leadership, autonomy and responsibility | E9: Entrepreneurial skills
D10: Personal skills | E10: Ethics and professionalism.
D11: Entrepreneurial skills
D12: Ethics and professionalism.
C19: 1 | D19: Knowledge and understanding
C20: 2 | D20: Cognitive skills
C21: 3 | D21: Practical skills
C22: 4 | D22: Interpersonal skills
C23: 5 | D23: Communication skills
C24: 6 | D24: Digital skills
C25: 7 | D25: Numeracy skills
C26: 8 | D26: Leadership, autonomy and responsibility
C27: 9 | D27: Personal skills
C28: 10 | D28: Entrepreneurial skills
C29: 11 | D29: Ethics and professionalism.

Sheet GUIDE
F3: Summary of Course Information Template
F4: (Table4 v2.0 June 2020)
C8: Please follow the instructions below in sequential order to provide the information on the courses in the programme. Following are the sequential instructions to fill in course information of the programme:-
C11: 1- | D11: To create a new course information, click 'FORM' worksheet.
C13: 2- | D13: Fill in the required information for the course. Course code is a mandatory field and it is unique.
D14: Data for cells in dark green color will be generated automatically.
C16: 3- | D16: Once completed, click 'Copy Sheet' button that available on the top right corner of the form.
D17: (A new worksheet will be replicated with a default name which is the course code)
C19: 4- | D19: To provide information for the following course, return to the 'FORM' worksheet.
D20: You can create a new couse by filling all new information by repeating steps 1 to 3 OR just edit the relevant fields and repeat step 3.
D21: Click ‘Clear Form’ to fill in new information.
C23: 5- | D23: Once all courses have been created, click 'Update Index' button on the top right corner of the FORM worksheet.
C25: 6- | D25: Go to 'INDEX' worksheet to see the summary index for all the courses of the programme.
D26: (All courses/ worksheet names will be populated together with % SLT for ODL courses)
C28: Note: This Table 4 and its SLT calculation are designed for home grown programme only.

Sheet FORM
B2: Table 4: Summary of Course Information
AI3: √
B5: 1 | C5: Course Name: | AI5: Semester
C6: Course Code: | AI6: 1
C7: Course Classification: | AI7: 2
B8: 2 | C8: Synopsis: | AI8: 3
B9: =B8+1 -> 3 | C9: Name(s) of Academic Staff: | F9: 1
F10: 2 | AI10: Year Offered
F11: 3 | AI11: 1
B12: =B9+1 -> 4 | C12: Semester and Year offered: | F12: Year Offered | J12: Semester | M12: Remarks: | AI12: 2
B13: =B12+1 -> 5 | C13: Credit Value: | F13: =IF(X107 ="√",INT(X99/80),INT(X99/40)) -> 0 | AI13: 3
B14: 6 | C14: Pre-requisite/ co-requisite (if any): | AI14: 4
AI15: 5
B16: 7 | C16: Course Learning Outcomes (CLO) | F16: CLO1 | AI16: 6
F17: CLO2 | AI17: 7
F18: CLO3 | AI18: 8
F19: CLO4
AI20: Compulsory
AI21: Major (core)
AI22: Minor
AI23: Elective (core)
AI24: Elective (open/free)
B25: 8 | C25: Mapping of the Course Learning Outcomes to the Programme Learning Outcomes, Teaching Methods and Assessment Methods
D27: Course Learning Outcomes | F27: Programme Learning Outcomes (PLO) | R27: Teaching Methods | W27: Assessment Methods
F28: PLO 1 | G28: PLO 2 | H28: PLO 3 | I28: PLO 4 | J28: PLO 5 | K28: PLO 6 | L28: PLO 7 | M28: PLO 8 | N28: PLO 9 | O28: PLO 10 | P28: PLO 11
D29: =IF(ISBLANK(F16),"",F16) -> CLO1
D30: CLO2
D31: CLO3
D32: CLO4
AI36: Cognitive skills
D37: Mapping with MQF Cluster of Learning Outcomes | AI37: Interpersonal skills
AI38: Communication Skills
AI39: Digital Skills
AI40: Numeracy Skills
D41: Indicate the primary causal link between the CLO and PLO by ticking '√' in the appropriate box. | AI41: Leadership, Autonomy and Responsibility
D42: C1 = Knowledge & Understanding, C2 = Cognitive Skills, C3A = Practical Skills, C3B = Interpersonal Skills, C3C = Communication Skills, C3D = Digital Skills, | AI42: Personal Skills
D43: C3E = Numeracy Skills, C3F = Leadership, Autonomy & Responsibility, C4A = Personal Skills, C4B = Entrepreneurial Skills, C5 = Ethics & Professionalism | AI43: Entrepreneurial Skills
AI44: Ethics and Professionalism
B45: 9 | C45: Transferable Skills (if applicable)
C46: (Skills learned in the course of study which can be useful and utilized in other settings) | I46: 1 | AI46: C1
I47: 2 | AI47: C2
I48: 3 | AI48: C3A
I49: Open-ended response (if any) | AI49: C3B
I50: 4 | AI50: C3C
AI51: C3D
AB52: ` | AI52: C3E
B53: 10 | C53: Distribution of Student Learning Time (SLT) | AI53: C3F
C54: Note: This SLT calculation is designed for home grown programme only. | AI54: C4A
AI55: C4B
D56: Course Content Outline and Subtopics | K56: CLO* | M56: Learning and Teaching Activities** | X56: Total SLT | AI56: C5
M57: Face-to-Face (F2F) | U57: NF2F Independent Learning (Asynchronous)
M58: Physical | Q58: Online/ Technology-mediated (Synchronous)
M59: L | N59: T | O59: P | P59: O | Q59: L | R59: T | S59: P | T59: O
D60: 1
D61: 2
D62: 3
D63: 4
D64: 5
D65: 6
D66: 7
D67: 8
D68: 9
D69: 10
D70: =D69+1 -> 11
D71: 12
D72: 13
D73: 14
D74: 15
D75: 16
D76: 17
D77: 18
D78: 19
D79: 20
D80: SUB-TOTAL SLT: | X80: =SUM(M60:P79)+SUM(Q60:T79)+SUM(U60:W79) -> 0
D81: Continous Assessement | K81: % | M81: Face-to-Face (F2F) | U81: NF2F Independent Learning for Assessment (Asynchronous)
M82: Physical | Q82: Online/ Technology-mediated (Synchronous)
D83: 1
D84: 2
D85: 3
D86: 4
D87: 5
D88: SUB-TOTAL SLT: | X88: =SUM(M83:W87) -> 0
D89: Final Assessement | K89: % | M89: Face-to-Face (F2F) | U89: NF2F Independent Learning for Assessment (Asynchronous)
M90: Physical | Q90: Online/ Technology-mediated (Synchronous)
D91: 1
D92: 2
D93: 3
D94: 4
D95: 5
D96: SUB-TOTAL SLT: | X96: =SUM(M91:W95) -> 0
D98: SLT for Assessment: | X98: =X88+X96 -> 0
D99: GRAND TOTAL SLT: | X99: =X98+X80 -> 0
D100: A | E100: % SLT for F2F Physical Component: [Total F2F Physical /(Total F2F Physical + Total F2F Online + Total Independent Learning) x 100)] | X100: =IFERROR(((SUM(M60:P79)+SUM(M83:P87)+SUM(M91:P95))/X99)* 100,"") -> 
D102: B | E102: % SLT for Online & Independent Learning Component: [(Total F2F Online + Total Independent Learning) /( Total F2F Physical + Total F2F Online + Total Independent Learning) x 100] | X102: =IFERROR((SUM(Q60:W79)+SUM(Q83:W87) + SUM(Q91:W95))/X99 * 100,"") -> 
D103: C | E103: % SLT for All Practical Component: [% F2F Physical Practical + % F2F Online Practical] | X103: =IFERROR(X104+X105,"") -> 0
D104: C1 | E104: % SLT for F2F Physical Practical Component [Total F2F Physical Practical /( Total F2F Physical + Total F2F Online + Total Independent Learning) x 100)] | X104: =IFERROR(SUM(O60:O79)/X99*100,"") -> 
D105: C2 | E105: % SLT for F2F Online Practical Component [Total F2F Online Practical / (Total F2F Physical + Total F2F Online + Total Independent Learning) x 100] | X105: =IFERROR(SUM(S60:S79)/X99*100,"") -> 
Z106: =IFERROR(X102+X104,"") -> 0
D107: Please tick (√) if this course is Industrial Training/ Clinical Placement/ Practicum using 50% of Effective Learning Time (ELT)
D108: Note:
D109: * Indicate the CLO based on the CLO's numbering in Item 8
D110: ** For ODL programme: Courses with mandatory practical requiremnets imposed by the programme standards or any related standards can be exempted from complying to the minimum 80% ODL delivery rule in the SLT.
B112: 11 | C112: Identify special requirement or resources to deliver the course (e.g., software, nursery, computer lab, simulation room etc)
B114: 12 | C114: References (include required and further readings, and should be the most current)
B116: 13 | C116: Other additional information (if applicable)
C119: Note: Number of PLO indicated is purely for illustration purposes only and the number is subjected to the curriculum design.

Sheet INDEX
Q2: √
Q3: X
B4: GUIDE | C4: % | F4: Comments by Panel of Assessors | G4: Comments by Panel of Assessors during visit (if applicable)
B5: FORM | C5: Major (core) | D5: 87.5 | E5: =IF(D5="","",IF(D5>=80,"√","x")) -> √
B6: INDEX
B7: ENG6143 | C7: Compulsory | D7: 57.5 | E7: x
B8: BUS6113 | C8: Major (core) | D8: 26.66666667 | E8: x
B9: BUS6123 | C9: Major (core) | D9: 58.33333333 | E9: x
B10: MGT6133 | C10: Major (core) | D10: 55 | E10: x
B11: MHC6143 | C11: Elective (open/free) | D11: 65 | E11: x
B12: MPU3332 | C12: Compulsory | D12: 46.25 | E12: x
B13: MKT 6113 | C13: Major (core) | D13: 69.16666667 | E13: x
B14: MGT6183 | C14: Major (core) | D14: 49.16666667 | E14: x
B15: ECO6113 | C15: Major (core) | D15: 54.16666667 | E15: x
B16: BUS6133 | C16: Major (core) | D16: 54.16666667 | E16: x
B17: MTS6113 | C17: Major (core) | D17: 32.5 | E17: x
B18: ACC6123 | C18: Major (core) | D18: 34.16666667 | E18: x
B19: ENT6113 | C19: Major (core) | D19: 69.16666667 | E19: x
B20: DAL6143 | C20: Compulsory | D20: 69.16666667 | E20: x
B21: MCV6143 | C21: Compulsory | D21: 60 | E21: x
B22: FIN6213 | C22: Major (core) | D22: 57.5 | E22: x
B23: HRM6243 | C23: Major (core) | D23: 57.5 | E23: x
B24: MGT6223 | C24: Major (core) | D24: 63.33333333 | E24: x
B25: MKT6223 | C25: Major (core) | D25: 58.33333333 | E25: x
B26: CIT6223 | C26: Major (core) | D26: 67.5 | E26: x
B27: MGT6233 | C27: Elective (open/free) | D27: 57.5 | E27: x
B28: ISF6213 | C28: Elective (open/free) | D28: 55 | E28: x
B29: LPG6223 | C29: Major (core) | D29: 63.33333333 | E29: x
B30: LPG6233 | C30: Major (core) | D30: 41.66666667 | E30: x
B31: MPU3143 | C31: Compulsory | D31: 71.66666667 | E31: x
B32: MPU3183 | C32: Compulsory | D32: 75.83333333 | E32: x
B33: MGT6243 | C33: Major (core) | D33: 52.5 | E33: x
B34: FIN6223 | C34: Major (core) | D34: 55 | E34: x
B35: HRM6223 | C35: Major (core) | D35: 59.16666667 | E35: x
B36: MKT6243 | C36: Major (core) | D36: 58.33333333 | E36: x
B37: MGT6253 | C37: Major (core) | D37: 43.33333333 | E37: x
B38: MKT6353 | C38: Major (core) | D38: 58.33333333 | E38: x
B39: BUS6343 | C39: Major (core) | D39: 57.5 | E39: x
B40: FIN6344 | C40: Major (core) | D40: 80 | E40: √
B41: CIT6333 | C41: Major (core) | D41: 69.16666667 | E41: x
B42: FIN6353 | C42: Elective (open/free) | D42: 65 | E42: x | M42: =IF(ISBLANK(D5),"",IF(D5>=80,"√","X")) -> √
B43: MGT6363 | C43: Major (core) | D43: 50 | E43: x
B44: RSC6333 | C44: Major (core) | D44: 57.5 | E44: x
B45: MGT6373 | C45: Elective (open/free) | D45: 42.5 | E45: x
B46: INT6328 | C46: Major (core) | D46: 100 | E46: √
B47: BBA3114 | C47: Major (core) | D47: 87.5 | E47: √
E66: =COUNTIF(E5:E65,"√") -> 4 | F66: Number of ODL Courses
E67: =COUNTA(B5:B65) -> 43 | F67: Total Courses
E68: =(E66/E67)*100 -> 9.302325581 | F68: =IFERROR(IF(E68>60,"ODL PROGRAMME", "NOT MEETING MINIMUM REQUIREMENT OF ODL PROGRAMME"),"") -> NOT MEETING MINIMUM REQUIREMENT OF ODL PROGRAMME | G68: % ODL Courses/ programme (Min 61%/ programme)
Y131: =SUM(T92:T106) -> 0

Sheet ENG6143
B2: Back To FORM @ TEMPLATE
AI3: √
B5: 1 | C5: Course Name: | F5: English for Academic Writing | AI5: Semester
C6: Course Code: | F6: ENG6143 | AI6: 1
C7: Course Classification: | F7: Compulsory | AI7: 2
B8: 2 | C8: Synopsis: | F8: This course is an introduction to the academic writing standards of English composition, revision, editing, research, and documentation. It builds the learners' vocabulary and grammar and progressively enables them to form sentences, paragraphs and longer pieces of writing that involve higher order thinking to produce academic essays, developing thesis statements and constructing arguments. The focus is on writing that is accurate and clear. | AI8: 3
B9: =B8+1 -> 3 | C9: Name(s) of Academic Staff: | F9: 1 | G9: Mr. Rasaya A/L Marimuthu
F10: 2 | AI10: Year Offered
F11: 3 | AI11: 1
B12: =B9+1 -> 4 | C12: Semester and Year offered: | F12: Year Offered | I12: 1 | J12: Semester | L12: 1 | M12: Remarks: | AI12: 2
B13: =B12+1 -> 5 | C13: Credit Value: | F13: =IF(X107 ="√",INT(X99/80),INT(X99/40)) -> 3 | AI13: 3
B14: 6 | C14: Pre-requisite/ co-requisite (if any): | F14: Nil | AI14: 4
AI15: 5
B16: 7 | C16: Course Learning Outcomes (CLO) | F16: CLO1 | H16: Demonstrate ability to apply knowledge of academic language features, text structure and methods of text cohesion to write academic essays and construct arguments. (PLO2, C2) | AI16: 6
F17: CLO2 | H17: Apply writing process strategies through outlining, composing, revising and editing. (PLO4, C3) | AI17: 7
F18: CLO3 | H18: Develop skills in using language accurately, effectively and appropriately for a range of academic contexts. (PLO5, C3) | AI18: 8
AI20: Compulsory
AI21: Major (core)
AI22: Minor
AI23: Elective (core)
AI24: Elective (open/free)
B25: 8 | C25: Mapping of the Course Learning Outcomes to the Programme Learning Outcomes, Teaching Methods and Assessment Methods
D27: Course Learning Outcomes | F27: Programme Learning Outcomes (PLO) | R27: Teaching Methods | W27: Assessment Methods
F28: PLO 1 | G28: PLO 2 | H28: PLO 3 | I28: PLO 4 | J28: PLO 5 | K28: PLO 6 | L28: PLO 7 | M28: PLO 8 | N28: PLO 9 | O28: PLO 10 | P28: PLO 11
D29: =IF(ISBLANK(F16),"",F16) -> CLO1 | G29: √ | R29: =[2]FORM!P22 -> #ERROR! | W29: Outline and Presentation
D30: CLO2 | I30: √ | R30: =[2]FORM!P23 -> #ERROR! | W30: Written Test
D31: CLO3 | J31: √ | R31: =[2]FORM!P24 -> #ERROR! | W31: Written Assignment
AI36: Cognitive skills
D37: Mapping with MQF Cluster of Learning Outcomes | G37: C2 | I37: C3A | J37: C3B | AI37: Interpersonal skills
AI38: Communication Skills
AI39: Digital Skills
AI40: Numeracy Skills
D41: Indicate the primary causal link between the CLO and PLO by ticking '√' in the appropriate box. | AI41: Leadership, Autonomy and Responsibility
D42: C1 = Knowledge & Understanding, C2 = Cognitive Skills, C3A = Practical Skills, C3B = Interpersonal Skills, C3C = Communication Skills, C3D = Digital Skills, | AI42: Personal Skills
D43: C3E = Numeracy Skills, C3F = Leadership, Autonomy & Responsibility, C4A = Personal Skills, C4B = Entrepreneurial Skills, C5 = Ethics & Professionalism | AI43: Entrepreneurial Skills
AI44: Ethics and Professionalism
B45: 9 | C45: Transferable Skills (if applicable)
C46: (Skills learned in the course of study which can be useful and utilized in other settings) | I46: 1 | J46: Personal Skills | AI46: C1
I47: 2 | J47: Ethics and Professionalism | AI47: C2
I48: 3 | J48: Leadership, Autonomy and Responsibility | AI48: C3A
I49: Open-ended response (if any) | AI49: C3B
I50: 4 | AI50: C3C
AI51: C3D
AB52: ` | AI52: C3E
B53: 10 | C53: Distribution of Student Learning Time (SLT) | AI53: C3F
C54: Note: This SLT calculation is designed for home grown programme only. | AI54: C4A
AI55: C4B
D56: Course Content Outline and Subtopics | K56: CLO* | M56: Learning and Teaching Activities** | X56: Total SLT | AI56: C5
M57: Face-to-Face (F2F) | U57: NF2F Independent Learning (Asynchronous)
M58: Physical | Q58: Online/ Technology-mediated (Synchronous)
M59: L | N59: T | O59: P | P59: O | Q59: L | R59: T | S59: P | T59: O
D60: 1 | E60: 1.1 Introduction to Acedmic Writing 1.2 Outlines Models of Argument, Characteristics of Academic Writing | K60: 1,3 | M60: 2 | N60: 1 | R60: 3 | U60: 2
D61: 2 | E61: 2.1 Academic writing process (Analyse the task, Plan the content, Research and Writing) 2.2 Process paragrapg structure (topic sentence, supporting examples, transition sentence) | K61: 3 | M61: 3 | N61: 2 | R61: 2 | U61: 2
D62: 3 | E62: 3.1 Basic rhetorical modes (Arguments, Description, Exposion) | K62: 2,3 | M62: 2 | N62: 1 | R62: 2 | U62: 2
D63: 4 | E63: 4.1 Stylistics (Vocabulary, Conciseness) 4.2 Recognise and correct basic grammatical errors, specifically errors of subject/verb. 4.3 Agreement, verb tense, pronoun agreement, usafe of prepositions and articles. | K63: 1,3 | M63: 4 | N63: 2 | R63: 3 | U63: 2
D64: 5 | E64: 5.1 Stylistics (Vocubulary, conciseness) Grammar & Mechanics. 5.2 Write concise sentences | K64: 1,3 | M64: 2 | N64: 1 | R64: 3 | U64: 2
D65: 6 | E65: 6.1 Group discussion - Outline and Pre-writing | K65: 3 | M65: 2 | N65: 1 | R65: 3 | U65: 2
D66: 7 | E66: 7.1 Developing your writing 7.2 Read and analyse several articles to form your own opinion on a torpic. | K66: 1,3 | M66: 2 | N66: 1 | R66: 3 | U66: 2
D67: 8 | E67: 8.1 Outline submission and seminar presentation and discussion. | K67: 1,3 | M67: 2 | N67: 1 | R67: 3 | U67: 2
D68: 9 | E68: 9.1 Effective use of citation, paraphase and summary. 9.2 Evaluate sources for relevance and realiability | K68: 1,3 | M68: 2 | N68: 1 | R68: 3 | U68: 2
D69: 10 | E69: 10.1 Introduce, position and integrate source material into the body of an essay. 10.2 Make connections between several articles, Presenting coherent arguments. | K69: 1,2,3 | M69: 3 | N69: 2 | R69: 4 | U69: 2
D70: =D69+1 -> 11 | E70: 11.1 Written draft 11.2 Identify plagiarism and explain how to prevent it. | K70: 1,2,3 | M70: 2 | N70: 1 | R70: 3 | V70: 2
D71: 12 | E71: 12.0 Submission of assignment and Presetnation | K71: 1,2,3 | M71: 2 | N71: 1 | R71: 2 | V71: 2
D72: 13
D73: 14
D74: 15
D75: 16
D76: 17
D77: 18
D78: 19
D79: 20
D80: SUB-TOTAL SLT: | X80: =SUM(M60:P79)+SUM(Q60:T79)+SUM(U60:W79) -> 101
D81: Continous Assessement | K81: % | M81: Face-to-Face (F2F) | U81: NF2F Independent Learning for Assessment (Asynchronous)
M82: Physical | Q82: Online/ Technology-mediated (Synchronous)
D83: 1 | E83: Outline of Written Assignment | K83: 0.1 | M83: 1 | U83: 2
D84: 2 | E84: Seminar Presentation | K84: 0.2 | M84: 1 | U84: 2
D85: 3 | E85: Written Test | K85: 0.2 | M85: 3 | U85: 2
D86: 4
D87: 5
D88: SUB-TOTAL SLT: | X88: =SUM(M83:W87) -> 11
D89: Final Assessement | K89: % | M89: Face-to-Face (F2F) | U89: NF2F Independent Learning for Assessment (Asynchronous)
M90: Physical | Q90: Online/ Technology-mediated (Synchronous)
D91: 1 | E91: Academic Written Assignment | K91: 0.5 | M91: 3 | U91: 5
D92: 2
D93: 3
D94: 4
D95: 5
D96: SUB-TOTAL SLT: | X96: =SUM(M91:W95) -> 8
D98: SLT for Assessment: | X98: =X88+X96 -> 19
D99: GRAND TOTAL SLT: | X99: =X98+X80 -> 120
D100: A | E100: % SLT for F2F Physical Component: [Total F2F Physical /(Total F2F Physical + Total F2F Online + Total Independent Learning) x 100)] | X100: =IFERROR(((SUM(M60:P79)+SUM(M83:P87)+SUM(M91:P95))/X99)* 100,"") -> 42.5
D102: B | E102: % SLT for Online & Independent Learning Component: [(Total F2F Online + Total Independent Learning) /( Total F2F Physical + Total F2F Online + Total Independent Learning) x 100] | X102: =IFERROR((SUM(Q60:W79)+SUM(Q83:W87) + SUM(Q91:W95))/X99 * 100,"") -> 57.5
D103: C | E103: % SLT for All Practical Component: [% F2F Physical Practical + % F2F Online Practical] | X103: =IFERROR(X104+X105,"") -> 0
D104: C1 | E104: % SLT for F2F Physical Practical Component [Total F2F Physical Practical /( Total F2F Physical + Total F2F Online + Total Independent Learning) x 100)] | X104: =IFERROR(SUM(O60:O79)/X99*100,"") -> 0
D105: C2 | E105: % SLT for F2F Online Practical Component [Total F2F Online Practical / (Total F2F Physical + Total F2F Online + Total Independent Learning) x 100] | X105: =IFERROR(SUM(S60:S79)/X99*100,"") -> 0
Z106: =IFERROR(X102+X104,"") -> 57.5
D107: Please tick (√) if this course is Industrial Training/ Clinical Placement/ Practicum using 50% of Effective Learning Time (ELT)
D108: Note:
D109: * Indicate the CLO based on the CLO's numbering in Item 8
D110: ** For ODL programme: Courses with mandatory practical requiremnets imposed by the programme standards or any related standards can be exempted from complying to the minimum 80% ODL delivery rule in the SLT.
B112: 11 | C112: Identify special requirement or resources to deliver the course (e.g., software, nursery, computer lab, simulation room etc) | K112: 1. Morley, J. (2023). Academic writing: A concise introduction. Routledge.
B114: 12 | C114: References (include required and further readings, and should be the most current) | K114: 1. Godfrey, J. (2023). Writing for university (3rd ed.). Red Globe Press. 2. Cargill, M., & O’Connor, P. (2022). Writing scientific research articles: Strategy and steps (2nd ed.). Wiley-Blackwell.
B116: 13 | C116: Other additional information (if applicable) | K116: None
C119: Note: Number of PLO indicated is purely for illustration purposes only and the number is subjected to the curriculum design.

Sheet BUS6113
B2: Back To FORM @ TEMPLATE
AI3: √
B5: 1 | C5: Course Name: | F5: Introduction to Business | AI5: Semester
C6: Course Code: | F6: BUS6113 | AI6: 1
C7: Course Classification: | F7: Major (core) | AI7: 2
B8: 2 | C8: Synopsis: | F8: This subject introduces the fundamental principles and functions of business, covering key areas such as management, marketing, finance, human resource management and operations. It examines how organisations operate within dynamic internal and external environments, including economic, technological and global factors, while addressing contemporary issues such as digital transformation, entrepreneurship and ethics. | AI8: 3
B9: =B8+1 -> 3 | C9: Name(s) of Academic Staff: | F9: 1 | G9: Ms. Praveena Uthayakumar
F10: 2 | AI10: Year Offered
F11: 3 | AI11: 1
B12: =B9+1 -> 4 | C12: Semester and Year offered: | F12: Year Offered | I12: 1 | J12: Semester | L12: 1 | M12: Remarks: | AI12: 2
B13: =B12+1 -> 5 | C13: Credit Value: | F13: =IF(X107 ="√",INT(X99/80),INT(X99/40)) -> 3 | AI13: 3
B14: 6 | C14: Pre-requisite/ co-requisite (if any): | F14: Nil | AI14: 4
AI15: 5
B16: 7 | C16: Course Learning Outcomes (CLO) | F16: CLO1 | H16: Describe the scope of business enterprise in the nation and world today (PLO1, C1) | AI16: 6
F17: CLO2 | H17: Identify major business functions of accounting, management, marketing, and economics (PLO2, C3). | AI17: 7
F18: CLO3 | H18: Define and apply business terminologies (PLO8, C3). | AI18: 8
AI20: Compulsory
AI21: Major (core)
AI22: Minor
AI23: Elective (core)
AI24: Elective (open/free)
B25: 8 | C25: Mapping of the Course Learning Outcomes to the Programme Learning Outcomes, Teaching Methods and Assessment Methods
D27: Course Learning Outcomes | F27: Programme Learning Outcomes (PLO) | R27: Teaching Methods | W27: Assessment Methods
F28: PLO 1 | G28: PLO 2 | H28: PLO 3 | I28: PLO 4 | J28: PLO 5 | K28: PLO 6 | L28: PLO 7 | M28: PLO 8 | N28: PLO 9 | O28: PLO 10 | P28: PLO 11
D29: =IF(ISBLANK(F16),"",F16) -> CLO1 | F29: √ | R29: Lecture/tutorial/blended | W29: Assignment 1 – Mini Case Analysis
D30: CLO2 | G30: √ | R30: Lecture/tutorial/online/Videos | W30: Assignment 2 / Mid Term Examination
D31: CLO3 | M31: √ | R31: Lecture/tutorial/blended | W31: Examination
AI36: Cognitive skills
D37: Mapping with MQF Cluster of Learning Outcomes | F37: C1 | G37: C3B | M37: C3C | AI37: Interpersonal skills
AI38: Communication Skills
AI39: Digital Skills
AI40: Numeracy Skills
D41: Indicate the primary causal link between the CLO and PLO by ticking '√' in the appropriate box. | AI41: Leadership, Autonomy and Responsibility
D42: C1 = Knowledge & Understanding, C2 = Cognitive Skills, C3A = Practical Skills, C3B = Interpersonal Skills, C3C = Communication Skills, C3D = Digital Skills, | AI42: Personal Skills
D43: C3E = Numeracy Skills, C3F = Leadership, Autonomy & Responsibility, C4A = Personal Skills, C4B = Entrepreneurial Skills, C5 = Ethics & Professionalism | AI43: Entrepreneurial Skills
AI44: Ethics and Professionalism
B45: 9 | C45: Transferable Skills (if applicable)
C46: (Skills learned in the course of study which can be useful and utilized in other settings) | I46: 1 | J46: Communication Skills | AI46: C1
I47: 2 | J47: Interpersonal skills | AI47: C2
I48: 3 | J48: Cognitive skills | AI48: C3A
I49: Open-ended response (if any) | AI49: C3B
I50: 4 | J50: Planning where it allows the right goal setting, strategy development and implementation, and decision Making skill which will maximize the effectiveness of any particular meeting. | AI50: C3C
AI51: C3D
AB52: ` | AI52: C3E
B53: 10 | C53: Distribution of Student Learning Time (SLT) | AI53: C3F
C54: Note: This SLT calculation is designed for home grown programme only. | AI54: C4A
AI55: C4B
D56: Course Content Outline and Subtopics | K56: CLO* | M56: Learning and Teaching Activities** | X56: Total SLT | AI56: C5
M57: Face-to-Face (F2F) | U57: NF2F Independent Learning (Asynchronous)
M58: Physical | Q58: Online/ Technology-mediated (Synchronous)
M59: L | N59: T | O59: P | P59: O | Q59: L | R59: T | S59: P | T59: O
D60: 1 | E60: Topic 1: Understanding the Contemporary Business Environment. 1.1 What is business and its role in society 1.2 Types of business ownership 1.3 Introduction to entrepreneurship | K60: 1 | M60: 6 | N60: 1 | U60: 2
D61: 2 | E61: Topic 1: Understanding the Contemporary Business Environment. 1.4 The global business environment 1.5 The rise of international business 1.6 Conducting business ethically and responsibly 1.7 Social responsibility and ethical codes | K61: 1 | M61: 8 | N61: 2 | U61: 2
D62: 3 | E62: Topic 2: Understanding Business Management and Operations 2.1 Introduction to management functions 2.2 Producing goods and services 2.3 Managing for productivity and quality | K62: 2 | M62: 8 | N62: 2 | U62: 2
D63: 4 | E63: Topic 2: Understanding Business Management and Operations 2.4 Managing people and decision-making 2.5 Managing information systems and communication technology | K63: 2 | M63: 6 | N63: 1 | U63: 2
D64: 5 | E64: Topic 3: Understanding Marketing in Business 3.1 Understanding marketing and its role 3.2 Consumer behaviour and market segmentation 3.3 Developing and pricing products | K64: 3 | M64: 6 | N64: 2 | U64: 2
D65: 6 | E65: Topic 3: Understanding Marketing in Business 3.4 Pricing strategies and tactics 3.5 Distribution strategies (distribution mix, channels of distribution) 3.6 Promoting products (promotion mix) | K65: 3 | M65: 6 | N65: 1 | U65: 2
D66: 7 | E66: Topic 4: Understanding Financial and Accounting Aspects 4.1 Principles of accounting and financial statements 4.2 Introduction to financial management 4.3 Understanding money and banking | K66: 3 | M66: 8 | N66: 2 | U66: 2
D67: 8 | E67: Topic 4: Understanding Financial and Accounting Aspects 4.4 International banking and finance 4.5 Securities and investments (stocks, bonds, markets) 4.6 Risk and financial decision-making | K67: 3 | M67: 6 | N67: 1 | U67: 2
D68: 9 | E68: Topic 5: Emerging Issues in Business (Optional/Extension) 5.1 Innovation and digital transformation 5.2 Sustainability in business Future of global business and trends | K68: 3 | M68: 4 | N68: 2 | U68: 2
D69: 10 | E69: Topic 5: Emerging Issues in Business (Optional/Extension) 5.3 Future of global business and trends | K69: 3 | M69: 4 | N69: 1 | U69: 2
D70: =D69+1 -> 11
D71: 12
D72: 13
D73: 14
D74: 15
D75: 16
D76: 17
D77: 18
D78: 19
D79: 20
D80: SUB-TOTAL SLT: | X80: =SUM(M60:P79)+SUM(Q60:T79)+SUM(U60:W79) -> 97
D81: Continous Assessement | K81: % | M81: Face-to-Face (F2F) | U81: NF2F Independent Learning for Assessment (Asynchronous)
M82: Physical | Q82: Online/ Technology-mediated (Synchronous)
D83: 1 | E83: Assignment 1 – Mini Case Analysis | K83: 0.2 | M83: 4 | U83: 4
D84: 2 | E84: Assignment 2 – Presentation | K84: 0.1 | M84: 2 | U84: 2
D85: 3 | E85: Mid Term Examination | K85: 0.2 | M85: 2 | U85: 2
D86: 4
D87: 5
D88: SUB-TOTAL SLT: | X88: =SUM(M83:W87) -> 16
D89: Final Assessement | K89: % | M89: Face-to-Face (F2F) | U89: NF2F Independent Learning for Assessment (Asynchronous)
M90: Physical | Q90: Online/ Technology-mediated (Synchronous)
D91: 1 | E91: Final Exam | K91: 0.5 | M91: 3 | U91: 4
D92: 2
D93: 3
D94: 4
D95: 5
D96: SUB-TOTAL SLT: | X96: =SUM(M91:W95) -> 7
D98: SLT for Assessment: | X98: =X88+X96 -> 23
D99: GRAND TOTAL SLT: | X99: =X98+X80 -> 120
D100: A | E100: % SLT for F2F Physical Component: [Total F2F Physical /(Total F2F Physical + Total F2F Online + Total Independent Learning) x 100)] | X100: =IFERROR(((SUM(M60:P79)+SUM(M83:P87)+SUM(M91:P95))/X99)* 100,"") -> 73.33333333
D102: B | E102: % SLT for Online & Independent Learning Component: [(Total F2F Online + Total Independent Learning) /( Total F2F Physical + Total F2F Online + Total Independent Learning) x 100] | X102: =IFERROR((SUM(Q60:W79)+SUM(Q83:W87) + SUM(Q91:W95))/X99 * 100,"") -> 26.66666667
D103: C | E103: % SLT for All Practical Component: [% F2F Physical Practical + % F2F Online Practical] | X103: =IFERROR(X104+X105,"") -> 0
D104: C1 | E104: % SLT for F2F Physical Practical Component [Total F2F Physical Practical /( Total F2F Physical + Total F2F Online + Total Independent Learning) x 100)] | X104: =IFERROR(SUM(O60:O79)/X99*100,"") -> 0
D105: C2 | E105: % SLT for F2F Online Practical Component [Total F2F Online Practical / (Total F2F Physical + Total F2F Online + Total Independent Learning) x 100] | X105: =IFERROR(SUM(S60:S79)/X99*100,"") -> 0
Z106: =IFERROR(X102+X104,"") -> 26.66666667
D107: Please tick (√) if this course is Industrial Training/ Clinical Placement/ Practicum using 50% of Effective Learning Time (ELT)
D108: Note:
D109: * Indicate the CLO based on the CLO's numbering in Item 8
D110: ** For ODL programme: Courses with mandatory practical requiremnets imposed by the programme standards or any related standards can be exempted from complying to the minimum 80% ODL delivery rule in the SLT.
B112: 11 | C112: Identify special requirement or resources to deliver the course (e.g., software, nursery, computer lab, simulation room etc) | K112: NA
B114: 12 | C114: References (include required and further readings, and should be the most current) | K114: 1. Neck, H. M., Neck, C. P., & Murray, E. L. (2023). Introduction to Business (1st ed.). SAGE Publications.
B116: 13 | C116: Other additional information (if applicable) | K116: 2. Jones, C. I. (2024). Macroeconomics (6th ed.). W. W. Norton & Company.
C119: Note: Number of PLO indicated is purely for illustration purposes only and the number is subjected to the curriculum design.

Sheet BUS6123
B2: Back To FORM @ TEMPLATE
AI3: √
B5: 1 | C5: Course Name: | F5: Business Communication | AI5: Semester
C6: Course Code: | F6: BUS6123 | AI6: 1
C7: Course Classification: | F7: Major (core) | AI7: 2
B8: 2 | C8: Synopsis: | F8: This subject develops essential business communication skills, including professional writing, presentations, interpersonal communication, and digital communication, with an emphasis on clarity, audience awareness and professionalism. It prepares students to communicate effectively in diverse and organizational contexts through practical applications, fostering confidence, ethical communication and workplace readiness. | AI8: 3
B9: =B8+1 -> 3 | C9: Name(s) of Academic Staff: | F9: 1 | G9: Mr. Rasaya A/L Marimuthu
F10: 2 | AI10: Year Offered
F11: 3 | AI11: 1
B12: =B9+1 -> 4 | C12: Semester and Year offered: | F12: Year Offered | I12: 1 | J12: Semester | L12: 1 | M12: Remarks: | AI12: 2
B13: =B12+1 -> 5 | C13: Credit Value: | F13: =IF(X107 ="√",INT(X99/80),INT(X99/40)) -> 3 | AI13: 3
B14: 6 | C14: Pre-requisite/ co-requisite (if any): | F14: NIL | AI14: 4
AI15: 5
B16: 7 | C16: Course Learning Outcomes (CLO) | F16: CLO1 | H16: Discuss communication tools for organisatIonal success in a business setting (PLO1, C1) | AI16: 6
F17: CLO2 | H17: Practice effective oral and written communication skills in business environments (PLO5, C3) | AI17: 7
F18: CLO3 | H18: Demonstrate social skills while engaging with the stakeholders in business environments (PLO4,C3 ) | AI18: 8
AI20: Compulsory
AI21: Major (core)
AI22: Minor
AI23: Elective (core)
AI24: Elective (open/free)
B25: 8 | C25: Mapping of the Course Learning Outcomes to the Programme Learning Outcomes, Teaching Methods and Assessment Methods
D27: Course Learning Outcomes | F27: Programme Learning Outcomes (PLO) | R27: Teaching Methods | W27: Assessment Methods
F28: PLO 1 | G28: PLO 2 | H28: PLO 3 | I28: PLO 4 | J28: PLO 5 | K28: PLO 6 | L28: PLO 7 | M28: PLO 8 | N28: PLO 9 | O28: PLO 10 | P28: PLO 11
D29: =IF(ISBLANK(F16),"",F16) -> CLO1 | F29: √ | R29: Lecture/Tutorial | W29: Written Report
D30: CLO2 | J30: √ | R30: Case Study/Presentation | W30: Group Assignment
D31: CLO3 | I31: √ | R31: Lecture/Tutorial | W31: Final Examination
AI36: Cognitive skills
D37: Mapping with MQF Cluster of Learning Outcomes | F37: C1 | I37: C3C | J37: C3B | AI37: Interpersonal skills
AI38: Communication Skills
AI39: Digital Skills
AI40: Numeracy Skills
D41: Indicate the primary causal link between the CLO and PLO by ticking '√' in the appropriate box. | AI41: Leadership, Autonomy and Responsibility
D42: C1 = Knowledge & Understanding, C2 = Cognitive Skills, C3A = Practical Skills, C3B = Interpersonal Skills, C3C = Communication Skills, C3D = Digital Skills, | AI42: Personal Skills
D43: C3E = Numeracy Skills, C3F = Leadership, Autonomy & Responsibility, C4A = Personal Skills, C4B = Entrepreneurial Skills, C5 = Ethics & Professionalism | AI43: Entrepreneurial Skills
AI44: Ethics and Professionalism
B45: 9 | C45: Transferable Skills (if applicable)
C46: (Skills learned in the course of study which can be useful and utilized in other settings) | I46: 1 | J46: Cognitive skills | AI46: C1
I47: 2 | J47: Communication Skills | AI47: C2
I48: 3 | J48: Interpersonal skills | AI48: C3A
I49: Open-ended response (if any) | AI49: C3B
I50: 4 | AI50: C3C
AI51: C3D
AB52: ` | AI52: C3E
B53: 10 | C53: Distribution of Student Learning Time (SLT) | AI53: C3F
C54: Note: This SLT calculation is designed for home grown programme only. | AI54: C4A
AI55: C4B
D56: Course Content Outline and Subtopics | K56: CLO* | M56: Learning and Teaching Activities** | X56: Total SLT | AI56: C5
M57: Face-to-Face (F2F) | U57: NF2F Independent Learning (Asynchronous)
M58: Physical | Q58: Online/ Technology-mediated (Synchronous)
M59: L | N59: T | O59: P | P59: O | Q59: L | R59: T | S59: P | T59: O
D60: 1 | E60: Professional Communication | K60: 1 | M60: 3 | U60: 4
D61: 2 | E61: Interpersonal Communication and Business Etiquette | K61: 1 | M61: 3 | U61: 4
D62: 3 | E62: Business Cultures | K62: 1 | M62: 3 | U62: 4
D63: 4 | E63: Three-step Writing Process | K63: 2 | M63: 3 | U63: 4
D64: 5 | E64: Writing Positive Messages | K64: 2 | M64: 3 | U64: 4
D65: 6 | E65: Writing Negative Messages | K65: 2 | M65: 3 | U65: 4
D66: 7 | E66: Writing Persuasive Messages | K66: 2 | M66: 3 | U66: 4
D67: 8 | E67: Reports and Proposal | K67: 2 | M67: 3 | U67: 4
D68: 9 | E68: Presentation Skills | K68: 2 | M68: 3 | U68: 4
D69: 10 | E69: Visual Media | K69: 3 | M69: 3 | U69: 4
D70: =D69+1 -> 11 | E70: Digital Media | K70: 3 | M70: 3 | U70: 4
D71: 12 | E71: Sociall Media | K71: 3 | M71: 3 | U71: 4
D72: 13 | E72: Building Careers and Resume Writing | K72: 3 | M72: 3 | U72: 4
D73: 14 | E73: Interviewing for Employment | K73: 3 | M73: 3 | U73: 4
D74: 15
D75: 16
D76: 17
D77: 18
D78: 19
D79: 20
D80: SUB-TOTAL SLT: | X80: =SUM(M60:P79)+SUM(Q60:T79)+SUM(U60:W79) -> 98
D81: Continous Assessement | K81: % | M81: Face-to-Face (F2F) | U81: NF2F Independent Learning for Assessment (Asynchronous)
M82: Physical | Q82: Online/ Technology-mediated (Synchronous)
D83: 1 | E83: Oral Presentation | K83: 0.2 | M83: 2 | U83: 4
D84: 2 | E84: Written Report | K84: 0.3 | M84: 3 | U84: 4
D85: 3
D86: 4
D87: 5
D88: SUB-TOTAL SLT: | X88: =SUM(M83:W87) -> 13
D89: Final Assessement | K89: % | M89: Face-to-Face (F2F) | U89: NF2F Independent Learning for Assessment (Asynchronous)
M90: Physical | Q90: Online/ Technology-mediated (Synchronous)
D91: 1 | E91: Final Exam | K91: 0.5 | M91: 3 | U91: 6
D92: 2
D93: 3
D94: 4
D95: 5
D96: SUB-TOTAL SLT: | X96: =SUM(M91:W95) -> 9
D98: SLT for Assessment: | X98: =X88+X96 -> 22
D99: GRAND TOTAL SLT: | X99: =X98+X80 -> 120
D100: A | E100: % SLT for F2F Physical Component: [Total F2F Physical /(Total F2F Physical + Total F2F Online + Total Independent Learning) x 100)] | X100: =IFERROR(((SUM(M60:P79)+SUM(M83:P87)+SUM(M91:P95))/X99)* 100,"") -> 41.66666667
D102: B | E102: % SLT for Online & Independent Learning Component: [(Total F2F Online + Total Independent Learning) /( Total F2F Physical + Total F2F Online + Total Independent Learning) x 100] | X102: =IFERROR((SUM(Q60:W79)+SUM(Q83:W87) + SUM(Q91:W95))/X99 * 100,"") -> 58.33333333
D103: C | E103: % SLT for All Practical Component: [% F2F Physical Practical + % F2F Online Practical] | X103: =IFERROR(X104+X105,"") -> 0
D104: C1 | E104: % SLT for F2F Physical Practical Component [Total F2F Physical Practical /( Total F2F Physical + Total F2F Online + Total Independent Learning) x 100)] | X104: =IFERROR(SUM(O60:O79)/X99*100,"") -> 0
D105: C2 | E105: % SLT for F2F Online Practical Component [Total F2F Online Practical / (Total F2F Physical + Total F2F Online + Total Independent Learning) x 100] | X105: =IFERROR(SUM(S60:S79)/X99*100,"") -> 0
Z106: =IFERROR(X102+X104,"") -> 58.33333333
D107: Please tick (√) if this course is Industrial Training/ Clinical Placement/ Practicum using 50% of Effective Learning Time (ELT)
D108: Note:
D109: * Indicate the CLO based on the CLO's numbering in Item 8
D110: ** For ODL programme: Courses with mandatory practical requiremnets imposed by the programme standards or any related standards can be exempted from complying to the minimum 80% ODL delivery rule in the SLT.
B112: 11 | C112: Identify special requirement or resources to deliver the course (e.g., software, nursery, computer lab, simulation room etc) | K112: NA
B114: 12 | C114: References (include required and further readings, and should be the most current) | K114: Bovee, C. L. & Thill, J. V. (2021). Business Communication Essentials. Sixth Edition (International Edition). Pearson.
B116: 13 | C116: Other additional information (if applicable) | K116: Locker, K. O., Mackiewicz, J., Aune, J. E., & Kienzler, D. S. (2023). Business Communication (13th ed.). McGraw Hill.
C119: Note: Number of PLO indicated is purely for illustration purposes only and the number is subjected to the curriculum design.

Sheet MGT6133
B2: Back To FORM @ TEMPLATE
AI3: √
B5: 1 | C5: Course Name: | F5: Principles of Management | AI5: Semester
C6: Course Code: | F6: MGT6133 | AI6: 1
C7: Course Classification: | F7: Major (core) | AI7: 2
B8: 2 | C8: Synopsis: | F8: This course studies the role and duties of the management that is associated with planning, organizing, leading and controlling in an organization. It explores the current and future management issues in order to achieve efficient and effective management. | AI8: 3
B9: =B8+1 -> 3 | C9: Name(s) of Academic Staff: | F9: 1 | G9: Ms. Praveena Uthayakumar
F10: 2 | AI10: Year Offered
F11: 3 | AI11: 1
B12: =B9+1 -> 4 | C12: Semester and Year offered: | F12: Year Offered | I12: 1 | J12: Semester | L12: 1 | M12: Remarks: | AI12: 2
B13: =B12+1 -> 5 | C13: Credit Value: | F13: =IF(X107 ="√",INT(X99/80),INT(X99/40)) -> 3 | AI13: 3
B14: 6 | C14: Pre-requisite/ co-requisite (if any): | F14: NIL | AI14: 4
AI15: 5
B16: 7 | C16: Course Learning Outcomes (CLO) | F16: CLO1 | H16: Extend the management functions to strategise management plan for business organization (PLO1, C1). | AI16: 6
F17: CLO2 | H17: Demonstrate acceptable moral and professionalism in strategising management plan for business organization (PLO4, C5). | AI17: 7
F18: CLO3 | H18: Demonstrate autonomous learning and information management in strategising management plan for business organization (PLO9, C3). | AI18: 8
AI20: Compulsory
AI21: Major (core)
AI22: Minor
AI23: Elective (core)
AI24: Elective (open/free)
B25: 8 | C25: Mapping of the Course Learning Outcomes to the Programme Learning Outcomes, Teaching Methods and Assessment Methods
D27: Course Learning Outcomes | F27: Programme Learning Outcomes (PLO) | R27: Teaching Methods | W27: Assessment Methods
F28: PLO 1 | G28: PLO 2 | H28: PLO 3 | I28: PLO 4 | J28: PLO 5 | K28: PLO 6 | L28: PLO 7 | M28: PLO 8 | N28: PLO 9 | O28: PLO 10 | P28: PLO 11
D29: =IF(ISBLANK(F16),"",F16) -> CLO1 | F29: √ | R29: Interactive Lecture (Teaching Method) Hands on training (learning activities) Blended Learning | W29: Written Report Presentation Final Examination
D30: CLO2 | I30: √ | R30: Interactive Lecture (Teaching Method) Group work and peer asessment Case study Video | W30: Written Report Presentation Final Examination
D31: CLO3 | N31: √ | R31: Assignment Blended Learning | W31: Written Report Presentation
AI36: Cognitive skills
D37: Mapping with MQF Cluster of Learning Outcomes | F37: C1 | I37: C5 | N37: C3F | AI37: Interpersonal skills
AI38: Communication Skills
AI39: Digital Skills
AI40: Numeracy Skills
D41: Indicate the primary causal link between the CLO and PLO by ticking '√' in the appropriate box. | AI41: Leadership, Autonomy and Responsibility
D42: C1 = Knowledge & Understanding, C2 = Cognitive Skills, C3A = Practical Skills, C3B = Interpersonal Skills, C3C = Communication Skills, C3D = Digital Skills, | AI42: Personal Skills
D43: C3E = Numeracy Skills, C3F = Leadership, Autonomy & Responsibility, C4A = Personal Skills, C4B = Entrepreneurial Skills, C5 = Ethics & Professionalism | AI43: Entrepreneurial Skills
AI44: Ethics and Professionalism
B45: 9 | C45: Transferable Skills (if applicable)
C46: (Skills learned in the course of study which can be useful and utilized in other settings) | I46: 1 | J46: Cognitive skills | AI46: C1
I47: 2 | J47: Ethics and Professionalism | AI47: C2
I48: 3 | J48: Leadership, Autonomy and Responsibility | AI48: C3A
I49: Open-ended response (if any) | AI49: C3B
I50: 4 | AI50: C3C
AI51: C3D
AB52: ` | AI52: C3E
B53: 10 | C53: Distribution of Student Learning Time (SLT) | AI53: C3F
C54: Note: This SLT calculation is designed for home grown programme only. | AI54: C4A
AI55: C4B
D56: Course Content Outline and Subtopics | K56: CLO* | M56: Learning and Teaching Activities** | X56: Total SLT | AI56: C5
M57: Face-to-Face (F2F) | U57: NF2F Independent Learning (Asynchronous)
M58: Physical | Q58: Online/ Technology-mediated (Synchronous)
M59: L | N59: T | O59: P | P59: O | Q59: L | R59: T | S59: P | T59: O
D60: 1 | E60: Chapter 1: Introduction to Management 1.1 Definition and importance of management 1.2 Levels of management 1.3 Functions of management 1.4 Management in Malaysian and Asian contexts | K60: 1 | M60: 4 | N60: 2 | R60: 1 | U60: 3
D61: 2 | E61: Chapter 2: Evolution of Management Thought 2.1 Classical approaches: Scientific, 2.2 Administrative, Bureaucratic 2.3 Behavioural and Human Relations approaches 2.4 Quantitative and Systems approaches 2.5 Contemporary approaches: Contingency, TQM, Lean, Agile 2.6 Asian contributions to management theory | K61: 1 | M61: 3 | N61: 2 | R61: 1 | U61: 3
D62: 3 | E62: Chapter 3: Managerial Roles and Skills 3.1 Mintzberg’s managerial roles: interpersonal, informational, decisional 3.2 Essential managerial skills: technical, human, conceptual 3.3 Competency frameworks for Malaysian managers 3.4 Ethics and social responsibility in management | K62: 1 | M62: 3 | N62: 1 | R62: 1 | U62: 3
D63: 4 | E63: Chapter 4: The Management Process 4.1 Planning: types, tools, and techniques 4.2 Organising: structure and delegation 4.3 Leading: motivation and communication 4.4 Controlling: performance measurement and feedback 4.5 Integration of functions in dynamic environments | K63: 2 | M63: 3 | N63: 1 | R63: 1 | U63: 3
D64: 5 | E64: Chapter 5: Strategic Planning and Decision-Making 5.1 Vision, mission, and goal setting 5.2 SWOT and PESTLE analysis 5.3 Strategic management process 5.4 Decision-making models and tools 5.5 Risk and uncertainty in managerial decisions | K64: 2 | M64: 3 | N64: 1 | R64: 1 | U64: 3
D65: 6 | E65: Chapter 6: Organisational Structure and Design 6.1 Organisational structure: functional, divisional, matrix, network 6.2 Organisational design principles 6.3 Centralisation vs. decentralisation 6.4 Formalisation and span of control 6.5 Designing agile and responsive organisations | K65: 3 | M65: 3 | N65: 1 | R65: 1 | U65: 3
D66: 7 | E66: Chapter 7: Leadership and Motivation 7.1 Leadership theories: Trait, Behavioural, Contingency, Transformational 7.2 Leadership styles and effectiveness 7.3 Motivation theories: Maslow, Herzberg, McClelland, Vroom 7.4 Leadership in Malaysian and multicultural contexts | K66: 2 | M66: 4 | N66: 2 | R66: 1 | U66: 3
D67: 8 | E67: Chapter 8: Communication and Team Management 8.1 Communication process and barriers 8.2 Organisational communication channels 8.3 Team formation and development 8.4 Managing diverse and virtual teams 8.5 Conflict resolution and collaboration | K67: 2 | M67: 3 | N67: 2 | R67: 1 | U67: 3
D68: 9 | E68: Chapter 9: Organisational Culture, Power, and Politics 9.1 Organisational culture: types, development, and impact 9.2 Power dynamics and sources of power 9.3 Organisational politics and ethical considerations 9.4 Managing change and resistance | K68: 3 | M68: 3 | N68: 1 | R68: 1 | U68: 3
D69: 10 | E69: Chapter 10: Contemporary Issues in Management 10.1 Innovation and change management 10.2 Sustainability and green management 10.3 Digital transformation and Industry 4.0 10.4 Globalisation and cross-cultural management 10.5 Future trends in management | K69: 2 | M69: 4 | N69: 2 | R69: 1 | U69: 3
D70: =D69+1 -> 11
D71: 12
D72: 13
D73: 14
D74: 15
D75: 16
D76: 17
D77: 18
D78: 19
D79: 20
D80: SUB-TOTAL SLT: | X80: =SUM(M60:P79)+SUM(Q60:T79)+SUM(U60:W79) -> 88
D81: Continous Assessement | K81: % | M81: Face-to-Face (F2F) | U81: NF2F Independent Learning for Assessment (Asynchronous)
M82: Physical | Q82: Online/ Technology-mediated (Synchronous)
D83: 1 | E83: Written Test | K83: 0.1 | M83: 2 | U83: 6
D84: 2 | E84: Presentation | K84: 0.1 | M84: 1 | U84: 3
D85: 3 | E85: Written Report | K85: 0.3 | U85: 8
D86: 4
D87: 5
D88: SUB-TOTAL SLT: | X88: =SUM(M83:W87) -> 20
D89: Final Assessement | K89: % | M89: Face-to-Face (F2F) | U89: NF2F Independent Learning for Assessment (Asynchronous)
M90: Physical | Q90: Online/ Technology-mediated (Synchronous)
D91: 1 | E91: Final Exam | K91: 0.5 | M91: 3 | U91: 9
D92: 2
D93: 3
D94: 4
D95: 5
D96: SUB-TOTAL SLT: | X96: =SUM(M91:W95) -> 12
D98: SLT for Assessment: | X98: =X88+X96 -> 32
D99: GRAND TOTAL SLT: | X99: =X98+X80 -> 120
D100: A | E100: % SLT for F2F Physical Component: [Total F2F Physical /(Total F2F Physical + Total F2F Online + Total Independent Learning) x 100)] | X100: =IFERROR(((SUM(M60:P79)+SUM(M83:P87)+SUM(M91:P95))/X99)* 100,"") -> 45
D102: B | E102: % SLT for Online & Independent Learning Component: [(Total F2F Online + Total Independent Learning) /( Total F2F Physical + Total F2F Online + Total Independent Learning) x 100] | X102: =IFERROR((SUM(Q60:W79)+SUM(Q83:W87) + SUM(Q91:W95))/X99 * 100,"") -> 55
D103: C | E103: % SLT for All Practical Component: [% F2F Physical Practical + % F2F Online Practical] | X103: =IFERROR(X104+X105,"") -> 0
D104: C1 | E104: % SLT for F2F Physical Practical Component [Total F2F Physical Practical /( Total F2F Physical + Total F2F Online + Total Independent Learning) x 100)] | X104: =IFERROR(SUM(O60:O79)/X99*100,"") -> 0
D105: C2 | E105: % SLT for F2F Online Practical Component [Total F2F Online Practical / (Total F2F Physical + Total F2F Online + Total Independent Learning) x 100] | X105: =IFERROR(SUM(S60:S79)/X99*100,"") -> 0
Z106: =IFERROR(X102+X104,"") -> 55
D107: Please tick (√) if this course is Industrial Training/ Clinical Placement/ Practicum using 50% of Effective Learning Time (ELT)
D108: Note:
D109: * Indicate the CLO based on the CLO's numbering in Item 8
D110: ** For ODL programme: Courses with mandatory practical requiremnets imposed by the programme standards or any related standards can be exempted from complying to the minimum 80% ODL delivery rule in the SLT.
B112: 11 | C112: Identify special requirement or resources to deliver the course (e.g., software, nursery, computer lab, simulation room etc) | K112: None
B114: 12 | C114: References (include required and further readings, and should be the most current) | K114: 1. Williams, C. (2023). MGMT: Principles of management (12th ed.). Cengage Learning.
B116: 13 | C116: Other additional information (if applicable) | K116: 2. Satterlee, A. (2022). Principles of management: Leading and collaborating in a competitive world (13th ed.). FlatWorld.
C119: Note: Number of PLO indicated is purely for illustration purposes only and the number is subjected to the curriculum design.

Sheet MHC6143
B2: Back To FORM @ TEMPLATE
AI3: √
B5: 1 | C5: Course Name: | F5: Mental health (DEGREE LEVEL STUDENTS) | AI5: Semester
C6: Course Code: | F6: MHC6143 | AI6: 1
C7: Course Classification: | F7: Elective (open/free) | AI7: 2
B8: 2 | C8: Synopsis: | F8: This module will introduce students to the concept of holistic health within a biopsychosocial approach. Students will learn about the signs and symptoms of common mental health disorders such as anxiety, depression and bipolar mood disorders. In addition, they will be introduced to the treatment of these disorders. Students will also gain further knowledge of the wider issues related to mental health by exploring crisis intervention and the prevention of mental health issues by exploring the PERMA model within the context of Positive Psychology. | AI8: 3
B9: =B8+1 -> 3 | C9: Name(s) of Academic Staff: | F9: 1 | G9: Mr. Muhammad Mu’adz Bin Mohd Saufee
F10: 2 | AI10: Year Offered
F11: 3 | AI11: 1
B12: =B9+1 -> 4 | C12: Semester and Year offered: | F12: Year Offered | I12: 1 | J12: Semester | L12: 1 | M12: Remarks: | AI12: 2
B13: =B12+1 -> 5 | C13: Credit Value: | F13: =IF(X107 ="√",INT(X99/80),INT(X99/40)) -> 3 | AI13: 3
B14: 6 | C14: Pre-requisite/ co-requisite (if any): | F14: NIL | AI14: 4
AI15: 5
B16: 7 | C16: Course Learning Outcomes (CLO) | F16: CLO1 | H16: Define health and wellbeing within a biopsychosocial perspective using the World Health Organisation's concept of holistic health (PLO1, C1) | AI16: 6
F17: CLO2 | H17: Defend Seligmans PERMA model in the context of positive psychology and its usefulness in health and wellbeing (PLO4, C3) | AI17: 7
F18: CLO3 | H18: Discuss different types of co-morbid psychiatric disorders and their impact on an individuals' quality of life (PLO5, C3) | AI18: 8
AI20: Compulsory
AI21: Major (core)
AI22: Minor
AI23: Elective (core)
AI24: Elective (open/free)
B25: 8 | C25: Mapping of the Course Learning Outcomes to the Programme Learning Outcomes, Teaching Methods and Assessment Methods
D27: Course Learning Outcomes | F27: Programme Learning Outcomes (PLO) | R27: Teaching Methods | W27: Assessment Methods
F28: PLO 1 | G28: PLO 2 | H28: PLO 3 | I28: PLO 4 | J28: PLO 5 | K28: PLO 6 | L28: PLO 7 | M28: PLO 8 | N28: PLO 9 | O28: PLO 10 | P28: PLO 11
D29: =IF(ISBLANK(F16),"",F16) -> CLO1 | F29: √ | R29: Lecture/ Seminar/ Discussion | W29: Mid term Exam/Final Exam
D30: CLO2 | I30: √ | R30: Lecture/ Seminar/ Discussion | W30: Mid term Exam/case study
D31: CLO3 | J31: √ | R31: Lecture/ Seminar/ Discussion | W31: Mid term Exam/Final Exam
AI36: Cognitive skills
D37: Mapping with MQF Cluster of Learning Outcomes | F37: C1 | I37: C3B | J37: C3C | AI37: Interpersonal skills
AI38: Communication Skills
AI39: Digital Skills
AI40: Numeracy Skills
D41: Indicate the primary causal link between the CLO and PLO by ticking '√' in the appropriate box. | AI41: Leadership, Autonomy and Responsibility
D42: C1 = Knowledge & Understanding, C2 = Cognitive Skills, C3A = Practical Skills, C3B = Interpersonal Skills, C3C = Communication Skills, C3D = Digital Skills, | AI42: Personal Skills
D43: C3E = Numeracy Skills, C3F = Leadership, Autonomy & Responsibility, C4A = Personal Skills, C4B = Entrepreneurial Skills, C5 = Ethics & Professionalism | AI43: Entrepreneurial Skills
AI44: Ethics and Professionalism
B45: 9 | C45: Transferable Skills (if applicable)
C46: (Skills learned in the course of study which can be useful and utilized in other settings) | I46: 1 | J46: Cognitive skills | AI46: C1
I47: 2 | J47: Communication Skills | AI47: C2
I48: 3 | J48: Interpersonal skills | AI48: C3A
I49: Open-ended response (if any) | AI49: C3B
I50: 4 | J50: Understanding of the wider issues related to mental health | AI50: C3C
AI51: C3D
AB52: ` | AI52: C3E
B53: 10 | C53: Distribution of Student Learning Time (SLT) | AI53: C3F
C54: Note: This SLT calculation is designed for home grown programme only. | AI54: C4A
AI55: C4B
D56: Course Content Outline and Subtopics | K56: CLO* | M56: Learning and Teaching Activities** | X56: Total SLT | AI56: C5
M57: Face-to-Face (F2F) | U57: NF2F Independent Learning (Asynchronous)
M58: Physical | Q58: Online/ Technology-mediated (Synchronous)
M59: L | N59: T | O59: P | P59: O | Q59: L | R59: T | S59: P | T59: O
D60: 1 | E60: 1.1 Definition of health 1.2 Biopsychosocial model | K60: 1 | M60: 3 | N60: 1 | Q60: 3 | R60: 1 | U60: 3
D61: 2 | E61: 1.3 The concept of holistic health | K61: 1 | M61: 3 | N61: 1 | Q61: 3 | R61: 1 | U61: 3
D62: 3 | E62: 2.1 Signs of common mental health disorders ( depression, anxiety and bi polar mood disorder) | K62: 2 | M62: 3 | N62: 1 | Q62: 3 | R62: 1 | U62: 3
D63: 4 | E63: 2.2 Symptoms of common mental health disorders ( depression, anxiety and bi polar mood disorder) | K63: 2 | M63: 3 | N63: 1 | Q63: 3 | R63: 1 | U63: 4
D64: 5 | E64: 3.1 Crisis intervention when it is required | K64: 3 | M64: 3 | N64: 1 | Q64: 3 | R64: 1 | U64: 3
D65: 6 | E65: 3.2 Crisis intervention, how it is related to mental health crisis | K65: 3 | M65: 3 | N65: 1 | Q65: 3 | R65: 1 | U65: 4
D66: 7 | E66: 4.1 Introduction to positive psychology | K66: 3 | M66: 2 | N66: 1 | Q66: 2 | R66: 1 | U66: 3
D67: 8 | E67: 4.2 Exploration of the PERMA model with ain the context of positive psychology and its usefulness in health and wellbeing | K67: 3 | M67: 2 | N67: 1 | Q67: 2 | R67: 1 | U67: 4
D68: 9 | E68: 5.1 Types of co-morbid psychiatric disorders | K68: 3 | M68: 2 | N68: 1 | Q68: 2 | R68: 1 | U68: 4
D69: 10 | E69: 5.2 Their impact on an individuals' quality of life | K69: 3 | M69: 3 | N69: 1 | Q69: 2 | R69: 1 | U69: 4
D70: =D69+1 -> 11
D71: 12
D72: 13
D73: 14
D74: 15
D75: 16
D76: 17
D77: 18
D78: 19
D79: 20
D80: SUB-TOTAL SLT: | X80: =SUM(M60:P79)+SUM(Q60:T79)+SUM(U60:W79) -> 108
D81: Continous Assessement | K81: % | M81: Face-to-Face (F2F) | U81: NF2F Independent Learning for Assessment (Asynchronous)
M82: Physical | Q82: Online/ Technology-mediated (Synchronous)
D83: 1 | E83: Case Study | K83: 0.2 | Q83: 1 | U83: 1
D84: 2 | E84: Presentation | K84: 0.1 | M84: 1 | U84: 1
D85: 3 | E85: Mid Semester Examination | K85: 0.2 | M85: 1 | U85: 2
D86: 4
D87: 5
D88: SUB-TOTAL SLT: | X88: =SUM(M83:W87) -> 7
D89: Final Assessement | K89: % | M89: Face-to-Face (F2F) | U89: NF2F Independent Learning for Assessment (Asynchronous)
M90: Physical | Q90: Online/ Technology-mediated (Synchronous)
D91: 1 | E91: Final Exam | K91: 0.5 | M91: 3 | U91: 2
D92: 2
D93: 3
D94: 4
D95: 5
D96: SUB-TOTAL SLT: | X96: =SUM(M91:W95) -> 5
D98: SLT for Assessment: | X98: =X88+X96 -> 12
D99: GRAND TOTAL SLT: | X99: =X98+X80 -> 120
D100: A | E100: % SLT for F2F Physical Component: [Total F2F Physical /(Total F2F Physical + Total F2F Online + Total Independent Learning) x 100)] | X100: =IFERROR(((SUM(M60:P79)+SUM(M83:P87)+SUM(M91:P95))/X99)* 100,"") -> 35
D102: B | E102: % SLT for Online & Independent Learning Component: [(Total F2F Online + Total Independent Learning) /( Total F2F Physical + Total F2F Online + Total Independent Learning) x 100] | X102: =IFERROR((SUM(Q60:W79)+SUM(Q83:W87) + SUM(Q91:W95))/X99 * 100,"") -> 65
D103: C | E103: % SLT for All Practical Component: [% F2F Physical Practical + % F2F Online Practical] | X103: =IFERROR(X104+X105,"") -> 0
D104: C1 | E104: % SLT for F2F Physical Practical Component [Total F2F Physical Practical /( Total F2F Physical + Total F2F Online + Total Independent Learning) x 100)] | X104: =IFERROR(SUM(O60:O79)/X99*100,"") -> 0
D105: C2 | E105: % SLT for F2F Online Practical Component [Total F2F Online Practical / (Total F2F Physical + Total F2F Online + Total Independent Learning) x 100] | X105: =IFERROR(SUM(S60:S79)/X99*100,"") -> 0
Z106: =IFERROR(X102+X104,"") -> 65
D107: Please tick (√) if this course is Industrial Training/ Clinical Placement/ Practicum using 50% of Effective Learning Time (ELT)
D108: Note:
D109: * Indicate the CLO based on the CLO's numbering in Item 8
D110: ** For ODL programme: Courses with mandatory practical requiremnets imposed by the programme standards or any related standards can be exempted from complying to the minimum 80% ODL delivery rule in the SLT.
B112: 11 | C112: Identify special requirement or resources to deliver the course (e.g., software, nursery, computer lab, simulation room etc) | K112: e-learning portal
B114: 12 | C114: References (include required and further readings, and should be the most current) | K114: 1. American Psychiatric Association. (2022). Diagnostic and statistical manual of mental disorders (5th ed., text rev.). American Psychiatric Association Publishing.
B116: 13 | C116: Other additional information (if applicable) | K116: 2. Hutner, L. A., Catapano, L. A., Nagle-Yang, S. M., Williams, K. E., & Osborne, L. M. (Eds.). (2022). Textbook of women’s reproductive mental health. American Psychiatric Association Publishing.
C119: Note: Number of PLO indicated is purely for illustration purposes only and the number is subjected to the curriculum design.

Sheet MPU3332
B2: Back To FORM @ TEMPLATE
AI3: √
B5: 1 | C5: Course Name: | F5: INTEGRITI DAN ANTIRASUAH (INTEGRITY AND ANTI-CORRUPTION) | AI5: Semester
C6: Course Code: | F6: MPU3332 | AI6: 1
C7: Course Classification: | F7: Compulsory | AI7: 2
B8: 2 | C8: Synopsis: | F8: "Kursus ini merangkumi konsep asas rasuah termasuk nilai integriti, antirasuah, bentuk perlakuan rasuah, salah guna kuasa dalam aktiviti seharian dan organisasi serta kaedah pencegahan rasuah. Kes berkaitan rasuah juga dibincangkan. Kaedah pengajaran dan pembelajaran dilaksanakan dalam bentuk ‘pembelajaran berdasarkan pengalaman’ melalui aktiviti individu dan kumpulan. Pada akhir kursus ini, pelajar dapat memahami amalan integriti, konsep rasuah, antirasuah dan salah guna kuasa serta pencegahan rasuah dalam masyarakat dan organisasi. This course covers the basic concept of corruption including the value of integrity, anti-corruption, forms of corruption, abuse of power in daily activities and organizations as well as ways to prevent corruption. Cases related to corruption are discussed. Teaching and learning methods are implemented in the form of ‘experiential learning’ through individual and group activities. At the end of this course, students are able to understand the practice of integrity, the concept of corruption, anti-corruption, abuse of power as well as the prevention of corruption in society and organizations." | AI8: 3
B9: =B8+1 -> 3 | C9: Name(s) of Academic Staff: | F9: 1 | G9: Mr. Muhammad Mu’adz Bin Mohd Saufee
F10: 2 | AI10: Year Offered
F11: 3 | AI11: 1
B12: =B9+1 -> 4 | C12: Semester and Year offered: | F12: Year Offered | I12: 1 | J12: Semester | L12: 1 | M12: Remarks: Mengikut IPT masing-masing | AI12: 2
B13: =B12+1 -> 5 | C13: Credit Value: | F13: =IF(X107 ="√",INT(X99/80),INT(X99/40)) -> 2 | AI13: 3
B14: 6 | C14: Pre-requisite/ co-requisite (if any): | AI14: 4
AI15: 5
B16: 7 | C16: Course Learning Outcomes (CLO) | F16: CLO1 | H16: Menerangkan konsep integriti dan antirasuah dalam aktiviti seharian. (PLO11, C5) | AI16: 6
F17: CLO2 | H17: Menilai bentuk perlakuan rasuah dan salah guna kuasa dalam aktiviti seharian dan organisasi. (PLO4, C3) | AI17: 7
F18: CLO3 | H18: Menghubung kait nilai integriti dan antirasuah dengan isu semasa. (PLO9, C4) | AI18: 8
AI20: Compulsory
AI21: Major (core)
AI22: Minor
AI23: Elective (core)
AI24: Elective (open/free)
B25: 8 | C25: Mapping of the Course Learning Outcomes to the Programme Learning Outcomes, Teaching Methods and Assessment Methods
D27: Course Learning Outcomes | F27: Programme Learning Outcomes (PLO) | R27: Teaching Methods | W27: Assessment Methods
F28: PLO 1 | G28: PLO 2 | H28: PLO 3 | I28: PLO 4 | J28: PLO 5 | K28: PLO 6 | L28: PLO 7 | M28: PLO 8 | N28: PLO 9 | O28: PLO 10 | P28: PLO 11
D29: =IF(ISBLANK(F16),"",F16) -> CLO1 | P29: √ | R29: Kuliah interaktif, pembelajaran berasaskan kes (case-based learning) dan aktiviti menggunakan pendekatan HIEPs | W29: Soalan boleh berbentuk kuiz/ujian bertulis/dalam talian atau Main peranan (Role Play) atauTinjauan mesra (Walkabout) atau Refleksi yang berkaitan aplikasi ke atas konsep integriti dan antirasuah dalam aktiviti seharian, yang menekankan atribut moral dalam MQF5: Etika dan Profesionalisme.
D30: CLO2 | I30: √ | R30: Kuliah interaktif, pembelajaran berasaskan kes (case-based learning), dan aktiviti menggunakan pendekatan HIEPs | W30: Pembentangan yang berkaitan bentuk perlakuan rasuah dan salah guna kuasa dalam aktiviti seharian dan organisasi yang menekankan atribut Komunikasi Sosial & Tanggungjawab Sosial dalam MQF 3B: Kemahiran Interpersonal.
D31: CLO3 | N31: √ | R31: Kuliah interaktif, pembelajaran berasaskan kes (case-based learning) dan aktiviti menggunakan pendekatan HIEPs | W31: PSA yang menghubung kait nilai integriti dan antirasuah dengan isu semasa yang menekankan atribut disiplin kendiri, kesedaran kendiri dan kemandirian dalam MQF4: Kemahiran Kendiri.
AI36: Cognitive skills
D37: Mapping with MQF Cluster of Learning Outcomes | I37: C3B | N37: C4A | P37: C5 | AI37: Interpersonal skills
AI38: Communication Skills
AI39: Digital Skills
AI40: Numeracy Skills
D41: Indicate the primary causal link between the CLO and PLO by ticking '√' in the appropriate box. | AI41: Leadership, Autonomy and Responsibility
D42: C1 = Knowledge & Understanding, C2 = Cognitive Skills, C3A = Practical Skills, C3B = Interpersonal Skills, C3C = Communication Skills, C3D = Digital Skills, | AI42: Personal Skills
D43: C3E = Numeracy Skills, C3F = Leadership, Autonomy & Responsibility, C4A = Personal Skills, C4B = Entrepreneurial Skills, C5 = Ethics & Professionalism | AI43: Entrepreneurial Skills
AI44: Ethics and Professionalism
B45: 9 | C45: Transferable Skills (if applicable)
C46: (Skills learned in the course of study which can be useful and utilized in other settings) | I46: 1 | J46: Interpersonal skills | AI46: C1
I47: 2 | J47: Personal Skills | AI47: C2
I48: 3 | J48: Ethics and Professionalism | AI48: C3A
I49: Open-ended response (if any) | AI49: C3B
I50: 4 | AI50: C3C
AI51: C3D
AB52: ` | AI52: C3E
B53: 10 | C53: Distribution of Student Learning Time (SLT) | AI53: C3F
C54: Note: This SLT calculation is designed for home grown programme only. | AI54: C4A
AI55: C4B
D56: Course Content Outline and Subtopics | K56: CLO* | M56: Learning and Teaching Activities** | X56: Total SLT | AI56: C5
M57: Face-to-Face (F2F) | U57: NF2F Independent Learning (Asynchronous)
M58: Physical | Q58: Online/ Technology-mediated (Synchronous)
M59: L | N59: T | O59: P | P59: O | Q59: L | R59: T | S59: P | T59: O
D60: 1 | E60: 1.0 Pengenalan kepada Rasuah dan Antirasuah 1.1 Definisi rasuah/antirasuah secara umum 1.2 Kenapa rasuah adalah jenayah yang serius? 1.3 Siapa yang boleh terjebak dalam jenayah rasuah? 1.4 Kedudukan negara dalam Indeks Persepsi Rasuah (CPI) Integriti vs Rasuah • Definisi integriti • Faktor-faktor yang menjejaskan integriti • Minda (mindset) perasuah • Bidang pekerjaan yang berisiko tinggi rasuah • Membudayakan integriti • Inisiatif kerajaan bagi meningkatkan integriti perkhidmatan awam | K60: 1 | M60: 3 | N60: 1 | U60: 2
D61: 2 | E61: 2.0 Agensi-Agensi Berkaitan Pencegahan Rasuah dan Pembudayaan Integriti 2.1 Pengenalan kepada SPRM - Peneraju usaha pencegahan rasuah 2.2 Latar belakang, strategi, aktiviti utama SPRM 2.3 Latar belakang dan fungsi Pusat Governans Integriti dan Antirasuah Nasional (GIACC) 2.4 Latar belakang dan fungsi Institut Integriti Malaysia 2.5 Latar belakang dan fungsi Suruhanjaya Integriti Agensi Penguatkuasaan (EAIC) 2.6 Latar belakang dan fungsi Jabatan Audit Negara serta pengenalan kepada Laporan Ketua Audit Negara (LKAN) 2.7 Latar belakang dan fungsi Biro Pengaduan Awam | K61: 1, 2 | M61: 3 | N61: 1 | U61: 2
D62: 3 | E62: 3.0 Rasuah berdasarkan Akta SPRM 2009 3.1 Definisi rasuah daripada beberapa organisasi luar negara 3.2 Nama panggilan dan bentuk-bentuk rasuah 3.3 Jenis-jenis kesalahan rasuah berdasarkan Akta SPRM 2009 3.4 Contoh kes sebenar kesalahan rasuah 3.5 Hukuman kesalahan rasuah 3.6 Penyitaan harta hasil aktiviti rasuah 3.7 Kesalahan pengubahan wang haram 3.8 Hadiah vs rasuah | K62: 1, 2 | M62: 3 | N62: 1 | U62: 2
D63: 4 | E63: 4.0 Jenayah kolar putih 4.1 Definisi jenayah kolar putih dan biru 4.2 Perbezaan jenayah kolar putih dan jenayah kolar biru 4.3 Kesan jenayah kolar putih dan biru 4.4 Contoh kes sebenar jenayah kolar putih di dalam dan luar negara 4.5 Jenayah kolar putih terkini (scam) 4.6 Mengenali profil fraudster | K63: 1, 2 | M63: 3 | N63: 1 | U63: 2
D64: 5 | E64: 5.0 Punca, simptom dan kesan rasuah 5.1 Punca jenayah rasuah berdasarkan beberapa teori 5.2 Simptom jenayah rasuah 5.3 Kesan jenayah rasuah kepada individu, masyarakat dan negara | K64: 1, 2 | M64: 3 | N64: 1 | U64: 2
D65: 6 | E65: 6.0 Peranan institusi sosial dalam pembudayaan integriti 6.1 Institusi agama 6.2 Institusi keluarga 6.3 Institusi pendidikan | K65: 1, 3 | M65: 3 | N65: 1 | U65: 2
D66: 7 | E66: 7.0 Laporkan rasuah, langkah pencegahan dan inisiatif kerajaan 7.1 Kewajipan melaporkan tawaran dan permintaan rasuah 7.2 Bagaimana laporan rasuah boleh dibuat? 7.3 Perlindungan kepada pemberi maklumat dan saksi kes rasuah 7.4 Langkah pencegahan rasuah 7.5 petua untuk mengelakkan diri daripada terjebak rasuah 7.6 Inisiatif-inisiatif utama kerajaan dalam pencegahan rasuah Laporan Ketua Audit Negara (LKAN) dan isu-isu lazim dalam perolehan kerajaan 7.7 Kepentingan LKAN bagi memastikan integriti pengurusan kewangan dan perolehan kerajaan 7.8 Isu-isu lazim dalam pengurusan dan perolehan kerajaan 7.9 Contoh kes sebenar bagi setiap isu | K66: 1, 3 | M66: 3 | N66: 1 | U66: 2
D67: 8 | E67: 8.0 Liabiliti korporat 8.1 Pengenalan kepada kesalahan rasuah oleh organisasi komersial – Seksyen 17A Akta SPRM 2009 8.2 Definisi organisasi komersial 8.3 Definisi orang yang bersekutu dengan organisasi komersial 8.4 Hukuman kesalahan liabiliti korporat 8.5 Mengelakkan pendakwaan di bawah Seksyen 17A Akta SPRM 2009 8.6 Prinsip TRUST 8.7 Contoh kes sebenar liabiliti korporat di dalam dan luar negara | K67: 1, 3 | M67: 3 | N67: 1 | Q67: 1 | U67: 2
D68: 9
D69: 10
D70: =D69+1 -> 11
D71: 12
D72: 13
D73: 14
D74: 15
D75: 16
D76: 17
D77: 18
D78: 19
D79: 20
D80: SUB-TOTAL SLT: | X80: =SUM(M60:P79)+SUM(Q60:T79)+SUM(U60:W79) -> 49
D81: Continous Assessement | K81: % | M81: Face-to-Face (F2F) | U81: NF2F Independent Learning for Assessment (Asynchronous)
M82: Physical | Q82: Online/ Technology-mediated (Synchronous)
D83: 1 | E83: Kuiz/Main peranan (Role Play)/Tinjauan mesra (Walkabout)/Refleksi | K83: 0.2 | M83: 3 | U83: 5
D84: 2 | E84: Pembentangan, penilaian pensyarah/penilaian rakan sebaya dan bahan pembentangan | K84: 0.4 | M84: 4 | U84: 7
D85: 3 | E85: Public Service Announcement (PSA), pembentangan dan bahan pembentangan (video) | K85: 0.4 | M85: 4 | U85: 8
D86: 4
D87: 5
D88: SUB-TOTAL SLT: | X88: =SUM(M83:W87) -> 31
D89: Final Assessement | K89: % | M89: Face-to-Face (F2F) | U89: NF2F Independent Learning for Assessment (Asynchronous)
M90: Physical | Q90: Online/ Technology-mediated (Synchronous)
D91: 1
D92: 2
D93: 3
D94: 4
D95: 5
D96: SUB-TOTAL SLT: | X96: =SUM(M91:W95) -> 0
D98: SLT for Assessment: | X98: =X88+X96 -> 31
D99: GRAND TOTAL SLT: | X99: =X98+X80 -> 80
D100: A | E100: % SLT for F2F Physical Component: [Total F2F Physical /(Total F2F Physical + Total F2F Online + Total Independent Learning) x 100)] | X100: =IFERROR(((SUM(M60:P79)+SUM(M83:P87)+SUM(M91:P95))/X99)* 100,"") -> 53.75
D102: B | E102: % SLT for Online & Independent Learning Component: [(Total F2F Online + Total Independent Learning) /( Total F2F Physical + Total F2F Online + Total Independent Learning) x 100] | X102: =IFERROR((SUM(Q60:W79)+SUM(Q83:W87) + SUM(Q91:W95))/X99 * 100,"") -> 46.25
D103: C | E103: % SLT for All Practical Component: [% F2F Physical Practical + % F2F Online Practical] | X103: =IFERROR(X104+X105,"") -> 0
D104: C1 | E104: % SLT for F2F Physical Practical Component [Total F2F Physical Practical /( Total F2F Physical + Total F2F Online + Total Independent Learning) x 100)] | X104: =IFERROR(SUM(O60:O79)/X99*100,"") -> 0
D105: C2 | E105: % SLT for F2F Online Practical Component [Total F2F Online Practical / (Total F2F Physical + Total F2F Online + Total Independent Learning) x 100] | X105: =IFERROR(SUM(S60:S79)/X99*100,"") -> 0
Z106: =IFERROR(X102+X104,"") -> 46.25
D107: Please tick (√) if this course is Industrial Training/ Clinical Placement/ Practicum using 50% of Effective Learning Time (ELT)
D108: Note:
D109: * Indicate the CLO based on the CLO's numbering in Item 8
D110: ** For ODL programme: Courses with mandatory practical requiremnets imposed by the programme standards or any related standards can be exempted from complying to the minimum 80% ODL delivery rule in the SLT.
B112: 11 | C112: Identify special requirement or resources to deliver the course (e.g., software, nursery, computer lab, simulation room etc) | K112: NIL
B114: 12 | C114: References (include required and further readings, and should be the most current) | K114: Mohamad Tarmize Abdul Manaf (2020). Nota Pencegahan Rasuah. Bahagian Pendidikan Masyarakat, Suruhanjaya Pencegahan Rasuah Malaysia. Putrajaya Mohamad Tarmize Abdul Manaf et al. (2020). Kursus Integriti dan Rasuah IPT. Bahagian Pendidikan Masyarakat, Suruhanjaya Pencegahan Rasuah Malaysia. Putrajaya. Mohd Firdaus Ramlan (2021). Tumbuk Rusuk: Pengkisahan Dari Tirai Besi. Akademi Kajian Rantau Nusantara Akar. Batu Caves, Selangor. Pusat Governans, Integriti dan Antirasuah Nasional (2019). Pelan Antirasuah Nasional 2019-2023. Jabatan Perdana Menteri, Putrajaya. Syed Hussein Alatas (1999). Corruption and the Destiny of Asia. Simon and Schuster Asia. Syed Hussein Alatas. (2009). Rasuah: Sifat, Sebab dan Fungsi. Kuala Lumpur: Dewan Bahasa dan Pustaka. Zulkanain Abdul Rahman, Ahmad Kamal Ariffin Mohd Rus & Noor Ain Mat Noor (2017). Sejarah Perjuangan SPRM: Satu Perjalanan. Universiti Malaya, Kuala Lumpur.
B116: 13 | C116: Other additional information (if applicable) | K116: NIL
C119: Note: Number of PLO indicated is purely for illustration purposes only and the number is subjected to the curriculum design.

Sheet MKT 6113
B2: Back To FORM @ TEMPLATE
AI3: √
B5: 1 | C5: Course Name: | F5: PRINCIPLES OF MARKETING | AI5: Semester
C6: Course Code: | F6: MKT 6113 | AI6: 1
C7: Course Classification: | F7: Major (core) | AI7: 2
B8: 2 | C8: Synopsis: | F8: This subject will explore basic concepts, theory, and practices in marketing. Besides discussing the 7Ps of marketing, the course will also discuss marketing process, consumer behaviour, marketing research, and product development. The subject will also emphasize strategic aspect of marketing including segmentation, market targeting and positioning and strategic marketing. | AI8: 3
B9: =B8+1 -> 3 | C9: Name(s) of Academic Staff: | F9: 1 | G9: Ms. Praveena Uthayakumar
F10: 2 | AI10: Year Offered
F11: 3 | AI11: 1
B12: =B9+1 -> 4 | C12: Semester and Year offered: | F12: Year Offered | I12: 1 | J12: Semester | L12: 2 | M12: Remarks: | AI12: 2
B13: =B12+1 -> 5 | C13: Credit Value: | F13: =IF(X107 ="√",INT(X99/80),INT(X99/40)) -> 3 | AI13: 3
B14: 6 | C14: Pre-requisite/ co-requisite (if any): | AI14: 4
AI15: 5
B16: 7 | C16: Course Learning Outcomes (CLO) | F16: CLO1 | H16: Explain the functionalities of marketing to support the activities of managers in a workplace (PLO1 ,C3). | AI16: 6
F17: CLO2 | H17: Demonstrate how marketing orientation can be used to enhance current business performance. (PLO2, C3) | AI17: 7
F18: CLO3 | H18: Adopt relevant marketing strategies to enhance business performances in the organization. (PLO5 ,A3) | AI18: 8
AI20: Compulsory
AI21: Major (core)
AI22: Minor
AI23: Elective (core)
AI24: Elective (open/free)
B25: 8 | C25: Mapping of the Course Learning Outcomes to the Programme Learning Outcomes, Teaching Methods and Assessment Methods
D27: Course Learning Outcomes | F27: Programme Learning Outcomes (PLO) | R27: Teaching Methods | W27: Assessment Methods
F28: PLO 1 | G28: PLO 2 | H28: PLO 3 | I28: PLO 4 | J28: PLO 5 | K28: PLO 6 | L28: PLO 7 | M28: PLO 8 | N28: PLO 9 | O28: PLO 10 | P28: PLO 11
D29: =IF(ISBLANK(F16),"",F16) -> CLO1 | F29: √ | R29: Interactive Lecture, case study/ problem-solving exercises/blended | W29: Mid term examination
D30: CLO2 | G30: √ | R30: Interactive Lecture, case study/ problem-solving exercises/video | W30: Final Examination
D31: CLO3 | J31: √ | R31: Interactive Lecture, case study/ problem-solving exercises/simulation | W31: Written report and Presentation
AI36: Cognitive skills
D37: Mapping with MQF Cluster of Learning Outcomes | F37: C3B | G37: C3D | J37: C4B | AI37: Interpersonal skills
AI38: Communication Skills
AI39: Digital Skills
AI40: Numeracy Skills
D41: Indicate the primary causal link between the CLO and PLO by ticking '√' in the appropriate box. | AI41: Leadership, Autonomy and Responsibility
D42: C1 = Knowledge & Understanding, C2 = Cognitive Skills, C3A = Practical Skills, C3B = Interpersonal Skills, C3C = Communication Skills, C3D = Digital Skills, | AI42: Personal Skills
D43: C3E = Numeracy Skills, C3F = Leadership, Autonomy & Responsibility, C4A = Personal Skills, C4B = Entrepreneurial Skills, C5 = Ethics & Professionalism | AI43: Entrepreneurial Skills
AI44: Ethics and Professionalism
B45: 9 | C45: Transferable Skills (if applicable)
C46: (Skills learned in the course of study which can be useful and utilized in other settings) | I46: 1 | J46: Interpersonal skills | AI46: C1
I47: 2 | J47: Digital Skills | AI47: C2
I48: 3 | J48: Entrepreneurial Skills | AI48: C3A
I49: Open-ended response (if any) | AI49: C3B
I50: 4 | AI50: C3C
AI51: C3D
AB52: ` | AI52: C3E
B53: 10 | C53: Distribution of Student Learning Time (SLT) | AI53: C3F
C54: Note: This SLT calculation is designed for home grown programme only. | AI54: C4A
AI55: C4B
D56: Course Content Outline and Subtopics | K56: CLO* | M56: Learning and Teaching Activities** | X56: Total SLT | AI56: C5
M57: Face-to-Face (F2F) | U57: NF2F Independent Learning (Asynchronous)
M58: Physical | Q58: Online/ Technology-mediated (Synchronous)
M59: L | N59: T | O59: P | P59: O | Q59: L | R59: T | S59: P | T59: O
D60: 1 | E60: 1.0 Understanding marketing and Marketing Process 1.1 Introduction to Marketing 1.2 Creating Customer Value and Engagement | K60: 1 | M60: 2 | R60: 1 | U60: 3
D61: 2 | E61: 2.0 The Marketing Environment 2.1 Market Environment Analysis 2.2 Microenvironment 2.3 Macroenvironment 2.4 Ethics in marketing and legal 2.5 STP model 2.6 Marketing mix : 4 P's | K61: 1 | M61: 2 | R61: 1 | U61: 3
D62: 3 | E62: 3.0 Consumer market and Consumer buyer behavior 3.1 Consumer Behaviour 3.2 Types of buying decision behavior 3.3 The buyer decision process | K62: 1 | M62: 2 | R62: 1 | U62: 3
D63: 4 | E63: Business market and Business buyer behavior 4.1 Market structure and demand 4.2 Types of buying situation 4.3 Business buyer behaviour 4.4 Institutional and government market | K63: 1 | M63: 2 | R63: 1 | U63: 3
D64: 5 | E64: 5.0 Product and Service marketing 5.1 Definition of product 5.2 Classification 5.3 Product decision 5.4 Branding 5.5 Service marketing : 7Ps 5.6 Product life cycle | K64: 2 | M64: 4 | R64: 2 | U64: 6
D65: 6 | E65: 6.0 Pricing product : Strategies 6.1 New pricing strategies 6.2 Product mix pricing strategies 6.3 Price adjustment strategies | K65: 2 | M65: 2 | R65: 1 | U65: 3
D66: 7 | E66: 7.0 Promotion management 7.1 Role of marketing communication 7.2 Promotion mix 7.3 Integrated marketing communication 7.4 Promotion budget | K66: 2 | M66: 2 | R66: 1 | U66: 3
D67: 8 | E67: 8.0 Marketing channels 8.1 Functions of marketing channels 8.2 Distribution systems 8.3 Marketing logistics and supply chain | K67: 2 | M67: 2 | R67: 1 | U67: 3
D68: 9 | E68: 9.0 Sales management 9.1 Sales management process 9.2 Sales program 9.3 Customer interaction management 9.4 Sales force organization | K68: 2 | M68: 2 | R68: 1 | U68: 3
D69: 10 | E69: 10.0 Retailing 10.1 Types of retailers 10.2 Retailers decision making 10.3 Retailing strategies 10.3 Wholesaling | K69: 2 | M69: 2 | R69: 1 | U69: 3
D70: =D69+1 -> 11 | E70: 11.0 Marketing Research 11.1 Components of Marketing information system 11.2 Marketing research procedures 11.3 Research problem 11.4 Technique for marketing planning and decision- making | K70: 3 | M70: 2 | R70: 1 | V70: 6
D71: 12 | E71: 12.0 Digital marketing 12.1 The implication of internet and digital technologies 12.2 Digital marketing strategies 12.3 Role of ethics and ethical behavior in social media | K71: 3 | M71: 2 | R71: 1 | V71: 4
D72: 13 | E72: 13.0 International Marketing 13.1 Decision and strategy to go global 13.2 Decision to enter the new market 13.3 Global marketing program | K72: 3 | M72: 2 | R72: 1 | V72: 3
D73: 14
D74: 15
D75: 16
D76: 17
D77: 18
D78: 19
D79: 20
D80: SUB-TOTAL SLT: | X80: =SUM(M60:P79)+SUM(Q60:T79)+SUM(U60:W79) -> 88
D81: Continous Assessement | K81: % | M81: Face-to-Face (F2F) | U81: NF2F Independent Learning for Assessment (Asynchronous)
M82: Physical | Q82: Online/ Technology-mediated (Synchronous)
D83: 1 | E83: Assignment 1 -Written Report | K83: 0.2 | M83: 2 | U83: 6
D84: 2 | E84: Assignment 2 - Presentation | K84: 0.1 | M84: 2 | U84: 2
D85: 3 | E85: Mid Term Examination | K85: 0.2 | M85: 2 | U85: 6
D86: 4
D87: 5
D88: SUB-TOTAL SLT: | X88: =SUM(M83:W87) -> 20
D89: Final Assessement | K89: % | M89: Face-to-Face (F2F) | U89: NF2F Independent Learning for Assessment (Asynchronous)
M90: Physical | Q90: Online/ Technology-mediated (Synchronous)
D91: 1 | E91: Final Examination | K91: 0.5 | M91: 3 | U91: 9
D92: 2
D93: 3
D94: 4
D95: 5
D96: SUB-TOTAL SLT: | X96: =SUM(M91:W95) -> 12
D98: SLT for Assessment: | X98: =X88+X96 -> 32
D99: GRAND TOTAL SLT: | X99: =X98+X80 -> 120
D100: A | E100: % SLT for F2F Physical Component: [Total F2F Physical /(Total F2F Physical + Total F2F Online + Total Independent Learning) x 100)] | X100: =IFERROR(((SUM(M60:P79)+SUM(M83:P87)+SUM(M91:P95))/X99)* 100,"") -> 30.83333333
D102: B | E102: % SLT for Online & Independent Learning Component: [(Total F2F Online + Total Independent Learning) /( Total F2F Physical + Total F2F Online + Total Independent Learning) x 100] | X102: =IFERROR((SUM(Q60:W79)+SUM(Q83:W87) + SUM(Q91:W95))/X99 * 100,"") -> 69.16666667
D103: C | E103: % SLT for All Practical Component: [% F2F Physical Practical + % F2F Online Practical] | X103: =IFERROR(X104+X105,"") -> 0
D104: C1 | E104: % SLT for F2F Physical Practical Component [Total F2F Physical Practical /( Total F2F Physical + Total F2F Online + Total Independent Learning) x 100)] | X104: =IFERROR(SUM(O60:O79)/X99*100,"") -> 0
D105: C2 | E105: % SLT for F2F Online Practical Component [Total F2F Online Practical / (Total F2F Physical + Total F2F Online + Total Independent Learning) x 100] | X105: =IFERROR(SUM(S60:S79)/X99*100,"") -> 0
Z106: =IFERROR(X102+X104,"") -> 69.16666667
D107: Please tick (√) if this course is Industrial Training/ Clinical Placement/ Practicum using 50% of Effective Learning Time (ELT)
D108: Note:
D109: * Indicate the CLO based on the CLO's numbering in Item 8
D110: ** For ODL programme: Courses with mandatory practical requiremnets imposed by the programme standards or any related standards can be exempted from complying to the minimum 80% ODL delivery rule in the SLT.
B112: 11 | C112: Identify special requirement or resources to deliver the course (e.g., software, nursery, computer lab, simulation room etc) | K112: None
B114: 12 | C114: References (include required and further readings, and should be the most current) | K114: Philip, K. & Armstrong, G. (2023), Principles of Marketing, 19th Edition, Pearson
B116: 13 | C116: Other additional information (if applicable) | K116: Lamb, C. W., Hair, J. F., & McDaniel, C. (2023). MKTG: Principles of marketing (13th ed.). Cengage Learning.
C119: Note: Number of PLO indicated is purely for illustration purposes only and the number is subjected to the curriculum design.

Sheet MGT6183
B2: Back To FORM @ TEMPLATE
AI3: √
B5: 1 | C5: Course Name: | F5: Organisational Behaviour | AI5: Semester
C6: Course Code: | F6: MGT6183 | AI6: 1
C7: Course Classification: | F7: Major (core) | AI7: 2
B8: 2 | C8: Synopsis: | F8: This subject examines how individuals and groups behave within organizations, focusing on key concepts such as motivation, leadership, teamwork, organizational culture and change management. It equips students with the skills to analyze workplace behavior and apply effective strategies to enhance employee performance, collaboration and overall organizational effectiveness. | AI8: 3
B9: =B8+1 -> 3 | C9: Name(s) of Academic Staff: | F9: 1 | G9: Ms. Ros Farahwani Binti Rosali
F10: 2 | AI10: Year Offered
F11: 3 | AI11: 1
B12: =B9+1 -> 4 | C12: Semester and Year offered: | F12: Year Offered | I12: 1 | J12: Semester | L12: 2 | M12: Remarks: | AI12: 2
B13: =B12+1 -> 5 | C13: Credit Value: | F13: =IF(X107 ="√",INT(X99/80),INT(X99/40)) -> 3 | AI13: 3
B14: 6 | C14: Pre-requisite/ co-requisite (if any): | F14: Principles of Management | AI14: 4
AI15: 5
B16: 7 | C16: Course Learning Outcomes (CLO) | F16: CLO1 | H16: Analyze and identify the current trends for organizational behavior and describe the cross- cultural challenges of the workplace (PLO1, C1) | AI16: 6
F17: CLO2 | H17: Describe the various work attitudes and its‘ effect in workplace and identify the key attributes that are relevant for performance and how motivation affects performance (PLO3, C3) | AI17: 7
F18: CLO3 | H18: Compare and contrast groups vs. teams and describe group development and group dynamics (PLO5, C3) | AI18: 8
AI20: Compulsory
AI21: Major (core)
AI22: Minor
AI23: Elective (core)
AI24: Elective (open/free)
B25: 8 | C25: Mapping of the Course Learning Outcomes to the Programme Learning Outcomes, Teaching Methods and Assessment Methods
D27: Course Learning Outcomes | F27: Programme Learning Outcomes (PLO) | R27: Teaching Methods | W27: Assessment Methods
F28: PLO 1 | G28: PLO 2 | H28: PLO 3 | I28: PLO 4 | J28: PLO 5 | K28: PLO 6 | L28: PLO 7 | M28: PLO 8 | N28: PLO 9 | O28: PLO 10 | P28: PLO 11
D29: =IF(ISBLANK(F16),"",F16) -> CLO1 | F29: √ | R29: LECTURE/TUTORIAL/DISCUSSION | W29: MIDTERM/TEST
D30: CLO2 | H30: √ | R30: CASE STUDY/PRESENTATION/TUTORIAL | W30: GROUP ASSIGNMENT
D31: CLO3 | J31: √ | R31: LECTURE/TUTORIAL/BLENDED/ ONLINE | W31: FINAL EXAMINATION
AI36: Cognitive skills
D37: Mapping with MQF Cluster of Learning Outcomes | F37: C1 | H37: C3F | J37: C3B | AI37: Interpersonal skills
AI38: Communication Skills
AI39: Digital Skills
AI40: Numeracy Skills
D41: Indicate the primary causal link between the CLO and PLO by ticking '√' in the appropriate box. | AI41: Leadership, Autonomy and Responsibility
D42: C1 = Knowledge & Understanding, C2 = Cognitive Skills, C3A = Practical Skills, C3B = Interpersonal Skills, C3C = Communication Skills, C3D = Digital Skills, | AI42: Personal Skills
D43: C3E = Numeracy Skills, C3F = Leadership, Autonomy & Responsibility, C4A = Personal Skills, C4B = Entrepreneurial Skills, C5 = Ethics & Professionalism | AI43: Entrepreneurial Skills
AI44: Ethics and Professionalism
B45: 9 | C45: Transferable Skills (if applicable)
C46: (Skills learned in the course of study which can be useful and utilized in other settings) | I46: 1 | J46: Communication Skills | AI46: C1
I47: 2 | J47: Leadership, Autonomy and Responsibility | AI47: C2
I48: 3 | J48: Ethics and Professionalism | AI48: C3A
I49: Open-ended response (if any) | AI49: C3B
I50: 4 | AI50: C3C
AI51: C3D
AB52: ` | AI52: C3E
B53: 10 | C53: Distribution of Student Learning Time (SLT) | AI53: C3F
C54: Note: This SLT calculation is designed for home grown programme only. | AI54: C4A
AI55: C4B
D56: Course Content Outline and Subtopics | K56: CLO* | M56: Learning and Teaching Activities** | X56: Total SLT | AI56: C5
M57: Face-to-Face (F2F) | U57: NF2F Independent Learning (Asynchronous)
M58: Physical | Q58: Online/ Technology-mediated (Synchronous)
M59: L | N59: T | O59: P | P59: O | Q59: L | R59: T | S59: P | T59: O
D60: 1 | E60: Chapter 1: Introduction to •Organisational Behaviour •Definition and scope of OB •Importance in business and management •Asian and Malaysian perspectives on OB | K60: 1 | M60: 3 | N60: 1 | Q60: 2 | R60: 1 | U60: 1
D61: 2 | E61: Chapter 2: Individual Differences and Work Behaviour •Personality traits and the Big Five model •Emotional intelligence and its impact on performance •Perception and attribution theory •Values, attitudes, and job satisfaction •Cultural dimensions in Malaysian workplaces | K61: 2 | M61: 3 | N61: 1 | Q61: 2 | R61: 1 | U61: 1
D62: 3 | E62: Chapter 3: Motivation in the Workplace •Content theories: Maslow, Herzberg, McClelland •Process theories: Expectancy, Equity, Goal-setting •Reinforcement and self-determination theory •Motivation in Asian organisational contexts •Designing motivational strategies for diverse teams | K62: 2 | M62: 3 | N62: 1 | Q62: 2 | R62: 1 | U62: 1
D63: 4 | E63: Chapter 4: Team Dynamics and Group Behaviour •Types of teams and team development stages •Roles, norms, and cohesiveness •Groupthink and social loafing •Managing multicultural teams •High-performance teams in Malaysian organisations | K63: 3 | M63: 4 | N63: 2 | Q63: 2 | R63: 1 | U63: 1
D64: 5 | E64: Chapter 5: Communication in Organisations •Communication process and barriers •Verbal and non-verbal communication •Formal vs. informal communication networks •Technology and digital communication •Cross-cultural communication in ASEAN businesses | K64: 1 | M64: 4 | N64: 2 | Q64: 2 | R64: 2 | U64: 1
D65: 6 | E65: Chapter 6: Organisational Power, Politics, Culture, and Conflict •Sources and types of power •Political behaviour in organisations •Organisational culture: types and development •Conflict types and resolution strategies •Malaysian organisational culture and conflict norms | K65: 1 | M65: 4 | N65: 2 | Q65: 2 | R65: 2 | U65: 1
D66: 7 | E66: Chapter 7: Leadership in Organisations •Leadership theories: Trait, Behavioural, Contingency, Transformational •Leadership styles in Asian contexts Gender and leadership •Ethical leadership and corporate governance •Leadership development in Malaysian firms | K66: 2 | M66: 4 | N66: 2 | Q66: 2 | R66: 2 | U66: 1
D67: 8 | E67: Chapter 8: Organisational Processes and Structures •Organisational design and structure types Decision-making processes •Change management and innovation •Organisational learning and knowledge management •Bureaucracy vs. agile structures in Malaysian organisations | K67: 2 | M67: 4 | N67: 2 | Q67: 2 | R67: 2 | U67: 1
D68: 9 | E68: Chapter 9: Current Issues in Organisational Behaviour •Diversity and inclusion •Remote work and hybrid teams •Mental health and employee well-being •Sustainability and ethical behaviour •Negotiation strategies and decision-making in complex environments | K68: 3 | M68: 4 | N68: 2 | Q68: 2 | R68: 1 | U68: 1
D69: 10
D70: =D69+1 -> 11
D71: 12
D72: 13
D73: 14
D74: 15
D75: 16
D76: 17
D77: 18
D78: 19
D79: 20
D80: SUB-TOTAL SLT: | X80: =SUM(M60:P79)+SUM(Q60:T79)+SUM(U60:W79) -> 88
D81: Continous Assessement | K81: % | M81: Face-to-Face (F2F) | U81: NF2F Independent Learning for Assessment (Asynchronous)
M82: Physical | Q82: Online/ Technology-mediated (Synchronous)
D83: 1 | E83: Assignment (Report) | K83: 0.2 | M83: 4 | U83: 4
D84: 2 | E84: Assignment (Presentation) | K84: 0.1 | M84: 4 | U84: 4
D85: 3 | E85: Mid Term Examination | K85: 0.2 | M85: 2 | U85: 5
D86: 4
D87: 5
D88: SUB-TOTAL SLT: | X88: =SUM(M83:W87) -> 23
D89: Final Assessement | K89: % | M89: Face-to-Face (F2F) | U89: NF2F Independent Learning for Assessment (Asynchronous)
M90: Physical | Q90: Online/ Technology-mediated (Synchronous)
D91: 1 | E91: Final Exam | K91: 0.5 | M91: 3 | U91: 6
D92: 2
D93: 3
D94: 4
D95: 5
D96: SUB-TOTAL SLT: | X96: =SUM(M91:W95) -> 9
D98: SLT for Assessment: | X98: =X88+X96 -> 32
D99: GRAND TOTAL SLT: | X99: =X98+X80 -> 120
D100: A | E100: % SLT for F2F Physical Component: [Total F2F Physical /(Total F2F Physical + Total F2F Online + Total Independent Learning) x 100)] | X100: =IFERROR(((SUM(M60:P79)+SUM(M83:P87)+SUM(M91:P95))/X99)* 100,"") -> 50.83333333
D102: B | E102: % SLT for Online & Independent Learning Component: [(Total F2F Online + Total Independent Learning) /( Total F2F Physical + Total F2F Online + Total Independent Learning) x 100] | X102: =IFERROR((SUM(Q60:W79)+SUM(Q83:W87) + SUM(Q91:W95))/X99 * 100,"") -> 49.16666667
D103: C | E103: % SLT for All Practical Component: [% F2F Physical Practical + % F2F Online Practical] | X103: =IFERROR(X104+X105,"") -> 0
D104: C1 | E104: % SLT for F2F Physical Practical Component [Total F2F Physical Practical /( Total F2F Physical + Total F2F Online + Total Independent Learning) x 100)] | X104: =IFERROR(SUM(O60:O79)/X99*100,"") -> 0
D105: C2 | E105: % SLT for F2F Online Practical Component [Total F2F Online Practical / (Total F2F Physical + Total F2F Online + Total Independent Learning) x 100] | X105: =IFERROR(SUM(S60:S79)/X99*100,"") -> 0
Z106: =IFERROR(X102+X104,"") -> 49.16666667
D107: Please tick (√) if this course is Industrial Training/ Clinical Placement/ Practicum using 50% of Effective Learning Time (ELT)
D108: Note:
D109: * Indicate the CLO based on the CLO's numbering in Item 8
D110: ** For ODL programme: Courses with mandatory practical requiremnets imposed by the programme standards or any related standards can be exempted from complying to the minimum 80% ODL delivery rule in the SLT.
B112: 11 | C112: Identify special requirement or resources to deliver the course (e.g., software, nursery, computer lab, simulation room etc) | K112: NA
B114: 12 | C114: References (include required and further readings, and should be the most current) | K114: 1. Luthans, F., & Ainan, S. (2022). Organisational behaviour: An Asian perspective (3rd ed.). McGraw-Hill Malaysia.
B116: 13 | C116: Other additional information (if applicable) | K116: 2. Robbins, S. P., & Judge, T. A. (2023). Organizational behavior (19th ed.). Pearson.
C119: Note: Number of PLO indicated is purely for illustration purposes only and the number is subjected to the curriculum design.

Sheet ECO6113
B2: Back To FORM @ TEMPLATE
AI3: √
B5: 1 | C5: Course Name: | F5: Economic Principles and Issues | AI5: Semester
C6: Course Code: | F6: ECO6113 | AI6: 1
C7: Course Classification: | F7: Major (core) | AI7: 2
B8: 2 | C8: Synopsis: | F8: This course is designed to comprehend the fundamental principles of micro-economics and macro-economic by emphasising the technical aspects of the subject. The course begins with an analysis of the consumer theory, moving on to making strategic business decisions in an uncertain and dynamic environment. This course also examines the behaviour of aggregate economic variables like the GDP, interest rates, inflation, trading and the foreign exchange rate mechanism and a country’s unemployment rate. The course addresses individual and market responses to asymmetric information and actions of institutions. We will study and analyse the various prevailing macroeconomic and developments issues from the viewpoint of the business community as well as government policy makers. | AI8: 3
B9: =B8+1 -> 3 | C9: Name(s) of Academic Staff: | F9: 1 | G9: Mr. Tan Weng Kean
F10: 2 | AI10: Year Offered
F11: 3 | AI11: 1
B12: =B9+1 -> 4 | C12: Semester and Year offered: | F12: Year Offered | I12: 1 | J12: Semester | L12: 2 | M12: Remarks: | AI12: 2
B13: =B12+1 -> 5 | C13: Credit Value: | F13: =IF(X107 ="√",INT(X99/80),INT(X99/40)) -> 3 | AI13: 3
B14: 6 | C14: Pre-requisite/ co-requisite (if any): | F14: NIL | AI14: 4
AI15: 5
B16: 7 | C16: Course Learning Outcomes (CLO) | F16: CLO1 | H16: Explain the knowledge of economics to make informed decisions for optimizing economics resources. (PLO1,C2) | AI16: 6
F17: CLO2 | H17: Analyze the causes and effects of economic components towards making informed decisions (PLO7, C4) | AI17: 7
F18: CLO3 | H18: Evaluate effective articulation of ideas and skills of selecting relevant references in making informed decisions for allocating economics resources. (PLO9,C5) | AI18: 8
AI20: Compulsory
AI21: Major (core)
AI22: Minor
AI23: Elective (core)
AI24: Elective (open/free)
B25: 8 | C25: Mapping of the Course Learning Outcomes to the Programme Learning Outcomes, Teaching Methods and Assessment Methods
D27: Course Learning Outcomes | F27: Programme Learning Outcomes (PLO) | R27: Teaching Methods | W27: Assessment Methods
F28: PLO 1 | G28: PLO 2 | H28: PLO 3 | I28: PLO 4 | J28: PLO 5 | K28: PLO 6 | L28: PLO 7 | M28: PLO 8 | N28: PLO 9 | O28: PLO 10 | P28: PLO 11
D29: =IF(ISBLANK(F16),"",F16) -> CLO1 | F29: √ | R29: Lecture/Tutorial | W29: Assignment/Presentation
D30: CLO2 | L30: √ | R30: Lecture/Tutorial/Case Study | W30: Mid Term
D31: CLO3 | N31: √ | R31: Lecture/Tutorial | W31: Final Exam
AI36: Cognitive skills
D37: Mapping with MQF Cluster of Learning Outcomes | F37: C2 | L37: C4A | N37: C5 | AI37: Interpersonal skills
AI38: Communication Skills
AI39: Digital Skills
AI40: Numeracy Skills
D41: Indicate the primary causal link between the CLO and PLO by ticking '√' in the appropriate box. | AI41: Leadership, Autonomy and Responsibility
D42: C1 = Knowledge & Understanding, C2 = Cognitive Skills, C3A = Practical Skills, C3B = Interpersonal Skills, C3C = Communication Skills, C3D = Digital Skills, | AI42: Personal Skills
D43: C3E = Numeracy Skills, C3F = Leadership, Autonomy & Responsibility, C4A = Personal Skills, C4B = Entrepreneurial Skills, C5 = Ethics & Professionalism | AI43: Entrepreneurial Skills
AI44: Ethics and Professionalism
B45: 9 | C45: Transferable Skills (if applicable)
C46: (Skills learned in the course of study which can be useful and utilized in other settings) | I46: 1 | J46: Cognitive skills | AI46: C1
I47: 2 | J47: Numeracy Skills | AI47: C2
I48: 3 | J48: Personal Skills | AI48: C3A
I49: Open-ended response (if any) | AI49: C3B
I50: 4 | AI50: C3C
AI51: C3D
AB52: ` | AI52: C3E
B53: 10 | C53: Distribution of Student Learning Time (SLT) | AI53: C3F
C54: Note: This SLT calculation is designed for home grown programme only. | AI54: C4A
AI55: C4B
D56: Course Content Outline and Subtopics | K56: CLO* | M56: Learning and Teaching Activities** | X56: Total SLT | AI56: C5
M57: Face-to-Face (F2F) | U57: NF2F Independent Learning (Asynchronous)
M58: Physical | Q58: Online/ Technology-mediated (Synchronous)
M59: L | N59: T | O59: P | P59: O | Q59: L | R59: T | S59: P | T59: O
D60: 1 | E60: Introduction to Microeconomics • Definition of Economics • Types of Microeconomics Analysis • Discipline of Economics • Scarcity, Choices and Opportunity Cost • Production Possibilities Curve • Fundamentals Economic Questions • Economic System § Circular Flow Diagram | K60: 1 | M60: 2 | N60: 1 | U60: 3
D61: 2 | E61: Demand and Supply & Market Equilibrium • Introduction • Demand • Supply • Definition of Market Equilibrium • Equilibrium Price and Output • Changes in Equilibrium Price and Output • Government Intervention in the Market-Taxes - Subsidies - Market Failure | K61: 2 | M61: 4 | N61: 2 | U61: 5
D62: 3 | E62: Elasticity and Its Application • Introduction • Price Elasticity of Demand Income Elasticity of Demand • Cross Elasticity of Demand • Price Elasticity of Supply • Application of Concept of Elasticity | K62: 1 | M62: 2 | N62: 1 | U62: 3
D63: 4 | E63: Theory of Consumer Behaviour • Introduction • Utility Theory and Individual Choice • Cardinal Utility Theory • Ordinal Utility Theory • The Consumer Choice • Changes in Income and Consumption Choices • Price Changes and Consumption Choices • Consumer Surplus | K63: 1 | M63: 2 | N63: 1 | U63: 3
D64: 5 | E64: Theory of Production • Definition of Production • Classification of Factors of Productions • Production Function Time Frame for Production Function • Short & Long Run Production Function | K64: 1 | M64: 2 | N64: 1 | U64: 3
D65: 6 | E65: Cost of Production • Introduction • Cost Concepts Cost Concepts in Short Run • Short Run Average Total Cost Curve • Cost Curves in the Long Run | K65: 1 | M65: 2 | N65: 1 | U65: 3
D66: 7 | E66: Market Structure • Definition • Types of market • Market Characteristic • Comparison of Monopoly and Perfect competition | K66: 1 | M66: 2 | N66: 1 | U66: 3
D67: 8 | E67: Introduction to Macroeconomics • What is macroeconomics about? • Resource Allocation • Policy Objectives • Conflicts and Trade-off • Role of the State • Two Approaches • Basic Assumptions • GNP Growth and Human Welfare | K67: 2 | M67: 2 | N67: 1 | U67: 3
D68: 9 | E68: National Income: Variants and Measurement • National Income Accounting • A Simple Two-Sector Model • Productive and Unproductive Activities • Intermediate Products and Final Products • Input-Output Tables • Methods of Measuring National Product • Personal and Disposable Incomes | K68: 2 | M68: 2 | N68: 1 | U68: 3
D69: 10 | E69: Aggregate Demand and Aggregate Supply • Introduction • Price Level • Aggregate Demand • Determinants of Aggregate Demand • Aggregate Supply • Determinants of Aggregate Supply • Change in Equilibrium | K69: 2 | M69: 2 | N69: 1 | U69: 3
D70: =D69+1 -> 11 | E70: Price Level and Monetary Policy • The Price Level and The Value of Money • Quantity Theory of Money : The Exchange Equation • Inflation and Consequences • Deflation and Consequences • Market Equilibrium and Disequilibrium • Business Cycles • Policy Instruments • Monetary Policy in Malaysia | K70: 3 | M70: 2 | N70: 1 | U70: 3
D71: 12 | E71: Fiscal Policy • Introduction • The Mechanics of Fiscal Policy § Treatment of Inflation • Recessionary Cures • Evaluation of Fiscal Policy • Non-discretionary Fiscal Policy • Islam and Fiscal Policy § Sources of Revenue in an Islamic Economy | K71: 3 | M71: 2 | N71: 1 | U71: 3
D72: 13 | E72: National Income Distribution • Measurement of Inequalities • Growth and Equity Relationship • Income: Generation and Distribution • Limitations and Precautions • Cross Country Income Inequalities • Islamic Economics and Income Distribution | K72: 3 | M72: 2 | N72: 1 | U72: 3
D73: 14 | E73: Open Economies: International Trade, Balance of Payments and Exchange Rates • Basis of Trade: The Theory • Barriers to Trade • Balance of Payments • Exchange rates: Fixity versus Flexibility | K73: 3 | M73: 2 | N73: 1 | U73: 3
D74: 15
D75: 16
D76: 17
D77: 18
D78: 19
D79: 20
D80: SUB-TOTAL SLT: | X80: =SUM(M60:P79)+SUM(Q60:T79)+SUM(U60:W79) -> 89
D81: Continous Assessement | K81: % | M81: Face-to-Face (F2F) | U81: NF2F Independent Learning for Assessment (Asynchronous)
M82: Physical | Q82: Online/ Technology-mediated (Synchronous)
D83: 1 | E83: Group Assignment | K83: 0.3 | M83: 5 | U83: 10
D84: 2 | E84: Mid Term | K84: 0.2 | M84: 2 | U84: 3
D85: 3
D86: 4
D87: 5
D88: SUB-TOTAL SLT: | X88: =SUM(M83:W87) -> 20
D89: Final Assessement | K89: % | M89: Face-to-Face (F2F) | U89: NF2F Independent Learning for Assessment (Asynchronous)
M90: Physical | Q90: Online/ Technology-mediated (Synchronous)
D91: 1 | E91: Final Exam | K91: 0.5 | M91: 3 | U91: 8
D92: 2
D93: 3
D94: 4
D95: 5
D96: SUB-TOTAL SLT: | X96: =SUM(M91:W95) -> 11
D98: SLT for Assessment: | X98: =X88+X96 -> 31
D99: GRAND TOTAL SLT: | X99: =X98+X80 -> 120
D100: A | E100: % SLT for F2F Physical Component: [Total F2F Physical /(Total F2F Physical + Total F2F Online + Total Independent Learning) x 100)] | X100: =IFERROR(((SUM(M60:P79)+SUM(M83:P87)+SUM(M91:P95))/X99)* 100,"") -> 45.83333333
D102: B | E102: % SLT for Online & Independent Learning Component: [(Total F2F Online + Total Independent Learning) /( Total F2F Physical + Total F2F Online + Total Independent Learning) x 100] | X102: =IFERROR((SUM(Q60:W79)+SUM(Q83:W87) + SUM(Q91:W95))/X99 * 100,"") -> 54.16666667
D103: C | E103: % SLT for All Practical Component: [% F2F Physical Practical + % F2F Online Practical] | X103: =IFERROR(X104+X105,"") -> 0
D104: C1 | E104: % SLT for F2F Physical Practical Component [Total F2F Physical Practical /( Total F2F Physical + Total F2F Online + Total Independent Learning) x 100)] | X104: =IFERROR(SUM(O60:O79)/X99*100,"") -> 0
D105: C2 | E105: % SLT for F2F Online Practical Component [Total F2F Online Practical / (Total F2F Physical + Total F2F Online + Total Independent Learning) x 100] | X105: =IFERROR(SUM(S60:S79)/X99*100,"") -> 0
Z106: =IFERROR(X102+X104,"") -> 54.16666667
D107: Please tick (√) if this course is Industrial Training/ Clinical Placement/ Practicum using 50% of Effective Learning Time (ELT)
D108: Note:
D109: * Indicate the CLO based on the CLO's numbering in Item 8
D110: ** For ODL programme: Courses with mandatory practical requiremnets imposed by the programme standards or any related standards can be exempted from complying to the minimum 80% ODL delivery rule in the SLT.
B112: 11 | C112: Identify special requirement or resources to deliver the course (e.g., software, nursery, computer lab, simulation room etc) | K112: None
B114: 12 | C114: References (include required and further readings, and should be the most current) | K114: Mankiw, N. G. (2024). Principles of economics (10th ed.). Cengage Learning.
B116: 13 | C116: Other additional information (if applicable) | K116: Mankiw, N. G. (2022). Principles of economics (9th rev. ed.). Cengage Learning.
C119: Note: Number of PLO indicated is purely for illustration purposes only and the number is subjected to the curriculum design.

Sheet BUS6133
B2: Back To FORM @ TEMPLATE
AI3: √
B5: 1 | C5: Course Name: | F5: Digital Business | AI5: Semester
C6: Course Code: | F6: BUS6133 | AI6: 1
C7: Course Classification: | F7: Major (core) | AI7: 2
B8: 2 | C8: Synopsis: | F8: This subject explore the basics of digital marketing, E-Commerce and Web Design and marketing plaNning for SMEs in various context. This course provides students with high-quality teaching and learning experiences that are relevant to digital marketing, E Commerce and web design applications and its use in SMEs. This course will help learners to plan their SME promotions using digital marketing tools. | AI8: 3
B9: =B8+1 -> 3 | C9: Name(s) of Academic Staff: | F9: 1 | G9: Mr. Chandra Kanthen A/L Jumbulingam
F10: 2 | AI10: Year Offered
F11: 3 | AI11: 1
B12: =B9+1 -> 4 | C12: Semester and Year offered: | F12: Year Offered | I12: 1 | J12: Semester | L12: 3 | M12: Remarks: | AI12: 2
B13: =B12+1 -> 5 | C13: Credit Value: | F13: =IF(X107 ="√",INT(X99/80),INT(X99/40)) -> 3 | AI13: 3
B14: 6 | C14: Pre-requisite/ co-requisite (if any): | AI14: 4
AI15: 5
B16: 7 | C16: Course Learning Outcomes (CLO) | F16: CLO1 | H16: Explain concepts related to digital marketing, E-Commerce and Web Design and SME marketing planning (PLO1,C2) | AI16: 6
F17: CLO2 | H17: Identify a digital marketing campaign in business organisation. (PLO5,A4) | AI17: 7
F18: CLO3 | H18: Analyse the complex problems in designing E-commerce and web design applications.(PLO2,C4) | AI18: 8
AI20: Compulsory
AI21: Major (core)
AI22: Minor
AI23: Elective (core)
AI24: Elective (open/free)
B25: 8 | C25: Mapping of the Course Learning Outcomes to the Programme Learning Outcomes, Teaching Methods and Assessment Methods
D27: Course Learning Outcomes | F27: Programme Learning Outcomes (PLO) | R27: Teaching Methods | W27: Assessment Methods
F28: PLO 1 | G28: PLO 2 | H28: PLO 3 | I28: PLO 4 | J28: PLO 5 | K28: PLO 6 | L28: PLO 7 | M28: PLO 8 | N28: PLO 9 | O28: PLO 10 | P28: PLO 11
D29: =IF(ISBLANK(F16),"",F16) -> CLO1 | F29: √ | R29: Lecture/Tutorial | W29: Assignment/Presentation
D30: CLO2 | J30: √ | R30: Lecture/Tutorial/Case Study | W30: Mid Term
D31: CLO3 | G31: √ | R31: Lecture/Tutorial | W31: Final Exam
AI36: Cognitive skills
D37: Mapping with MQF Cluster of Learning Outcomes | F37: C1 | G37: C2 | J37: C3C | AI37: Interpersonal skills
AI38: Communication Skills
AI39: Digital Skills
AI40: Numeracy Skills
D41: Indicate the primary causal link between the CLO and PLO by ticking '√' in the appropriate box. | AI41: Leadership, Autonomy and Responsibility
D42: C1 = Knowledge & Understanding, C2 = Cognitive Skills, C3A = Practical Skills, C3B = Interpersonal Skills, C3C = Communication Skills, C3D = Digital Skills, | AI42: Personal Skills
D43: C3E = Numeracy Skills, C3F = Leadership, Autonomy & Responsibility, C4A = Personal Skills, C4B = Entrepreneurial Skills, C5 = Ethics & Professionalism | AI43: Entrepreneurial Skills
AI44: Ethics and Professionalism
B45: 9 | C45: Transferable Skills (if applicable)
C46: (Skills learned in the course of study which can be useful and utilized in other settings) | I46: 1 | J46: Digital Skills | AI46: C1
I47: 2 | J47: Personal Skills | AI47: C2
I48: 3 | J48: Interpersonal skills | AI48: C3A
I49: Open-ended response (if any) | AI49: C3B
I50: 4 | AI50: C3C
AI51: C3D
AB52: ` | AI52: C3E
B53: 10 | C53: Distribution of Student Learning Time (SLT) | AI53: C3F
C54: Note: This SLT calculation is designed for home grown programme only. | AI54: C4A
AI55: C4B
D56: Course Content Outline and Subtopics | K56: CLO* | M56: Learning and Teaching Activities** | X56: Total SLT | AI56: C5
M57: Face-to-Face (F2F) | U57: NF2F Independent Learning (Asynchronous)
M58: Physical | Q58: Online/ Technology-mediated (Synchronous)
M59: L | N59: T | O59: P | P59: O | Q59: L | R59: T | S59: P | T59: O
D60: 1 | E60: Fundamentals of Marketing -Customer segmentation and identifying channel -Setting campaign's objectives | K60: 1 | M60: 3 | N60: 1 | U60: 3
D61: 2 | E61: Social Media Marketing -Increase customer loyalty on social media -Social media and content publishing platflorm | K61: 1 | M61: 3 | N61: 1 | U61: 3
D62: 3 | E62: Facebook and Instagram Advertising -Re-targeting -Creating campaigns | K62: 1 | M62: 3 | N62: 1 | U62: 3
D63: 4 | E63: Introduction to E Commerce Definitons and meaning to E Commerce and an intordution to its development. The Impact of E Commerce in today's business world. What is an E Commerce Website. What types of E Commerce Website are available and the Top E Commerce Websites that are available in today's market. | K63: 1 | M63: 3 | N63: 1 | U63: 4
D64: 5 | E64: Content Marketing -Effective content marketing campaigns -Content strategy | K64: 1 | M64: 3 | N64: 1 | U64: 3
D65: 6 | E65: Google Analytics -Google Analytics account structure -Dashboards with data studio | K65: 1 | M65: 3 | N65: 1 | U65: 3
D66: 7 | E66: Designing your Website What is your "Line"? Defining your target customers. Creating a Blueprint for your website. Creating a suitable website design. | K66: 2 | M66: 3 | N66: 1 | U66: 4
D67: 8 | E67: Completing the ECommerce Website How to add product to your Ecommerce site? How to customize your Ecommerce store page? How to customize your Ecommerce product page? | K67: 2 | M67: 3 | N67: 1 | U67: 3
D68: 9 | E68: How to Creat an ECommernce Website Using WooCommerce and WordPress Choosing a domain name for your ecommerce website. Choosing a web hosting plan. Installing Word Press. Installing WooCommerce Plugin. Installing and activating a theme. | K68: 3 | M68: 3 | N68: 1 | U68: 4
D69: 10 | E69: Marketing an SME Website. The Marketing Plan. | K69: 3 | M69: 3 | N69: 1 | U69: 4
D70: =D69+1 -> 11 | E70: Implementing the Marketing Plan for SME. On-Site Marketing Techniques. | K70: 3 | M70: 3 | N70: 1 | U70: 4
D71: 12 | E71: Promoting SMES on digital platforms | K71: 3 | M71: 3 | N71: 1 | U71: 4
D72: 13
D73: 14
D74: 15
D75: 16
D76: 17
D77: 18
D78: 19
D79: 20
D80: SUB-TOTAL SLT: | X80: =SUM(M60:P79)+SUM(Q60:T79)+SUM(U60:W79) -> 90
D81: Continous Assessement | K81: % | M81: Face-to-Face (F2F) | U81: NF2F Independent Learning for Assessment (Asynchronous)
M82: Physical | Q82: Online/ Technology-mediated (Synchronous)
D83: 1 | E83: Assignment – Case Analysis / Report | K83: 0.3 | M83: 2 | U83: 10
D84: 2 | E84: Mid Term/Test | K84: 0.2 | M84: 2 | U84: 3
D85: 3
D86: 4
D87: 5
D88: SUB-TOTAL SLT: | X88: =SUM(M83:W87) -> 17
D89: Final Assessement | K89: % | M89: Face-to-Face (F2F) | U89: NF2F Independent Learning for Assessment (Asynchronous)
M90: Physical | Q90: Online/ Technology-mediated (Synchronous)
D91: 1 | E91: Final Exam | K91: 0.5 | M91: 3 | U91: 10
D92: 2
D93: 3
D94: 4
D95: 5
D96: SUB-TOTAL SLT: | X96: =SUM(M91:W95) -> 13
D98: SLT for Assessment: | X98: =X88+X96 -> 30
D99: GRAND TOTAL SLT: | X99: =X98+X80 -> 120
D100: A | E100: % SLT for F2F Physical Component: [Total F2F Physical /(Total F2F Physical + Total F2F Online + Total Independent Learning) x 100)] | X100: =IFERROR(((SUM(M60:P79)+SUM(M83:P87)+SUM(M91:P95))/X99)* 100,"") -> 45.83333333
D102: B | E102: % SLT for Online & Independent Learning Component: [(Total F2F Online + Total Independent Learning) /( Total F2F Physical + Total F2F Online + Total Independent Learning) x 100] | X102: =IFERROR((SUM(Q60:W79)+SUM(Q83:W87) + SUM(Q91:W95))/X99 * 100,"") -> 54.16666667
D103: C | E103: % SLT for All Practical Component: [% F2F Physical Practical + % F2F Online Practical] | X103: =IFERROR(X104+X105,"") -> 0
D104: C1 | E104: % SLT for F2F Physical Practical Component [Total F2F Physical Practical /( Total F2F Physical + Total F2F Online + Total Independent Learning) x 100)] | X104: =IFERROR(SUM(O60:O79)/X99*100,"") -> 0
D105: C2 | E105: % SLT for F2F Online Practical Component [Total F2F Online Practical / (Total F2F Physical + Total F2F Online + Total Independent Learning) x 100] | X105: =IFERROR(SUM(S60:S79)/X99*100,"") -> 0
Z106: =IFERROR(X102+X104,"") -> 54.16666667
D107: Please tick (√) if this course is Industrial Training/ Clinical Placement/ Practicum using 50% of Effective Learning Time (ELT)
D108: Note:
D109: * Indicate the CLO based on the CLO's numbering in Item 8
D110: ** For ODL programme: Courses with mandatory practical requiremnets imposed by the programme standards or any related standards can be exempted from complying to the minimum 80% ODL delivery rule in the SLT.
B112: 11 | C112: Identify special requirement or resources to deliver the course (e.g., software, nursery, computer lab, simulation room etc) | K112: None
B114: 12 | C114: References (include required and further readings, and should be the most current) | K114: 1. Hanlon, A. (2024). Digital business: Strategy, management & transformation. SAGE Publications Ltd.
B116: 13 | C116: Other additional information (if applicable) | K116: 2. Rogers, D. L. (2023). The Digital Transformation Roadmap: Rebuild your organization for continuous change. Columbia Business School Publishing
C119: Note: Number of PLO indicated is purely for illustration purposes only and the number is subjected to the curriculum design.

Sheet MTS6113
B2: Back To FORM @ TEMPLATE
AI3: √
B5: 1 | C5: Course Name: | F5: BUSINESS ANALYTICS | AI5: Semester
C6: Course Code: | F6: MTS6113 | AI6: 1
C7: Course Classification: | F7: Major (core) | AI7: 2
B8: 2 | C8: Synopsis: | F8: Business analytics is a field that drives practical application of statistical and mathematical analysis that focuses on providing actionable recommendations. The insights they are derived from data will be used to draw a concrete conclusions aout business decision. | AI8: 3
B9: =B8+1 -> 3 | C9: Name(s) of Academic Staff: | F9: 1 | G9: Mr. Gunalan A/L Nachiappan
F10: 2 | AI10: Year Offered
F11: 3 | AI11: 1
B12: =B9+1 -> 4 | C12: Semester and Year offered: | F12: Year Offered | I12: 1 | J12: Semester | L12: 3 | M12: Remarks: | AI12: 2
B13: =B12+1 -> 5 | C13: Credit Value: | F13: =IF(X107 ="√",INT(X99/80),INT(X99/40)) -> 2 | AI13: 3
B14: 6 | C14: Pre-requisite/ co-requisite (if any): | F14: NIL | AI14: 4
AI15: 5
B16: 7 | C16: Course Learning Outcomes (CLO) | F16: CLO1 | H16: Describe the terms and concepts in mathematics and statistics which associated to business application (PLO1, C1) | AI16: 6
F17: CLO2 | H17: Perform calculation in the context of business mathematics and statistics (PLO2, C2) | AI17: 7
F18: CLO3 | H18: Practice knowledge and skills with practical problems in economic practise. (PLO7, A2 ) | AI18: 8
AI20: Compulsory
AI21: Major (core)
AI22: Minor
AI23: Elective (core)
AI24: Elective (open/free)
B25: 8 | C25: Mapping of the Course Learning Outcomes to the Programme Learning Outcomes, Teaching Methods and Assessment Methods
D27: Course Learning Outcomes | F27: Programme Learning Outcomes (PLO) | R27: Teaching Methods | W27: Assessment Methods
F28: PLO 1 | G28: PLO 2 | H28: PLO 3 | I28: PLO 4 | J28: PLO 5 | K28: PLO 6 | L28: PLO 7 | M28: PLO 8 | N28: PLO 9 | O28: PLO 10 | P28: PLO 11
D29: =IF(ISBLANK(F16),"",F16) -> CLO1 | F29: √ | R29: Interactive Lecture / Tutorial | W29: TCA
D30: CLO2 | G30: √ | R30: Interactive Lecture / Tutorial | W30: FINAL EXAM
D31: CLO3 | L31: √ | R31: Interactive Lecture / Tutorial | W31: ASSIGNMENT
AI36: Cognitive skills
D37: Mapping with MQF Cluster of Learning Outcomes | F37: C1 | G37: C2 | L37: C3E | AI37: Interpersonal skills
AI38: Communication Skills
AI39: Digital Skills
AI40: Numeracy Skills
D41: Indicate the primary causal link between the CLO and PLO by ticking '√' in the appropriate box. | AI41: Leadership, Autonomy and Responsibility
D42: C1 = Knowledge & Understanding, C2 = Cognitive Skills, C3A = Practical Skills, C3B = Interpersonal Skills, C3C = Communication Skills, C3D = Digital Skills, | AI42: Personal Skills
D43: C3E = Numeracy Skills, C3F = Leadership, Autonomy & Responsibility, C4A = Personal Skills, C4B = Entrepreneurial Skills, C5 = Ethics & Professionalism | AI43: Entrepreneurial Skills
AI44: Ethics and Professionalism
B45: 9 | C45: Transferable Skills (if applicable)
C46: (Skills learned in the course of study which can be useful and utilized in other settings) | I46: 1 | J46: Cognitive skills | AI46: C1
I47: 2 | J47: Numeracy Skills | AI47: C2
I48: 3 | J48: Digital Skills | AI48: C3A
I49: Open-ended response (if any) | AI49: C3B
I50: 4 | AI50: C3C
AI51: C3D
AB52: ` | AI52: C3E
B53: 10 | C53: Distribution of Student Learning Time (SLT) | AI53: C3F
C54: Note: This SLT calculation is designed for home grown programme only. | AI54: C4A
AI55: C4B
D56: Course Content Outline and Subtopics | K56: CLO* | M56: Learning and Teaching Activities** | X56: Total SLT | AI56: C5
M57: Face-to-Face (F2F) | U57: NF2F Independent Learning (Asynchronous)
M58: Physical | Q58: Online/ Technology-mediated (Synchronous)
M59: L | N59: T | O59: P | P59: O | Q59: L | R59: T | S59: P | T59: O
D60: 1 | E60: Introduction to Statistics | K60: 1 | M60: 2 | N60: 1 | U60: 1
D61: 2 | E61: Simple & Compound Interest - simple interest - compound interest | K61: 2 | M61: 4 | N61: 2 | U61: 1
D62: 3 | E62: Sampling method & Sampling distribution - Probability & Non probablity sampling - Data collection method | K62: 1 | M62: 4 | N62: 2 | U62: 1
D63: 4 | E63: Concept of probability - Introduction to probability - Permutation & Combination - Union, Intersection & Complement | K63: 2 | M63: 2 | N63: 1 | U63: 1
D64: 5 | E64: Business Analytics - The Roles of Business Analytics - Business Applications of Equations and graphs | K64: 3 | M64: 4 | N64: 2 | U64: 1
D65: 6 | E65: Describe data graphically - Data Presentation - Frequency distribution table - Histogram, Frequency polygon & Ogive | K65: 3 | M65: 4 | N65: 2 | U65: 1
D66: 7 | E66: Mathematics of Buying (Discount and Invoice) Mathematicc of Selling (Markup and Marksdowns) -Chain discount -Single discount and equivalent - Markups -Markdowns | K66: 2 | M66: 6 | N66: 2 | U66: 2
D67: 8 | E67: Descriptive statistics - measure of central tendency - measure of dispersion | K67: 2 | M67: 4 | N67: 2 | U67: 1
D68: 9 | E68: Time Series Data Analysis - Time series - Future value of time series | K68: 3 | M68: 4 | N68: 2 | U68: 1
D69: 10 | E69: Inferential Statistics - Estimation - Hypothesis testing | K69: 2 | M69: 4 | N69: 2 | U69: 1
D70: =D69+1 -> 11 | E70: Depreciation - Terms related to depreciation - Straight line method - Declining balance method - Sum of year digits method | K70: 2 | M70: 6 | N70: 3 | V70: 2
D71: 12 | E71: Correlation & Regression - Scatter diagram - Correlation analysis - Simple regression analysis | K71: 3 | M71: 4 | N71: 2 | V71: 1
D72: 13 | E72: Calculus - Differentiation - Integration | K72: 2 | M72: 2 | N72: 1 | V72: 1
D73: 14
D74: 15
D75: 16
D76: 17
D77: 18
D78: 19
D79: 20
D80: SUB-TOTAL SLT: | X80: =SUM(M60:P79)+SUM(Q60:T79)+SUM(U60:W79) -> 89
D81: Continous Assessement | K81: % | M81: Face-to-Face (F2F) | U81: NF2F Independent Learning for Assessment (Asynchronous)
M82: Physical | Q82: Online/ Technology-mediated (Synchronous)
D83: 1 | E83: ASSIGNMENT | K83: 0.3 | M83: 2 | U83: 10
D84: 2 | E84: MID TERM | K84: 0.2 | M84: 2 | U84: 4
D85: 3
D86: 4
D87: 5
D88: SUB-TOTAL SLT: | X88: =SUM(M83:W87) -> 18
D89: Final Assessement | K89: % | M89: Face-to-Face (F2F) | U89: NF2F Independent Learning for Assessment (Asynchronous)
M90: Physical | Q90: Online/ Technology-mediated (Synchronous)
D91: 1 | E91: FINAL EXAM | K91: 0.5 | M91: 3 | U91: 9
D92: 2
D93: 3
D94: 4
D95: 5
D96: SUB-TOTAL SLT: | X96: =SUM(M91:W95) -> 12
D98: SLT for Assessment: | X98: =X88+X96 -> 30
D99: GRAND TOTAL SLT: | X99: =X98+X80 -> 119
D100: A | E100: % SLT for F2F Physical Component: [Total F2F Physical /(Total F2F Physical + Total F2F Online + Total Independent Learning) x 100)] | X100: =IFERROR(((SUM(M60:P79)+SUM(M83:P87)+SUM(M91:P95))/X99)* 100,"") -> 68.06722689
D102: B | E102: % SLT for Online & Independent Learning Component: [(Total F2F Online + Total Independent Learning) /( Total F2F Physical + Total F2F Online + Total Independent Learning) x 100] | X102: =IFERROR((SUM(Q60:W79)+SUM(Q83:W87) + SUM(Q91:W95))/X99 * 100,"") -> 31.93277311
D103: C | E103: % SLT for All Practical Component: [% F2F Physical Practical + % F2F Online Practical] | X103: =IFERROR(X104+X105,"") -> 0
D104: C1 | E104: % SLT for F2F Physical Practical Component [Total F2F Physical Practical /( Total F2F Physical + Total F2F Online + Total Independent Learning) x 100)] | X104: =IFERROR(SUM(O60:O79)/X99*100,"") -> 0
D105: C2 | E105: % SLT for F2F Online Practical Component [Total F2F Online Practical / (Total F2F Physical + Total F2F Online + Total Independent Learning) x 100] | X105: =IFERROR(SUM(S60:S79)/X99*100,"") -> 0
Z106: =IFERROR(X102+X104,"") -> 31.93277311
D107: Please tick (√) if this course is Industrial Training/ Clinical Placement/ Practicum using 50% of Effective Learning Time (ELT)
D108: Note:
D109: * Indicate the CLO based on the CLO's numbering in Item 8
D110: ** For ODL programme: Courses with mandatory practical requiremnets imposed by the programme standards or any related standards can be exempted from complying to the minimum 80% ODL delivery rule in the SLT.
B112: 11 | C112: Identify special requirement or resources to deliver the course (e.g., software, nursery, computer lab, simulation room etc) | K112: None
B114: 12 | C114: References (include required and further readings, and should be the most current) | K114: Lau, T. K., Phang, Y. N., & Awang, Z. (2022). Statistics for UiTM (6th ed.). SJ Learning
B116: 13 | C116: Other additional information (if applicable) | K116: Shmueli, G., et al. (2023). Machine learning for business analytics: Concepts, techniques, and applications in R (2nd ed.). Wiley.
C119: Note: Number of PLO indicated is purely for illustration purposes only and the number is subjected to the curriculum design.

Sheet ACC6123
B2: Back To FORM @ TEMPLATE
AI3: √
B5: 1 | C5: Course Name: | F5: Financial Accounting | AI5: Semester
C6: Course Code: | F6: ACC6123 | AI6: 1
C7: Course Classification: | F7: Major (core) | AI7: 2
B8: 2 | C8: Synopsis: | F8: The module will enable students to develop an understanding and knowledge of financial statements by following the preparation of a set of financial statements. Students will be guided thru from the first entries in the books of accounts till the final preparation of an annual financial report. Analytical skills will be developed through the preparation of cash book and bank reconciliation statement. | AI8: 3
B9: =B8+1 -> 3 | C9: Name(s) of Academic Staff: | F9: 1 | G9: Mr. Tan Weng Kean
F10: 2 | AI10: Year Offered
F11: 3 | AI11: 1
B12: =B9+1 -> 4 | C12: Semester and Year offered: | F12: Year Offered | I12: 1 | J12: Semester | L12: 3 | M12: Remarks: | AI12: 2
B13: =B12+1 -> 5 | C13: Credit Value: | F13: =IF(X107 ="√",INT(X99/80),INT(X99/40)) -> 3 | AI13: 3
B14: 6 | C14: Pre-requisite/ co-requisite (if any): | AI14: 4
AI15: 5
B16: 7 | C16: Course Learning Outcomes (CLO) | F16: CLO1 | H16: Explain the basic principles, concepts and assumptions in accounting (PLO1, C3) | AI16: 6
F17: CLO2 | H17: Analyse the double-entry system in accounting transactions and posting the entry into the accounting journals and ledger (PLO2, C4) | AI17: 7
F18: CLO3 | H18: Prepare the journals, ledgers, trial balance and the books of original entries according to the Accounting Standards and Framework (PLO7, C3) | AI18: 8
AI20: Compulsory
AI21: Major (core)
AI22: Minor
AI23: Elective (core)
AI24: Elective (open/free)
B25: 8 | C25: Mapping of the Course Learning Outcomes to the Programme Learning Outcomes, Teaching Methods and Assessment Methods
D27: Course Learning Outcomes | F27: Programme Learning Outcomes (PLO) | R27: Teaching Methods | W27: Assessment Methods
F28: PLO 1 | G28: PLO 2 | H28: PLO 3 | I28: PLO 4 | J28: PLO 5 | K28: PLO 6 | L28: PLO 7 | M28: PLO 8 | N28: PLO 9 | O28: PLO 10 | P28: PLO 11
D29: =IF(ISBLANK(F16),"",F16) -> CLO1 | F29: √ | R29: Interactive Lecture / Tutorial/Blended | W29: Individual Assigment/ Midterm
D30: CLO2 | G30: √ | R30: Interactive Lecture / Tutorial/Simulation | W30: Group Assignment / Final Exam
D31: CLO3 | L31: √ | R31: Interactive Lecture / Tutorial/Simulation | W31: Group Assignment / Final Exam
AI36: Cognitive skills
D37: Mapping with MQF Cluster of Learning Outcomes | F37: C1 | G37: C2 | L37: C3E | AI37: Interpersonal skills
AI38: Communication Skills
AI39: Digital Skills
AI40: Numeracy Skills
D41: Indicate the primary causal link between the CLO and PLO by ticking '√' in the appropriate box. | AI41: Leadership, Autonomy and Responsibility
D42: C1 = Knowledge & Understanding, C2 = Cognitive Skills, C3A = Practical Skills, C3B = Interpersonal Skills, C3C = Communication Skills, C3D = Digital Skills, | AI42: Personal Skills
D43: C3E = Numeracy Skills, C3F = Leadership, Autonomy & Responsibility, C4A = Personal Skills, C4B = Entrepreneurial Skills, C5 = Ethics & Professionalism | AI43: Entrepreneurial Skills
AI44: Ethics and Professionalism
B45: 9 | C45: Transferable Skills (if applicable)
C46: (Skills learned in the course of study which can be useful and utilized in other settings) | I46: 1 | J46: Cognitive skills | AI46: C1
I47: 2 | J47: Interpersonal skills | AI47: C2
I48: 3 | J48: Numeracy Skills | AI48: C3A
I49: Open-ended response (if any) | AI49: C3B
I50: 4 | AI50: C3C
AI51: C3D
AB52: ` | AI52: C3E
B53: 10 | C53: Distribution of Student Learning Time (SLT) | AI53: C3F
C54: Note: This SLT calculation is designed for home grown programme only. | AI54: C4A
AI55: C4B
D56: Course Content Outline and Subtopics | K56: CLO* | M56: Learning and Teaching Activities** | X56: Total SLT | AI56: C5
M57: Face-to-Face (F2F) | U57: NF2F Independent Learning (Asynchronous)
M58: Physical | Q58: Online/ Technology-mediated (Synchronous)
M59: L | N59: T | O59: P | P59: O | Q59: L | R59: T | S59: P | T59: O
D60: 1 | E60: Introduction to Accounting - Accounting as the language of business - Nature of business - History of accounting - Users of accounting info - Accounting profession - Accounting concepts and assumptions | K60: 1 | M60: 3 | N60: 1 | U60: 2
D61: 2 | E61: The Accounting Equation - Assets, liabilities, owner’s equity - Analyzing transactions - Relationship with financial statements | K61: 2 | M61: 6 | N61: 2 | U61: 2
D62: 3 | E62: Double Entry System (Part 1): Journalizing - Rules of debit and credit - Recording process - Journal & journalizing | K62: 2 | M62: 2 | N62: 1 | U62: 2
D63: 4 | E63: Double Entry System (Part 2): Posting - General ledger - Posting process - Normal balances | K63: 2 | M63: 3 | N63: 1 | U63: 2
D64: 5 | E64: Trial Balance & Basic Financial Statements - Trial Balance - Income Statement - Balance Sheet | K64: 3 | M64: 6 | N64: 2 | U64: 2
D65: 6 | E65: Cash Book - Two-column & Three-column cash books - Discounts allowed/received - Balancing the cash book | K65: 2 | M65: 3 | N65: 1 | U65: 2
D66: 7 | E66: Bank Reconciliation Statement - Importance - Reconciliation with bank statements and supplier statements - Dishonoured cheques | K66: 1 | M66: 3 | N66: 2 | U66: 2
D67: 8 | E67: Bad Debts & Allowances (Part 1) - Definition & entries - Allowance for doubtful debts - Need for allowance | K67: 2 | M67: 3 | N67: 1 | U67: 2
D68: 9 | E68: Bad Debts & Allowances (Part 2) - Increasing/reducing allowance - Bad debts recovered - Provisions for cash discounts | K68: 2 | M68: 6 | N68: 2 | U68: 2
D69: 10 | E69: Depreciation of Non-Current Assets - Nature & causes - Methods: Straight-line & Reducing balance | K69: 2 | M69: 3 | N69: 1 | U69: 2
D70: =D69+1 -> 11 | E70: Double Entry for Depreciation & Disposal of Assets - Depreciation entries - Disposal of assets - Change in method | K70: 2 | M70: 3 | N70: 1 | U70: 2
D71: 12 | E71: Accruals and Prepayments - Accrued/prepaid expenses - Revenue owing - Multi-period expense/revenue | K71: 2 | M71: 3 | N71: 1 | U71: 2
D72: 13 | E72: Preparation of Final Accounts (with Adjustments) - Adjusted income statement & balance sheet - Full set: journals, ledgers, TB, FS | K72: 3 | M72: 4 | N72: 2 | U72: 2
D73: 14 | E73: Inventory Valuation - FIFO, LIFO, Average cost methods - Profit impact - Valuation decision factors | K73: 3 | M73: 3 | N73: 1 | U73: 2
D74: 15
D75: 16
D76: 17
D77: 18
D78: 19
D79: 20
D80: SUB-TOTAL SLT: | X80: =SUM(M60:P79)+SUM(Q60:T79)+SUM(U60:W79) -> 98
D81: Continous Assessement | K81: % | M81: Face-to-Face (F2F) | U81: NF2F Independent Learning for Assessment (Asynchronous)
M82: Physical | Q82: Online/ Technology-mediated (Synchronous)
D83: 1 | E83: Individual Assignment | K83: 0.1 | M83: 2 | U83: 3
D84: 2 | E84: Group Presentation | K84: 0.3 | M84: 2 | U84: 2
D85: 3 | E85: Mid-Term Examination | K85: 0.1 | M85: 2 | U85: 3
D86: 4
D87: 5
D88: SUB-TOTAL SLT: | X88: =SUM(M83:W87) -> 14
D89: Final Assessement | K89: % | M89: Face-to-Face (F2F) | U89: NF2F Independent Learning for Assessment (Asynchronous)
M90: Physical | Q90: Online/ Technology-mediated (Synchronous)
D91: 1 | E91: Final Exam | K91: 0.5 | M91: 3 | U91: 5
D92: 2
D93: 3
D94: 4
D95: 5
D96: SUB-TOTAL SLT: | X96: =SUM(M91:W95) -> 8
D98: SLT for Assessment: | X98: =X88+X96 -> 22
D99: GRAND TOTAL SLT: | X99: =X98+X80 -> 120
D100: A | E100: % SLT for F2F Physical Component: [Total F2F Physical /(Total F2F Physical + Total F2F Online + Total Independent Learning) x 100)] | X100: =IFERROR(((SUM(M60:P79)+SUM(M83:P87)+SUM(M91:P95))/X99)* 100,"") -> 65.83333333
D102: B | E102: % SLT for Online & Independent Learning Component: [(Total F2F Online + Total Independent Learning) /( Total F2F Physical + Total F2F Online + Total Independent Learning) x 100] | X102: =IFERROR((SUM(Q60:W79)+SUM(Q83:W87) + SUM(Q91:W95))/X99 * 100,"") -> 34.16666667
D103: C | E103: % SLT for All Practical Component: [% F2F Physical Practical + % F2F Online Practical] | X103: =IFERROR(X104+X105,"") -> 0
D104: C1 | E104: % SLT for F2F Physical Practical Component [Total F2F Physical Practical /( Total F2F Physical + Total F2F Online + Total Independent Learning) x 100)] | X104: =IFERROR(SUM(O60:O79)/X99*100,"") -> 0
D105: C2 | E105: % SLT for F2F Online Practical Component [Total F2F Online Practical / (Total F2F Physical + Total F2F Online + Total Independent Learning) x 100] | X105: =IFERROR(SUM(S60:S79)/X99*100,"") -> 0
Z106: =IFERROR(X102+X104,"") -> 34.16666667
D107: Please tick (√) if this course is Industrial Training/ Clinical Placement/ Practicum using 50% of Effective Learning Time (ELT)
D108: Note:
D109: * Indicate the CLO based on the CLO's numbering in Item 8
D110: ** For ODL programme: Courses with mandatory practical requiremnets imposed by the programme standards or any related standards can be exempted from complying to the minimum 80% ODL delivery rule in the SLT.
B112: 11 | C112: Identify special requirement or resources to deliver the course (e.g., software, nursery, computer lab, simulation room etc) | K112: None
B114: 12 | C114: References (include required and further readings, and should be the most current) | K114: 1. Hanlon, M., Magee, R., & Pfeiffer, G. (2023). Financial Accounting (7th ed.). Pearson.
B116: 13 | C116: Other additional information (if applicable) | K116: 2. Hanlon, M., Magee, R., & Pfeiffer, G. (2022). Financial Accounting for Non‑Accounting Students (7th ed.). [Malaysia ed.].
C119: Note: Number of PLO indicated is purely for illustration purposes only and the number is subjected to the curriculum design.

Sheet ENT6113
B2: Back To FORM @ TEMPLATE
AI3: √
B5: 1 | C5: Course Name: | F5: Entrepreneurship | AI5: Semester
C6: Course Code: | F6: ENT6113 | AI6: 1
C7: Course Classification: | F7: Major (core) | AI7: 2
B8: 2 | C8: Synopsis: | F8: This subject introduces the fundamental concepts of entrepreneurship, including opportunity recognition, business planning, innovation and risk management. It equips students with the skills and mindset to develop and manage new ventures, fostering creativity, strategic thinking and entrepreneurial decision-making in dynamic business environments. | AI8: 3
B9: =B8+1 -> 3 | C9: Name(s) of Academic Staff: | F9: 1 | G9: Ms. Ros Farahwani Binti Rosali
F10: 2 | AI10: Year Offered
F11: 3 | AI11: 1
B12: =B9+1 -> 4 | C12: Semester and Year offered: | F12: Year Offered | I12: 1 | J12: Semester | L12: 3 | M12: Remarks: | AI12: 2
B13: =B12+1 -> 5 | C13: Credit Value: | F13: =IF(X107 ="√",INT(X99/80),INT(X99/40)) -> 3 | AI13: 3
B14: 6 | C14: Pre-requisite/ co-requisite (if any): | AI14: 4
AI15: 5
B16: 7 | C16: Course Learning Outcomes (CLO) | F16: CLO1 | H16: Explain the nature, business impact and potential of a new business development, and the value of roles, characteristics and challenges to be a successful entrepreneur. (PLO1, C3) | AI16: 6
F17: CLO2 | H17: Describe the legal forms of business in Malaysia, and construct and design a business plan which includes the entire component required in the business plan. (PLO10, A3) | AI17: 7
F18: CLO3 | H18: Construct ideas and presentation of leadership skills in preparing business plan in a team, and Describe the theory, nature and potential of e-commerce (PLO2, C3) | AI18: 8
AI20: Compulsory
AI21: Major (core)
AI22: Minor
AI23: Elective (core)
AI24: Elective (open/free)
B25: 8 | C25: Mapping of the Course Learning Outcomes to the Programme Learning Outcomes, Teaching Methods and Assessment Methods
D27: Course Learning Outcomes | F27: Programme Learning Outcomes (PLO) | R27: Teaching Methods | W27: Assessment Methods
F28: PLO 1 | G28: PLO 2 | H28: PLO 3 | I28: PLO 4 | J28: PLO 5 | K28: PLO 6 | L28: PLO 7 | M28: PLO 8 | N28: PLO 9 | O28: PLO 10 | P28: PLO 11
D29: =IF(ISBLANK(F16),"",F16) -> CLO1 | F29: √ | R29: Interactive Lecture, case study/ problem-solving exercises/blended | W29: Midterm
D30: CLO2 | G30: √ | R30: Interactive Lecture, case study/ problem-solving exercises/blended | W30: Assignment
D31: CLO3 | J31: √ | R31: Interactive Lecture, case study/ problem-solving exercises/blended | W31: Final Examination
AI36: Cognitive skills
D37: Mapping with MQF Cluster of Learning Outcomes | F37: C1 | G37: C2 | J37: C3B | AI37: Interpersonal skills
AI38: Communication Skills
AI39: Digital Skills
AI40: Numeracy Skills
D41: Indicate the primary causal link between the CLO and PLO by ticking '√' in the appropriate box. | AI41: Leadership, Autonomy and Responsibility
D42: C1 = Knowledge & Understanding, C2 = Cognitive Skills, C3A = Practical Skills, C3B = Interpersonal Skills, C3C = Communication Skills, C3D = Digital Skills, | AI42: Personal Skills
D43: C3E = Numeracy Skills, C3F = Leadership, Autonomy & Responsibility, C4A = Personal Skills, C4B = Entrepreneurial Skills, C5 = Ethics & Professionalism | AI43: Entrepreneurial Skills
AI44: Ethics and Professionalism
B45: 9 | C45: Transferable Skills (if applicable)
C46: (Skills learned in the course of study which can be useful and utilized in other settings) | I46: 1 | J46: Interpersonal skills | AI46: C1
I47: 2 | J47: Cognitive skills | AI47: C2
I48: 3 | J48: Communication Skills | AI48: C3A
I49: Open-ended response (if any) | AI49: C3B
I50: 4 | J50: As a student, they should be provided with a general understanding of commercializing science and science-based entrepreneurship and of what it takes to start and develop a research-based venture; an introductory experience with developing a business plan, starting from a business idea based on the application of new scientific accomplishments. | AI50: C3C
AI51: C3D
AB52: ` | AI52: C3E
B53: 10 | C53: Distribution of Student Learning Time (SLT) | AI53: C3F
C54: Note: This SLT calculation is designed for home grown programme only. | AI54: C4A
AI55: C4B
D56: Course Content Outline and Subtopics | K56: CLO* | M56: Learning and Teaching Activities** | X56: Total SLT | AI56: C5
M57: Face-to-Face (F2F) | U57: NF2F Independent Learning (Asynchronous)
M58: Physical | Q58: Online/ Technology-mediated (Synchronous)
M59: L | N59: T | O59: P | P59: O | Q59: L | R59: T | S59: P | T59: O
D60: 1 | E60: Unit 1 : Introduction to Entrepreneurship - Introduction to Entrepreneurship - Changing demographics of entrepreneurs - Entrepreneur‘s importance - The entrepreneur process | K60: 1 | M60: 2 | R60: 1 | U60: 2
D61: 2 | E61: Unit 2 : Developing an entrepreneurial mindset - Definition of mindset - Characteristic of a successful entrepreneur - Types of entrepreneur | K61: 1 | M61: 2 | R61: 1 | U61: 2
D62: 3 | E62: Unit 3 : Recognizing opportunities and generating ideas - Differences between opportunities and ideas - Ways to identify opportunity - Sources | K62: 1 | M62: 2 | R62: 1 | U62: 2
D63: 4 | E63: Unit 4 : Creativity and innovation - Concept creativity - Sources of creativity and innovation - Techniques - Artificial intelligence in business | K63: 2 | M63: 2 | R63: 1 | U63: 6
D64: 5 | E64: Unit 5 : Feasibility studies - Feasibility analysis - Product feasibility - Industry feasibility - Organizational feasibility | K64: 2 | M64: 2 | R64: 1 | U64: 6
D65: 6 | E65: Unit 6 : Developing effective business model - Definition - Choosing effective business model - Importance | K65: 2 | M65: 2 | R65: 1 | U65: 6
D66: 7 | E66: Unit 7 : Writing a business plan - Purpose - Reader - Elements of content | K66: 2 | M66: 2 | R66: 1 | U66: 6
D67: 8 | E67: Unit 8 : Building a new-venture - Challenges of new start up - Form of ownership - New-venture team - Legal requirement - Dealing effectively with legal issues | K67: 3 | M67: 2 | R67: 1 | U67: 4
D68: 9 | E68: Unit 9 : Coaching and mentoring for an entrepreneur - Definition of coaching vs. mentoring - Roles and responsibilities of a coach - Importance of coaching - Building a coaching network - Partnerships and Institutional Support | K68: 3 | M68: 2 | R68: 1 | U68: 4
D69: 10 | E69: Unit 10 : Financing for entrepreneur - The importance of getting financing or funding - form of equity funding - Angels investor | K69: 3 | M69: 2 | R69: 1 | U69: 4
D70: =D69+1 -> 11 | E70: Unit 11 : Social entrepreneurship - Concept - Model - Importance - Social problem and Needs assessment | K70: 3 | M70: 4 | R70: 2 | U70: 2
D71: 12 | E71: Unit 12 : Technopreneurship - Definition and scope - Evolution of technopreneurship - Difference between entrepreneur and technopreneur - Importance in the digital economy | K71: 3 | M71: 4 | R71: 2 | U71: 2
D72: 13
D73: 14
D74: 15
D75: 16
D76: 17
D77: 18
D78: 19
D79: 20
D80: SUB-TOTAL SLT: | X80: =SUM(M60:P79)+SUM(Q60:T79)+SUM(U60:W79) -> 88
D81: Continous Assessement | K81: % | M81: Face-to-Face (F2F) | U81: NF2F Independent Learning for Assessment (Asynchronous)
M82: Physical | Q82: Online/ Technology-mediated (Synchronous)
D83: 1 | E83: PROJECT/ASSIGNMENT (1000-1167 words) | K83: 0.2 | M83: 2 | U83: 6
D84: 2 | E84: PRESENTATION | K84: 0.1 | M84: 2 | U84: 3
D85: 3 | E85: MIDTERM | K85: 0.2 | M85: 2 | U85: 5
D86: 4
D87: 5
D88: SUB-TOTAL SLT: | X88: =SUM(M83:W87) -> 20
D89: Final Assessement | K89: % | M89: Face-to-Face (F2F) | U89: NF2F Independent Learning for Assessment (Asynchronous)
M90: Physical | Q90: Online/ Technology-mediated (Synchronous)
D91: 1 | E91: FINAL EXAM | K91: 0.5 | M91: 3 | U91: 9
D92: 2
D93: 3
D94: 4
D95: 5
D96: SUB-TOTAL SLT: | X96: =SUM(M91:W95) -> 12
D98: SLT for Assessment: | X98: =X88+X96 -> 32
D99: GRAND TOTAL SLT: | X99: =X98+X80 -> 120
D100: A | E100: % SLT for F2F Physical Component: [Total F2F Physical /(Total F2F Physical + Total F2F Online + Total Independent Learning) x 100)] | X100: =IFERROR(((SUM(M60:P79)+SUM(M83:P87)+SUM(M91:P95))/X99)* 100,"") -> 30.83333333
D102: B | E102: % SLT for Online & Independent Learning Component: [(Total F2F Online + Total Independent Learning) /( Total F2F Physical + Total F2F Online + Total Independent Learning) x 100] | X102: =IFERROR((SUM(Q60:W79)+SUM(Q83:W87) + SUM(Q91:W95))/X99 * 100,"") -> 69.16666667
D103: C | E103: % SLT for All Practical Component: [% F2F Physical Practical + % F2F Online Practical] | X103: =IFERROR(X104+X105,"") -> 0
D104: C1 | E104: % SLT for F2F Physical Practical Component [Total F2F Physical Practical /( Total F2F Physical + Total F2F Online + Total Independent Learning) x 100)] | X104: =IFERROR(SUM(O60:O79)/X99*100,"") -> 0
D105: C2 | E105: % SLT for F2F Online Practical Component [Total F2F Online Practical / (Total F2F Physical + Total F2F Online + Total Independent Learning) x 100] | X105: =IFERROR(SUM(S60:S79)/X99*100,"") -> 0
Z106: =IFERROR(X102+X104,"") -> 69.16666667
D107: Please tick (√) if this course is Industrial Training/ Clinical Placement/ Practicum using 50% of Effective Learning Time (ELT)
D108: Note:
D109: * Indicate the CLO based on the CLO's numbering in Item 8
D110: ** For ODL programme: Courses with mandatory practical requiremnets imposed by the programme standards or any related standards can be exempted from complying to the minimum 80% ODL delivery rule in the SLT.
B112: 11 | C112: Identify special requirement or resources to deliver the course (e.g., software, nursery, computer lab, simulation room etc) | K112: None
B114: 12 | C114: References (include required and further readings, and should be the most current) | K114: 1. Financial Management Latest Edition by Dr. F. C. Sharma, Rachit Mittal: SBPD Publications, Dr. F. C. Sharma, Rachit Mittal (2020)
B116: 13 | C116: Other additional information (if applicable) | K116: 2. Hisrich, R. D., Peters, M. P., & Shepherd, D. A. (2022). Entrepreneurship (12th ed.). McGraw-Hill Education.
C119: Note: Number of PLO indicated is purely for illustration purposes only and the number is subjected to the curriculum design.

Sheet DAL6143
B2: Back To FORM @ TEMPLATE
AI3: √
B5: 1 | C5: Course Name: | F5: Digital Skill Profeciency | AI5: Semester
C6: Course Code: | F6: DAL6143 | AI6: 1
C7: Course Classification: | F7: Compulsory | AI7: 2
B8: 2 | C8: Synopsis: | F8: In a rapidly evolving digital era, individuals and organizations must possess strong technological and information literacy skills to gather, process, and analyze data effectively. This course equips students with knowledge and hands-on skills in computer applications, data management, and digital communication tools. Students will explore IT systems, networks, web technologies, and digital productivity tools essential for managing tasks efficiently in both personal and professional contexts. Emphasis is placed on developing problem-solving abilities through the use of relevant software applications, and understanding how digital technologies transform modern workplaces and society, while understanding the consequence how technologies has advancing with certain consequences. | AI8: 3
B9: =B8+1 -> 3 | C9: Name(s) of Academic Staff: | F9: 1 | G9: Ms. Ong Cheng Hoon
F10: 2 | AI10: Year Offered
F11: 3 | AI11: 1
B12: =B9+1 -> 4 | C12: Semester and Year offered: | F12: Year Offered | I12: 1 | J12: Semester | L12: 3 | M12: Remarks: | AI12: 2
B13: =B12+1 -> 5 | C13: Credit Value: | F13: =IF(X107 ="√",INT(X99/80),INT(X99/40)) -> 3 | AI13: 3
B14: 6 | C14: Pre-requisite/ co-requisite (if any): | F14: NIL | AI14: 4
AI15: 5
B16: 7 | C16: Course Learning Outcomes (CLO) | F16: CLO1 | H16: Discuss the current and emerging IT & Web Technologies. (PLO1, C2) | AI16: 6
F17: CLO2 | H17: Illustrate the use of computer principles and information technology in daily life. (PLO2, C3) | AI17: 7
F18: CLO3 | H18: Demonstrate the IT skills and knowledge to solve real time problems using relevent software applications. (PLO6, C3) | AI18: 8
AI20: Compulsory
AI21: Major (core)
AI22: Minor
AI23: Elective (core)
AI24: Elective (open/free)
B25: 8 | C25: Mapping of the Course Learning Outcomes to the Programme Learning Outcomes, Teaching Methods and Assessment Methods
D27: Course Learning Outcomes | F27: Programme Learning Outcomes (PLO) | R27: Teaching Methods | W27: Assessment Methods
F28: PLO 1 | G28: PLO 2 | H28: PLO 3 | I28: PLO 4 | J28: PLO 5 | K28: PLO 6 | L28: PLO 7 | M28: PLO 8 | N28: PLO 9 | O28: PLO 10 | P28: PLO 11
D29: =IF(ISBLANK(F16),"",F16) -> CLO1 | F29: √ | R29: Lecture, Tutorial | W29: Test
D30: CLO2 | G30: √ | R30: Lecture, Tutorial | W30: Assignment
D31: CLO3 | K31: √ | R31: Lecture, Practical | W31: Final Report
AI36: Cognitive skills
D37: Mapping with MQF Cluster of Learning Outcomes | F37: C1 | G37: C2 | K37: C3D | AI37: Interpersonal skills
AI38: Communication Skills
AI39: Digital Skills
AI40: Numeracy Skills
D41: Indicate the primary causal link between the CLO and PLO by ticking '√' in the appropriate box. | AI41: Leadership, Autonomy and Responsibility
D42: C1 = Knowledge & Understanding, C2 = Cognitive Skills, C3A = Practical Skills, C3B = Interpersonal Skills, C3C = Communication Skills, C3D = Digital Skills, | AI42: Personal Skills
D43: C3E = Numeracy Skills, C3F = Leadership, Autonomy & Responsibility, C4A = Personal Skills, C4B = Entrepreneurial Skills, C5 = Ethics & Professionalism | AI43: Entrepreneurial Skills
AI44: Ethics and Professionalism
B45: 9 | C45: Transferable Skills (if applicable)
C46: (Skills learned in the course of study which can be useful and utilized in other settings) | I46: 1 | J46: Digital Skills | AI46: C1
I47: 2 | J47: Communication Skills | AI47: C2
I48: 3 | J48: Leadership, Autonomy and Responsibility | AI48: C3A
I49: Open-ended response (if any) | AI49: C3B
I50: 4 | AI50: C3C
AI51: C3D
AB52: ` | AI52: C3E
B53: 10 | C53: Distribution of Student Learning Time (SLT) | AI53: C3F
C54: Note: This SLT calculation is designed for home grown programme only. | AI54: C4A
AI55: C4B
D56: Course Content Outline and Subtopics | K56: CLO* | M56: Learning and Teaching Activities** | X56: Total SLT | AI56: C5
M57: Face-to-Face (F2F) | U57: NF2F Independent Learning (Asynchronous)
M58: Physical | Q58: Online/ Technology-mediated (Synchronous)
M59: L | N59: T | O59: P | P59: O | Q59: L | R59: T | S59: P | T59: O
D60: 1 | E60: Introduction to Information Technology in the Digital Era - Overview of IT and digital transformation - Role of IT in business, communication, and innovation - Evolution from data → information → knowledge | K60: 1 | M60: 2 | N60: 1 | U60: 2
D61: 2 | E61: Computer Systems and Architecture - Hardware components and functions - Computer performance, storage devices, and peripherals - System configuration and compatibility | K61: 1 | M61: 2 | N61: 1 | U61: 2
D62: 3 | E62: Software Systems and Operating Environments - System software vs. application software - Operating system functions and types (Windows, macOS, Linux) - Managing software and updates | K62: 2 | M62: 2 | N62: 1 | U62: 2
D63: 4 | E63: Data and Information Management - Data collection, validation, and organization - File systems, formats, and data processing - Ethical and secure data handling | K63: 2 | M63: 2 | N63: 1 | U63: 2
D64: 5 | E64: Networking and Communication Technologies - Network fundamentals: LAN, WAN, Internet - Network devices, topologies, and protocols - Cloud computing and virtualization basics | K64: 1 | M64: 2 | N64: 1 | U64: 2
D65: 6 | E65: Web Technologies and Digital Communication Tools - Web 2.0, 3.0, and emerging trends - Cloud collaboration tools (Google Workspace, MS 365) - Cyber etiquette and professional online communication | K65: 2 | M65: 2 | N65: 1 | U65: 2
D66: 7 | E66: Digital Productivity Applications I - Word processing: documentation, formatting, referencing - Integration with cloud-based tools (e.g., Google Docs, MS Word 365) - Document automation and collaboration | K66: 3 | M66: 2 | O66: 4 | U66: 5
D67: 8 | E67: Digital Productivity Applications II - Spreadsheets: formulas, functions, data analysis, charts - Data visualization and reporting - Case study: using spreadsheets for decision-making | K67: 3 | M67: 2 | O67: 4 | U67: 5
D68: 9 | E68: Database and Information Systems Fundamentals - Concept of databases and DBMS - Data querying, forms, and reporting - Hands-on with simple database software | K68: 3 | M68: 2 | O68: 4 | U68: 5
D69: 10 | E69: Cybersecurity and Digital Ethics - Information security principles and best practices - Threats, attacks, and protection methods - Legal, ethical, and social implications of IT use | K69: 2 | M69: 2 | O69: 4 | U69: 6
D70: =D69+1 -> 11 | E70: Emerging Digital Trends and Practical Project - Artificial Intelligence (AI), IoT, Big Data (overview) - Practical project: solving a real-life problem using digital tools - Reflection on digital competency for the workplace | K70: 3 | M70: 1 | O70: 2 | U70: 3
D71: 12 | E71: Consequences of IR4 -Impact on Employment and the Future Workforce -Cybersecurity & Privacy -Core Technologies and Their Applications in AI, IOT and Data Analysis Prediction | K71: 1 | M71: 2 | N71: 1 | U71: 2
D72: 13
D73: 14
D74: 15
D75: 16
D76: 17
D77: 18
D78: 19
D79: 20
D80: SUB-TOTAL SLT: | X80: =SUM(M60:P79)+SUM(Q60:T79)+SUM(U60:W79) -> 86
D81: Continous Assessement | K81: % | M81: Face-to-Face (F2F) | U81: NF2F Independent Learning for Assessment (Asynchronous)
M82: Physical | Q82: Online/ Technology-mediated (Synchronous)
D83: 1 | E83: Test | K83: 0.2 | M83: 2 | U83: 4
D84: 2 | E84: Assignment | K84: 0.3 | M84: 2 | U84: 10
D85: 3
D86: 4
D87: 5
D88: SUB-TOTAL SLT: | X88: =SUM(M83:W87) -> 18
D89: Final Assessement | K89: % | M89: Face-to-Face (F2F) | U89: NF2F Independent Learning for Assessment (Asynchronous)
M90: Physical | Q90: Online/ Technology-mediated (Synchronous)
D91: 1 | E91: Final Project | K91: 0.5 | M91: 3 | Q91: 3 | U91: 10
D92: 2
D93: 3
D94: 4
D95: 5
D96: SUB-TOTAL SLT: | X96: =SUM(M91:W95) -> 16
D98: SLT for Assessment: | X98: =X88+X96 -> 34
D99: GRAND TOTAL SLT: | X99: =X98+X80 -> 120
D100: A | E100: % SLT for F2F Physical Component: [Total F2F Physical /(Total F2F Physical + Total F2F Online + Total Independent Learning) x 100)] | X100: =IFERROR(((SUM(M60:P79)+SUM(M83:P87)+SUM(M91:P95))/X99)* 100,"") -> 45.83333333
D102: B | E102: % SLT for Online & Independent Learning Component: [(Total F2F Online + Total Independent Learning) /( Total F2F Physical + Total F2F Online + Total Independent Learning) x 100] | X102: =IFERROR((SUM(Q60:W79)+SUM(Q83:W87) + SUM(Q91:W95))/X99 * 100,"") -> 54.16666667
D103: C | E103: % SLT for All Practical Component: [% F2F Physical Practical + % F2F Online Practical] | X103: =IFERROR(X104+X105,"") -> 15
D104: C1 | E104: % SLT for F2F Physical Practical Component [Total F2F Physical Practical /( Total F2F Physical + Total F2F Online + Total Independent Learning) x 100)] | X104: =IFERROR(SUM(O60:O79)/X99*100,"") -> 15
D105: C2 | E105: % SLT for F2F Online Practical Component [Total F2F Online Practical / (Total F2F Physical + Total F2F Online + Total Independent Learning) x 100] | X105: =IFERROR(SUM(S60:S79)/X99*100,"") -> 0
Z106: =IFERROR(X102+X104,"") -> 69.16666667
D107: Please tick (√) if this course is Industrial Training/ Clinical Placement/ Practicum using 50% of Effective Learning Time (ELT)
D108: Note:
D109: * Indicate the CLO based on the CLO's numbering in Item 8
D110: ** For ODL programme: Courses with mandatory practical requiremnets imposed by the programme standards or any related standards can be exempted from complying to the minimum 80% ODL delivery rule in the SLT.
B112: 11 | C112: Identify special requirement or resources to deliver the course (e.g., software, nursery, computer lab, simulation room etc) | K112: (Computer Lab : Word Processing, Spreadsheet, Presentation, Database - Eg. Microsoft Office Suite)
B114: 12 | C114: References (include required and further readings, and should be the most current) | K114: 1. T. Campbell,, J., Ciampa, M., Clemens, B., M. Freund, S., Ruffolo, L., West, J., Frydenberg, M., Hooper, R. and Frydenberg, M. (2020). TECHNOLOGY FOR SUCCESS. 1st ed. [S.l.]: CENGAGE LEARNING. ISBN: 9780357025680 2. Beskeen D., Jennifer T., Mark C., Barbara C., et al. (2020) Technology for Success and Illustrated Series™ Microsoft® Office 365® & Office 2019. 1st Edition. Cengage Learning. ISBN: 9780357025680
B116: 13 | C116: Other additional information (if applicable) | K116: Morrison, R. (2022). Digital skills: Unlock your talent with technology (2nd ed.). Kogan Page.
C119: Note: Number of PLO indicated is purely for illustration purposes only and the number is subjected to the curriculum design.

Sheet MCV6143
B2: Back To FORM @ TEMPLATE
AI3: √
B5: 1 | C5: Course Name: | F5: Human Values for Sustainability | AI5: Semester
C6: Course Code: | F6: MCV6143 | AI6: 1
C7: Course Classification: | F7: Compulsory | AI7: 2
B8: 2 | C8: Synopsis: | F8: This course explores the role of human values in shaping attitudes towards nature, conservation, and sustainability, emphasizing their impact on the quality of life for both present and future generations. It highlights sustainability as a holistic expression of universal values, such as integrity, unity, respect, empathy and community involvement and aims to develop students’ awareness and internalisation of these principles to support sustainable development. | AI8: 3
B9: =B8+1 -> 3 | C9: Name(s) of Academic Staff: | F9: 1 | G9: Ms. Ros Farahwani Binti Rosali
F10: 2 | AI10: Year Offered
F11: 3 | AI11: 1
B12: =B9+1 -> 4 | C12: Semester and Year offered: | F12: Year Offered | I12: 1 | J12: Semester | L12: 3 | M12: Remarks: | AI12: 2
B13: =B12+1 -> 5 | C13: Credit Value: | F13: =IF(X107 ="√",INT(X99/80),INT(X99/40)) -> 3 | AI13: 3
B14: 6 | C14: Pre-requisite/ co-requisite (if any): | AI14: 4
AI15: 5
B16: 7 | C16: Course Learning Outcomes (CLO) | F16: CLO1 | H16: Discuss the influence of human values on sustainability (PLO1, C4) | AI16: 6
F17: CLO2 | H17: Describe the human values that underlie sustainable behaviour (PLO8, C2) | AI17: 7
F18: CLO3 | H18: Explain how the gaps in the preferred human value for sustainability are addressed (PLO11, C5) | AI18: 8
AI20: Compulsory
AI21: Major (core)
AI22: Minor
AI23: Elective (core)
AI24: Elective (open/free)
B25: 8 | C25: Mapping of the Course Learning Outcomes to the Programme Learning Outcomes, Teaching Methods and Assessment Methods
D27: Course Learning Outcomes | F27: Programme Learning Outcomes (PLO) | R27: Teaching Methods | W27: Assessment Methods
F28: PLO 1 | G28: PLO 2 | H28: PLO 3 | I28: PLO 4 | J28: PLO 5 | K28: PLO 6 | L28: PLO 7 | M28: PLO 8 | N28: PLO 9 | O28: PLO 10 | P28: PLO 11
D29: =IF(ISBLANK(F16),"",F16) -> CLO1 | F29: √ | R29: =[3]FORM!P22 -> #ERROR! | W29: =[3]FORM!Q22 -> #ERROR!
D30: CLO2 | M30: √ | R30: =[3]FORM!P23 -> #ERROR! | W30: =[3]FORM!Q23 -> #ERROR!
D31: CLO3 | P31: √ | R31: =[3]FORM!P24 -> #ERROR! | W31: =[3]FORM!Q24 -> #ERROR!
AI36: Cognitive skills
D37: Mapping with MQF Cluster of Learning Outcomes | F37: C4A | M37: C2 | P37: C5 | AI37: Interpersonal skills
AI38: Communication Skills
AI39: Digital Skills
AI40: Numeracy Skills
D41: Indicate the primary causal link between the CLO and PLO by ticking '√' in the appropriate box. | AI41: Leadership, Autonomy and Responsibility
D42: C1 = Knowledge & Understanding, C2 = Cognitive Skills, C3A = Practical Skills, C3B = Interpersonal Skills, C3C = Communication Skills, C3D = Digital Skills, | AI42: Personal Skills
D43: C3E = Numeracy Skills, C3F = Leadership, Autonomy & Responsibility, C4A = Personal Skills, C4B = Entrepreneurial Skills, C5 = Ethics & Professionalism | AI43: Entrepreneurial Skills
AI44: Ethics and Professionalism
B45: 9 | C45: Transferable Skills (if applicable)
C46: (Skills learned in the course of study which can be useful and utilized in other settings) | I46: 1 | J46: Ethics and Professionalism | AI46: C1
I47: 2 | J47: Cognitive skills | AI47: C2
I48: 3 | J48: Leadership, Autonomy and Responsibility | AI48: C3A
I49: Open-ended response (if any) | AI49: C3B
I50: 4 | AI50: C3C
AI51: C3D
AB52: ` | AI52: C3E
B53: 10 | C53: Distribution of Student Learning Time (SLT) | AI53: C3F
C54: Note: This SLT calculation is designed for home grown programme only. | AI54: C4A
AI55: C4B
D56: Course Content Outline and Subtopics | K56: CLO* | M56: Learning and Teaching Activities** | X56: Total SLT | AI56: C5
M57: Face-to-Face (F2F) | U57: NF2F Independent Learning (Asynchronous)
M58: Physical | Q58: Online/ Technology-mediated (Synchronous)
M59: L | N59: T | O59: P | P59: O | Q59: L | R59: T | S59: P | T59: O
D60: 1 | E60: 1.0 Introduction - Overview | K60: =[3]FORM!J37 -> #ERROR! | M60: 2 | N60: 1 | R60: 3 | U60: 2
D61: 2 | E61: 2.0 Definition of Values 2.1 What are human values? 2.2 Examples of human values | K61: =[3]FORM!J38 -> #ERROR! | M61: 2 | N61: 1 | R61: 2 | U61: 2
D62: 3 | E62: 3.0 Human value guides behaviour 3.1 Making value consciousness | K62: =[3]FORM!J39 -> #ERROR! | M62: 2 | N62: 1 | R62: 2 | U62: 2
D63: 4 | E63: 4.0 Definition of Sustainability 4.1 Three Spheres of Sustainability 4.2 Examples of individual sustainable behaviour 4.3 Examples of collective/organisational sustainable behaviour | K63: =[3]FORM!J40 -> #ERROR! | M63: 2 | N63: 1 | R63: 3 | U63: 2
D64: 5 | E64: 5.0 Contextualising sustainability in temrs of human values | K64: =[3]FORM!J41 -> #ERROR! | M64: 2 | N64: 1 | R64: 3 | U64: 2
D65: 6 | E65: 6.0 Human values compatible with sustainable living Part 1 | K65: =[3]FORM!J42 -> #ERROR! | M65: 2 | N65: 1 | R65: 2 | U65: 3
D66: 7 | E66: 7.0 Human values compatible with sustainable living Part 2 | K66: =[3]FORM!J43 -> #ERROR! | M66: 2 | N66: 1 | R66: 3 | U66: 2
D67: 8 | E67: 8.0 Group discussion and presentation | K67: =[3]FORM!J44 -> #ERROR! | M67: 2 | N67: 1 | R67: 3 | U67: 2
D68: 9 | E68: 9.0 Gaps in human value for sustainability | K68: =[3]FORM!J45 -> #ERROR! | M68: 2 | N68: 1 | R68: 3 | U68: 2
D69: 10 | E69: 10.0 Changing values for sustainability | K69: =[3]FORM!J46 -> #ERROR! | M69: 2 | N69: 1 | R69: 3 | U69: 2
D70: =D69+1 -> 11 | E70: 11.0 Global sustainability human values, attitudes and behaviour | K70: =[3]FORM!J47 -> #ERROR! | M70: 2 | N70: 1 | R70: 3 | U70: 2
D71: 12 | E71: 12.0 Forum discussion to recapitulate | K71: =[3]FORM!J48 -> #ERROR! | M71: 2 | N71: 1 | R71: 2 | U71: 2
D72: 13
D73: 14
D74: 15
D75: 16
D76: 17
D77: 18
D78: 19
D79: 20
D80: SUB-TOTAL SLT: | X80: =SUM(M60:P79)+SUM(Q60:T79)+SUM(U60:W79) -> 93
D81: Continous Assessement | K81: % | M81: Face-to-Face (F2F) | U81: NF2F Independent Learning for Assessment (Asynchronous)
M82: Physical | Q82: Online/ Technology-mediated (Synchronous)
D83: 1 | E83: Presentation | K83: 0.2 | M83: 3 | U83: 3
D84: 2 | E84: Written assignment | K84: 0.25 | M84: 3 | U84: 4
D85: 3 | E85: Forum | K85: 0.25 | M85: 3 | U85: 3
D86: 4 | E86: Research Project | K86: 0.3 | M86: 3 | U86: 5
D87: 5
D88: SUB-TOTAL SLT: | X88: =SUM(M83:W87) -> 27
D89: Final Assessement | K89: % | M89: Face-to-Face (F2F) | U89: NF2F Independent Learning for Assessment (Asynchronous)
M90: Physical | Q90: Online/ Technology-mediated (Synchronous)
D91: 1
D92: 2
D93: 3
D94: 4
D95: 5
D96: SUB-TOTAL SLT: | X96: =SUM(M91:W95) -> 0
D98: SLT for Assessment: | X98: =X88+X96 -> 27
D99: GRAND TOTAL SLT: | X99: =X98+X80 -> 120
D100: A | E100: % SLT for F2F Physical Component: [Total F2F Physical /(Total F2F Physical + Total F2F Online + Total Independent Learning) x 100)] | X100: =IFERROR(((SUM(M60:P79)+SUM(M83:P87)+SUM(M91:P95))/X99)* 100,"") -> 40
D102: B | E102: % SLT for Online & Independent Learning Component: [(Total F2F Online + Total Independent Learning) /( Total F2F Physical + Total F2F Online + Total Independent Learning) x 100] | X102: =IFERROR((SUM(Q60:W79)+SUM(Q83:W87) + SUM(Q91:W95))/X99 * 100,"") -> 60
D103: C | E103: % SLT for All Practical Component: [% F2F Physical Practical + % F2F Online Practical] | X103: =IFERROR(X104+X105,"") -> 0
D104: C1 | E104: % SLT for F2F Physical Practical Component [Total F2F Physical Practical /( Total F2F Physical + Total F2F Online + Total Independent Learning) x 100)] | X104: =IFERROR(SUM(O60:O79)/X99*100,"") -> 0
D105: C2 | E105: % SLT for F2F Online Practical Component [Total F2F Online Practical / (Total F2F Physical + Total F2F Online + Total Independent Learning) x 100] | X105: =IFERROR(SUM(S60:S79)/X99*100,"") -> 0
Z106: =IFERROR(X102+X104,"") -> 60
D107: Please tick (√) if this course is Industrial Training/ Clinical Placement/ Practicum using 50% of Effective Learning Time (ELT)
D108: Note:
D109: * Indicate the CLO based on the CLO's numbering in Item 8
D110: ** For ODL programme: Courses with mandatory practical requiremnets imposed by the programme standards or any related standards can be exempted from complying to the minimum 80% ODL delivery rule in the SLT.
B112: 11 | C112: Identify special requirement or resources to deliver the course (e.g., software, nursery, computer lab, simulation room etc) | K112: None
B114: 12 | C114: References (include required and further readings, and should be the most current) | K114: 1. Tavanti, M. (2023). Developing sustainability in organizations: A values-based approach. Palgrave Macmillan.
B116: 13 | C116: Other additional information (if applicable) | K116: 2. Tavanti, M. (2023). Sustainability ethics: Common good values for a better world. Ethics Press.
C119: Note: Number of PLO indicated is purely for illustration purposes only and the number is subjected to the curriculum design.

Sheet FIN6213
B2: Back To FORM @ TEMPLATE
AI3: √
B5: 1 | C5: Course Name: | F5: Principles of Finance | AI5: Semester
C6: Course Code: | F6: FIN6213 | AI6: 1
C7: Course Classification: | F7: Major (core) | AI7: 2
B8: 2 | C8: Synopsis: | F8: This subject provides an overview of key financial principles and the financial activities of an organization, including financial operations, time value of money and performance evaluation. It also examines investment and financing decisions, focusing on instruments such as bonds and stocks used by firms to raise capital for business growth and expansion. | AI8: 3
B9: =B8+1 -> 3 | C9: Name(s) of Academic Staff: | F9: 1 | G9: Mr. Tan Weng Kean
F10: 2 | AI10: Year Offered
F11: 3 | AI11: 1
B12: =B9+1 -> 4 | C12: Semester and Year offered: | F12: Year Offered | I12: 2 | J12: Semester | L12: 1 | M12: Remarks: | AI12: 2
B13: =B12+1 -> 5 | C13: Credit Value: | F13: =IF(X107 ="√",INT(X99/80),INT(X99/40)) -> 3 | AI13: 3
B14: 6 | C14: Pre-requisite/ co-requisite (if any): | F14: NIL | AI14: 4
AI15: 5
B16: 7 | C16: Course Learning Outcomes (CLO) | F16: CLO1 | H16: Describe the basic principles of finance and the evaluation of company performance. (PLO2, C2) | AI16: 6
F17: CLO2 | H17: Measure the value of money returned by taking into account the interest rate on investment or debt activity. (PLO3, P3) | AI17: 7
F18: CLO3 | H18: Analyse the costs of the individual or company sources of capital. (PLO 7, C4) | AI18: 8
AI20: Compulsory
AI21: Major (core)
AI22: Minor
AI23: Elective (core)
AI24: Elective (open/free)
B25: 8 | C25: Mapping of the Course Learning Outcomes to the Programme Learning Outcomes, Teaching Methods and Assessment Methods
D27: Course Learning Outcomes | F27: Programme Learning Outcomes (PLO) | R27: Teaching Methods | W27: Assessment Methods
F28: PLO 1 | G28: PLO 2 | H28: PLO 3 | I28: PLO 4 | J28: PLO 5 | K28: PLO 6 | L28: PLO 7 | M28: PLO 8 | N28: PLO 9 | O28: PLO 10 | P28: PLO 11
D29: =IF(ISBLANK(F16),"",F16) -> CLO1 | G29: √ | R29: 1 | W29: Assignment
D30: CLO2 | H30: √ | R30: Interactive Lecture, case study & problem-solving exercises. | W30: Project
D31: CLO3 | L31: √ | R31: Interactive Lecture, case study & problem-solving exercises. | W31: Final Assessment
AI36: Cognitive skills
D37: Mapping with MQF Cluster of Learning Outcomes | G37: C2 | H37: C3A | L37: C3E | AI37: Interpersonal skills
AI38: Communication Skills
AI39: Digital Skills
AI40: Numeracy Skills
D41: Indicate the primary causal link between the CLO and PLO by ticking '√' in the appropriate box. | AI41: Leadership, Autonomy and Responsibility
D42: C1 = Knowledge & Understanding, C2 = Cognitive Skills, C3A = Practical Skills, C3B = Interpersonal Skills, C3C = Communication Skills, C3D = Digital Skills, | AI42: Personal Skills
D43: C3E = Numeracy Skills, C3F = Leadership, Autonomy & Responsibility, C4A = Personal Skills, C4B = Entrepreneurial Skills, C5 = Ethics & Professionalism | AI43: Entrepreneurial Skills
AI44: Ethics and Professionalism
B45: 9 | C45: Transferable Skills (if applicable)
C46: (Skills learned in the course of study which can be useful and utilized in other settings) | I46: 1 | J46: Entrepreneurial Skills | AI46: C1
I47: 2 | J47: Cognitive skills | AI47: C2
I48: 3 | J48: Numeracy Skills | AI48: C3A
I49: Open-ended response (if any) | AI49: C3B
I50: 4 | AI50: C3C
AI51: C3D
AB52: ` | AI52: C3E
B53: 10 | C53: Distribution of Student Learning Time (SLT) | AI53: C3F
C54: Note: This SLT calculation is designed for home grown programme only. | AI54: C4A
AI55: C4B
D56: Course Content Outline and Subtopics | K56: CLO* | M56: Learning and Teaching Activities** | X56: Total SLT | AI56: C5
M57: Face-to-Face (F2F) | U57: NF2F Independent Learning (Asynchronous)
M58: Physical | Q58: Online/ Technology-mediated (Synchronous)
M59: L | N59: T | O59: P | P59: O | Q59: L | R59: T | S59: P | T59: O
D60: 1 | E60: An Introduction to the Foundations of Financial Management. - The Goal of the Firm - Five Principles that Form the Foundations of Finance. -The Role of Finance in Business. -The Legal Forms of Business Organisation. -Finance and the Multinational Firm : The New Role | K60: 1 | M60: 2 | N60: 1 | U60: 4
D61: 2 | E61: Understanding Financial Statements and Cash Flows. - The Income Statement -The Balance Sheet -Measuring Cash Flows -The limitations of Financial Statements. | K61: 1 | M61: 4 | N61: 2 | U61: 6
D62: 3 | E62: Evaluating a Firm's Financial Performance. -The purpose of Financial Analysis. - Measuring key Financial Relationships. -The Limitations of Financial Ratio Analysis. | K62: 1 | M62: 4 | N62: 2 | U62: 6
D63: 4 | E63: The Time Value of Money - Compound Interest - Future Value - Present Value -Annuities | K63: 2 | M63: 4 | N63: 2 | U63: 8
D64: 5 | E64: The Meaning and Measurement of Risk and Return. -Expected Return Defined and Measured. -Risk Defined and Measured. - Rates of Return : The Investor's Experience. -Risk and Diversification. -The Investor's Required Rate of Return. | K64: 2 | M64: 2 | N64: 1 | U64: 8
D65: 6 | E65: The Valuation and Characteristics of Bonds. -Types of Bonds. -Terminology and Characteristics of Bonds. -Defining value. -What determines Value? -Valuation : The Basic Process. -Valuing Bonds . -Bond Yields. -Bond Valuation : Three Important Relationships. | K65: 3 | M65: 4 | N65: 2 | U65: 8
D66: 7 | E66: The Valuation and Characteristics of Stock. -Preferred Stock. -Valuing Preferred Stock. -Common Stock. -The Expected Rate of Return of Stockholders. | K66: 3 | M66: 4 | N66: 2 | U66: 6
D67: 8 | E67: The Cost of Capital. -The Cost of Capital : Key Definitions and Concepts. -Determining the Costs of the individual sources of Capital. -The Weighted Average Cost of Capital. - Calculating Divisional Costs of Capital. | K67: 3 | M67: 4 | N67: 2 | U67: 8
D68: 9
D69: 10
D70: =D69+1 -> 11
D71: 12
D72: 13
D73: 14
D74: 15
D75: 16
D76: 17
D77: 18
D78: 19
D79: 20
D80: SUB-TOTAL SLT: | X80: =SUM(M60:P79)+SUM(Q60:T79)+SUM(U60:W79) -> 96
D81: Continous Assessement | K81: % | M81: Face-to-Face (F2F) | U81: NF2F Independent Learning for Assessment (Asynchronous)
M82: Physical | Q82: Online/ Technology-mediated (Synchronous)
D83: 1 | E83: Assignment | K83: 0.3 | M83: 3 | U83: 3
D84: 2 | E84: Project | K84: 0.4 | M84: 3 | U84: 3
D85: 3
D86: 4
D87: 5
D88: SUB-TOTAL SLT: | X88: =SUM(M83:W87) -> 12
D89: Final Assessement | K89: % | M89: Face-to-Face (F2F) | U89: NF2F Independent Learning for Assessment (Asynchronous)
M90: Physical | Q90: Online/ Technology-mediated (Synchronous)
D91: 1 | E91: Final Exam | K91: 0.3 | M91: 3 | U91: 9
D92: 2
D93: 3
D94: 4
D95: 5
D96: SUB-TOTAL SLT: | X96: =SUM(M91:W95) -> 12
D98: SLT for Assessment: | X98: =X88+X96 -> 24
D99: GRAND TOTAL SLT: | X99: =X98+X80 -> 120
D100: A | E100: % SLT for F2F Physical Component: [Total F2F Physical /(Total F2F Physical + Total F2F Online + Total Independent Learning) x 100)] | X100: =IFERROR(((SUM(M60:P79)+SUM(M83:P87)+SUM(M91:P95))/X99)* 100,"") -> 42.5
D102: B | E102: % SLT for Online & Independent Learning Component: [(Total F2F Online + Total Independent Learning) /( Total F2F Physical + Total F2F Online + Total Independent Learning) x 100] | X102: =IFERROR((SUM(Q60:W79)+SUM(Q83:W87) + SUM(Q91:W95))/X99 * 100,"") -> 57.5
D103: C | E103: % SLT for All Practical Component: [% F2F Physical Practical + % F2F Online Practical] | X103: =IFERROR(X104+X105,"") -> 0
D104: C1 | E104: % SLT for F2F Physical Practical Component [Total F2F Physical Practical /( Total F2F Physical + Total F2F Online + Total Independent Learning) x 100)] | X104: =IFERROR(SUM(O60:O79)/X99*100,"") -> 0
D105: C2 | E105: % SLT for F2F Online Practical Component [Total F2F Online Practical / (Total F2F Physical + Total F2F Online + Total Independent Learning) x 100] | X105: =IFERROR(SUM(S60:S79)/X99*100,"") -> 0
Z106: =IFERROR(X102+X104,"") -> 57.5
D107: Please tick (√) if this course is Industrial Training/ Clinical Placement/ Practicum using 50% of Effective Learning Time (ELT)
D108: Note:
D109: * Indicate the CLO based on the CLO's numbering in Item 8
D110: ** For ODL programme: Courses with mandatory practical requiremnets imposed by the programme standards or any related standards can be exempted from complying to the minimum 80% ODL delivery rule in the SLT.
B112: 11 | C112: Identify special requirement or resources to deliver the course (e.g., software, nursery, computer lab, simulation room etc) | K112: None
B114: 12 | C114: References (include required and further readings, and should be the most current) | K114: 1 . Arthur J. Keown, John D. Martin, J. William Petty, Baylor University (2020), Foundations of Finance, 10th Edition : Pearson 2. Ronald W. Melicher, Edgar A. Norton (2019), Introduction to Finance: Markets, Investments, and Financial Management, 17th Edition : Wiley
B116: 13 | C116: Other additional information (if applicable) | K116: 1. Brealey.R,Myers.S , Allen.F and Edman.A (2023),Principles of Corporate Finance 14th Edition : McGraw Hill.
C119: Note: Number of PLO indicated is purely for illustration purposes only and the number is subjected to the curriculum design.

Sheet HRM6243
B2: Back To FORM @ TEMPLATE
AI3: √
B5: 1 | C5: Course Name: | F5: Human Resource Management | AI5: Semester
C6: Course Code: | F6: HRM6243 | AI6: 1
C7: Course Classification: | F7: Major (core) | AI7: 2
B8: 2 | C8: Synopsis: | F8: This course examines the strategic role of Human Resource Management (HRM) in supporting organizations to achieve competitive advantage. It explores the key roles, skills and practices of HRM as well as contemporary competitive challenges affecting stakeholders and how effective HRM strategies enable organizations to enhance performance and remain competitive. | AI8: 3
B9: =B8+1 -> 3 | C9: Name(s) of Academic Staff: | F9: 1 | G9: Mr. Gunalan A/L Nachiappan
F10: 2 | AI10: Year Offered
F11: 3 | AI11: 1
B12: =B9+1 -> 4 | C12: Semester and Year offered: | F12: Year Offered | I12: 2 | J12: Semester | L12: 1 | M12: Remarks: | AI12: 2
B13: =B12+1 -> 5 | C13: Credit Value: | F13: =IF(X107 ="√",INT(X99/80),INT(X99/40)) -> 3 | AI13: 3
B14: 6 | C14: Pre-requisite/ co-requisite (if any): | AI14: 4
AI15: 5
B16: 7 | C16: Course Learning Outcomes (CLO) | F16: CLO1 | H16: Discuss an understanding of basic concepts and principles of Human Resource Management in digital modern management.(PLO2, C2) | AI16: 6
F17: CLO2 | H17: Demonstrate competence in development and problem-solving in the area of HR Management (PLO8, A2) | AI17: 7
F18: CLO3 | H18: Apply innovative solutions to problems in the fields of HRM with current issues and challenges.(PLO4, C3) | AI18: 8
AI20: Compulsory
AI21: Major (core)
AI22: Minor
AI23: Elective (core)
AI24: Elective (open/free)
B25: 8 | C25: Mapping of the Course Learning Outcomes to the Programme Learning Outcomes, Teaching Methods and Assessment Methods
D27: Course Learning Outcomes | F27: Programme Learning Outcomes (PLO) | R27: Teaching Methods | W27: Assessment Methods
F28: PLO 1 | G28: PLO 2 | H28: PLO 3 | I28: PLO 4 | J28: PLO 5 | K28: PLO 6 | L28: PLO 7 | M28: PLO 8 | N28: PLO 9 | O28: PLO 10 | P28: PLO 11
D29: =IF(ISBLANK(F16),"",F16) -> CLO1 | G29: √ | R29: Lecture, Tutorial, Discussion | W29: Individual Assignment
D30: CLO2 | M30: √ | R30: Lecture, Tutorial, Discussion | W30: Project
D31: CLO3 | I31: √ | R31: Lecture, Tutorial, Discussion | W31: Final Examination
AI36: Cognitive skills
D37: Mapping with MQF Cluster of Learning Outcomes | G37: C2 | I37: C3C | M37: C4A | AI37: Interpersonal skills
AI38: Communication Skills
AI39: Digital Skills
AI40: Numeracy Skills
D41: Indicate the primary causal link between the CLO and PLO by ticking '√' in the appropriate box. | AI41: Leadership, Autonomy and Responsibility
D42: C1 = Knowledge & Understanding, C2 = Cognitive Skills, C3A = Practical Skills, C3B = Interpersonal Skills, C3C = Communication Skills, C3D = Digital Skills, | AI42: Personal Skills
D43: C3E = Numeracy Skills, C3F = Leadership, Autonomy & Responsibility, C4A = Personal Skills, C4B = Entrepreneurial Skills, C5 = Ethics & Professionalism | AI43: Entrepreneurial Skills
AI44: Ethics and Professionalism
B45: 9 | C45: Transferable Skills (if applicable)
C46: (Skills learned in the course of study which can be useful and utilized in other settings) | I46: 1 | J46: Cognitive skills | AI46: C1
I47: 2 | J47: Communication Skills | AI47: C2
I48: 3 | J48: Personal Skills | AI48: C3A
I49: Open-ended response (if any) | AI49: C3B
I50: 4 | J50: This course will enable students to develop their knowledge on Human Resources Management and the requirements. Besides that, the programme providing students with the skills of Human Resources mangement with latest industry implementation HRMS, HRIS and all components of HRM. Furthermore, giving students the opportunities to learn and practice a problem solving towards the current issues and challenges. | AI50: C3C
AI51: C3D
AB52: ` | AI52: C3E
B53: 10 | C53: Distribution of Student Learning Time (SLT) | AI53: C3F
C54: Note: This SLT calculation is designed for home grown programme only. | AI54: C4A
AI55: C4B
D56: Course Content Outline and Subtopics | K56: CLO* | M56: Learning and Teaching Activities** | X56: Total SLT | AI56: C5
M57: Face-to-Face (F2F) | U57: NF2F Independent Learning (Asynchronous)
M58: Physical | Q58: Online/ Technology-mediated (Synchronous)
M59: L | N59: T | O59: P | P59: O | Q59: L | R59: T | S59: P | T59: O
D60: 1 | E60: 1. Introduction to Human Resource Management -Definition and Importance of HRM -Evolution of HRM in Digital Era -Strategic Role of HRM in Organizations | K60: 1 | M60: 2 | N60: 1 | U60: 3
D61: 2 | E61: 2. The HR Environment -Internal and External Environment -Globalization and Workforce Diversity -Technological Impact on HRM | K61: 1 | M61: 2 | N61: 1 | U61: 3
D62: 3 | E62: 3. Legal Environment and Malaysian HR Acts -Employment Act 1955 -Industrial Relations Act 1967 -Occupational Safety and Health Act 1994 -Sabah & Sarawak Labor Ordinances | K62: 1 | M62: 2 | N62: 1 | U62: 3
D63: 4 | E63: 4. Work Analysis and Design -Job Analysis: Methods and Process -Job Description vs Job Specification -Job Design Approaches (Ergonomic, Motivational) | K63: 1 | M63: 2 | N63: 1 | U63: 3
D64: 5 | E64: 5. Human Resource Planning -Importance of HR Planning -Forecasting Demand and Supply -Succession Planning | K64: 1 | M64: 2 | N64: 1 | U64: 3
D65: 6 | E65: 6. Recruitment and Selection -Recruitment Strategies (Internal vs External) -E-Recruitment and Digital Platforms -Selection Tools and Techniques | K65: 2 | M65: 2 | N65: 1 | U65: 3
D66: 7 | E66: 7. Placement and Orientation -Employee Placement Decisions -Onboarding and Induction Programs | K66: 2 | M66: 2 | N66: 1 | U66: 3
D67: 8 | E67: 8. Training and Development -Training Needs Analysis -Methods of Training (Online, Blended) -Career Development and Succession | K67: 2 | M67: 2 | N67: 1 | U67: 3
D68: 9 | E68: 9. Performance Management -Performance Appraisal Methods -Key Performance Indicators (KPIs) -Continuous Feedback Systems | K68: 2 | M68: 2 | N68: 1 | U68: 3
D69: 10 | E69: 10. Compensation and Benefits -Components of Compensation -Incentive Plans and Allowances -Malaysian Compensation Practices | K69: 2 | M69: 2 | N69: 1 | U69: 4
D70: =D69+1 -> 11 | E70: 11. Employee Safety and Health -Workplace Safety Standards -Wellness Programs -Stress Management | K70: 3 | M70: 2 | N70: 1 | U70: 4
D71: 12 | E71: 12. Employee Relations -Employee Engagement Strategies -Conflict Resolution -Grievance Handling | K71: 3 | M71: 2 | N71: 1 | U71: 4
D72: 13 | E72: 13. Trade Union and Collective Bargaining -Role of Trade Unions in Malaysia -Collective Bargaining Process -Industrial Dispute Resolution | K72: 3 | M72: 2 | N72: 1 | U72: 4
D73: 14 | E73: 15. Human Resource Information System (HRIS) -Definition and Importance of HRIS -Components of HRIS (Payroll, -Attendance, Performance) -HR Analytics and Decision-Making -Integration with Digital HR Platforms | K73: 3 | M73: 2 | N73: 1 | U73: 4
D74: 15
D75: 16
D76: 17
D77: 18
D78: 19
D79: 20
D80: SUB-TOTAL SLT: | X80: =SUM(M60:P79)+SUM(Q60:T79)+SUM(U60:W79) -> 89
D81: Continous Assessement | K81: % | M81: Face-to-Face (F2F) | U81: NF2F Independent Learning for Assessment (Asynchronous)
M82: Physical | Q82: Online/ Technology-mediated (Synchronous)
D83: 1 | E83: Assignment | K83: 0.3 | M83: 2 | U83: 4
D84: 2 | E84: Project | K84: 0.4 | M84: 4 | U84: 6
D85: 3
D86: 4
D87: 5
D88: SUB-TOTAL SLT: | X88: =SUM(M83:W87) -> 16
D89: Final Assessement | K89: % | M89: Face-to-Face (F2F) | U89: NF2F Independent Learning for Assessment (Asynchronous)
M90: Physical | Q90: Online/ Technology-mediated (Synchronous)
D91: 1 | E91: Final Exam | K91: 0.3 | M91: 3 | U91: 12
D92: 2
D93: 3
D94: 4
D95: 5
D96: SUB-TOTAL SLT: | X96: =SUM(M91:W95) -> 15
D98: SLT for Assessment: | X98: =X88+X96 -> 31
D99: GRAND TOTAL SLT: | X99: =X98+X80 -> 120
D100: A | E100: % SLT for F2F Physical Component: [Total F2F Physical /(Total F2F Physical + Total F2F Online + Total Independent Learning) x 100)] | X100: =IFERROR(((SUM(M60:P79)+SUM(M83:P87)+SUM(M91:P95))/X99)* 100,"") -> 42.5
D102: B | E102: % SLT for Online & Independent Learning Component: [(Total F2F Online + Total Independent Learning) /( Total F2F Physical + Total F2F Online + Total Independent Learning) x 100] | X102: =IFERROR((SUM(Q60:W79)+SUM(Q83:W87) + SUM(Q91:W95))/X99 * 100,"") -> 57.5
D103: C | E103: % SLT for All Practical Component: [% F2F Physical Practical + % F2F Online Practical] | X103: =IFERROR(X104+X105,"") -> 0
D104: C1 | E104: % SLT for F2F Physical Practical Component [Total F2F Physical Practical /( Total F2F Physical + Total F2F Online + Total Independent Learning) x 100)] | X104: =IFERROR(SUM(O60:O79)/X99*100,"") -> 0
D105: C2 | E105: % SLT for F2F Online Practical Component [Total F2F Online Practical / (Total F2F Physical + Total F2F Online + Total Independent Learning) x 100] | X105: =IFERROR(SUM(S60:S79)/X99*100,"") -> 0
Z106: =IFERROR(X102+X104,"") -> 57.5
D107: Please tick (√) if this course is Industrial Training/ Clinical Placement/ Practicum using 50% of Effective Learning Time (ELT)
D108: Note:
D109: * Indicate the CLO based on the CLO's numbering in Item 8
D110: ** For ODL programme: Courses with mandatory practical requiremnets imposed by the programme standards or any related standards can be exempted from complying to the minimum 80% ODL delivery rule in the SLT.
B112: 11 | C112: Identify special requirement or resources to deliver the course (e.g., software, nursery, computer lab, simulation room etc) | K112: None
B114: 12 | C114: References (include required and further readings, and should be the most current) | K114: 1.Kulik, C. T. (2023). Human resources for the non-HR manager. Routledge.
B116: 13 | C116: Other additional information (if applicable) | K116: 2. Shah, S. H. A., & Jaafar, S. S. (2023). Human resource management (New ed.). SJ Learning.
C119: Note: Number of PLO indicated is purely for illustration purposes only and the number is subjected to the curriculum design.

Sheet MGT6223
B2: Back To FORM @ TEMPLATE
AI3: √
B5: 1 | C5: Course Name: | F5: Knowledge Management | AI5: Semester
C6: Course Code: | F6: MGT6223 | AI6: 1
C7: Course Classification: | F7: Major (core) | AI7: 2
B8: 2 | C8: Synopsis: | F8: This course introduces the fundamental concepts and practices of Knowledge Management, focusing on its role within organizational and managerial contexts. It enhances students’ understanding of key areas such as scope, processes and technologies, enabling them to effectively manage and leverage knowledge within organizations. | AI8: 3
B9: =B8+1 -> 3 | C9: Name(s) of Academic Staff: | F9: 1 | G9: Mr. Chandra Kanthen A/L Jumbulingam
F10: 2 | AI10: Year Offered
F11: 3 | AI11: 1
B12: =B9+1 -> 4 | C12: Semester and Year offered: | F12: Year Offered | I12: 2 | J12: Semester | L12: 1 | M12: Remarks: | AI12: 2
B13: =B12+1 -> 5 | C13: Credit Value: | F13: =IF(X107 ="√",INT(X99/80),INT(X99/40)) -> 3 | AI13: 3
B14: 6 | C14: Pre-requisite/ co-requisite (if any): | AI14: 4
AI15: 5
B16: 7 | C16: Course Learning Outcomes (CLO) | F16: CLO1 | H16: Describe and discuss the environment, basic concepts and principles of Knowledge Management in modern management. (PLO1, C2) | AI16: 6
F17: CLO2 | H17: Identify Knowledge Management and approaches and select the best option to carry out research. (PLO 2, C4) | AI17: 7
F18: CLO3 | H18: Evaluate IT for knowledge management and its effectiveness (PLO 7, C5) | AI18: 8
AI20: Compulsory
AI21: Major (core)
AI22: Minor
AI23: Elective (core)
AI24: Elective (open/free)
B25: 8 | C25: Mapping of the Course Learning Outcomes to the Programme Learning Outcomes, Teaching Methods and Assessment Methods
D27: Course Learning Outcomes | F27: Programme Learning Outcomes (PLO) | R27: Teaching Methods | W27: Assessment Methods
F28: PLO 1 | G28: PLO 2 | H28: PLO 3 | I28: PLO 4 | J28: PLO 5 | K28: PLO 6 | L28: PLO 7 | M28: PLO 8 | N28: PLO 9 | O28: PLO 10 | P28: PLO 11
D29: =IF(ISBLANK(F16),"",F16) -> CLO1 | F29: √ | R29: Lecture/Blended/Simulation | W29: Assignment
D30: CLO2 | G30: √ | R30: Lecture/Discussion/Blended/Video | W30: Mid Term/Final Examination
D31: CLO3 | L31: √ | R31: Lecture/Discussion/Blended/Video | W31: Final Examination
AI36: Cognitive skills
D37: Mapping with MQF Cluster of Learning Outcomes | F37: C1 | G37: C3A | L37: C3D | AI37: Interpersonal skills
AI38: Communication Skills
AI39: Digital Skills
AI40: Numeracy Skills
D41: Indicate the primary causal link between the CLO and PLO by ticking '√' in the appropriate box. | AI41: Leadership, Autonomy and Responsibility
D42: C1 = Knowledge & Understanding, C2 = Cognitive Skills, C3A = Practical Skills, C3B = Interpersonal Skills, C3C = Communication Skills, C3D = Digital Skills, | AI42: Personal Skills
D43: C3E = Numeracy Skills, C3F = Leadership, Autonomy & Responsibility, C4A = Personal Skills, C4B = Entrepreneurial Skills, C5 = Ethics & Professionalism | AI43: Entrepreneurial Skills
AI44: Ethics and Professionalism
B45: 9 | C45: Transferable Skills (if applicable)
C46: (Skills learned in the course of study which can be useful and utilized in other settings) | I46: 1 | J46: Cognitive skills | AI46: C1
I47: 2 | J47: Digital Skills | AI47: C2
I48: 3 | J48: Leadership, Autonomy and Responsibility | AI48: C3A
I49: Open-ended response (if any) | AI49: C3B
I50: 4 | AI50: C3C
AI51: C3D
AB52: ` | AI52: C3E
B53: 10 | C53: Distribution of Student Learning Time (SLT) | AI53: C3F
C54: Note: This SLT calculation is designed for home grown programme only. | AI54: C4A
AI55: C4B
D56: Course Content Outline and Subtopics | K56: CLO* | M56: Learning and Teaching Activities** | X56: Total SLT | AI56: C5
M57: Face-to-Face (F2F) | U57: NF2F Independent Learning (Asynchronous)
M58: Physical | Q58: Online/ Technology-mediated (Synchronous)
M59: L | N59: T | O59: P | P59: O | Q59: L | R59: T | S59: P | T59: O
D60: 1 | E60: Introduction to Knowledge Management - Definition and importance of KM - Evolution of KM in modern organizations - Difference between data, information, and knowledger | K60: 1 | M60: 1 | N60: 1 | Q60: 1 | R60: 1 | U60: 2
D61: 2 | E61: Knowledge in Organizations - Types of knowledge: explicit vs tacit - Knowledge hierarchy and knowledge sharing - Organizational learning and culture | K61: 1 | M61: 1 | N61: 1 | Q61: 1 | R61: 1 | U61: 2
D62: 3 | E62: KM Environment and Context - Internal and external environment influencing KM - Role of leadership and culture in KM adoption - Ethical issues in KM | K62: 1 | M62: 1 | N62: 1 | Q62: 1 | R62: 1 | U62: 2
D63: 4 | E63: Fundamental Concepts and Principles of KM - Core principles and objectives of KM - The KM cycle and its components - Knowledge creation and transfer | K63: 1 | M63: 1 | N63: 2 | Q63: 1 | R63: 2 | U63: 2
D64: 5 | E64: KM Models and Frameworks - Nonaka & Takeuchi SECI Model - Wiig and Bukowitz KM Models - Comparative analysis of KM frameworks | K64: 1 | M64: 1 | N64: 1 | Q64: 1 | R64: 1 | U64: 2
D65: 6 | E65: Approaches and Strategies in KM - Centralized vs decentralized KM approaches - Knowledge repositories and sharing systems - Selecting appropriate KM strategies | K65: 1 | M65: 1 | N65: 1 | Q65: 1 | R65: 1 | U65: 2
D66: 7 | E66: Knowledge Capture and Codification - Techniques of capturing tacit knowledge - Codification and documentation practices - Barriers to knowledge capture | K66: 1 | M66: 1 | N66: 1 | Q66: 1 | R66: 1 | U66: 2
D67: 8 | E67: Knowledge Sharing and Dissemination - Tools and methods for knowledge sharing - Communities of practice - Incentives for knowledge sharing | K67: 1 | M67: 1 | N67: 1 | Q67: 1 | R67: 1 | U67: 2
D68: 9 | E68: Knowledge Application and Innovation - Applying knowledge for decision-making - Role of KM in innovation and competitiveness | K68: 1 | M68: 1 | N68: 1 | Q68: 1 | R68: 1 | U68: 2
D69: 10 | E69: Information Technology in KM - Role of IT in supporting KM processes - Knowledge portals, intranets, and expert systems | K69: 2 | M69: 2 | N69: 1 | Q69: 1 | R69: 1 | U69: 2
D70: =D69+1 -> 11 | E70: KM Systems and Tools - KM software and tools overview - AI and big data in KM - Evaluating KM system effectiveness | K70: 2 | M70: 2 | N70: 1 | Q70: 1 | R70: 1 | U70: 1
D71: 12 | E71: Measuring and Evaluating KM Performance - KM metrics and indicators - ROI of KM initiatives - Success and failure factors in KM implementation | K71: 2 | M71: 2 | N71: 1 | Q71: 2 | R71: 1 | U71: 1
D72: 13 | E72: Future Trends and Emerging Issues in KM Emerging Issues in KM - Digital transformation and KM - Knowledge security and ethics - Course summary and reflection | K72: 2 | M72: 2 | N72: 1 | Q72: 2 | R72: 1 | U72: 1
D73: 14
D74: 15
D75: 16
D76: 17
D77: 18
D78: 19
D79: 20
D80: SUB-TOTAL SLT: | X80: =SUM(M60:P79)+SUM(Q60:T79)+SUM(U60:W79) -> 83
D81: Continous Assessement | K81: % | M81: Face-to-Face (F2F) | U81: NF2F Independent Learning for Assessment (Asynchronous)
M82: Physical | Q82: Online/ Technology-mediated (Synchronous)
D83: 1 | E83: Assignment 1 - Report | K83: 0.3 | M83: 4 | U83: 6
D84: 2 | E84: Assignment 2 - Presentation | K84: 0.2 | M84: 4 | U84: 6
D85: 3 | E85: Mid Term Examination | K85: 0.2 | M85: 2 | U85: 4
D86: 4
D87: 5
D88: SUB-TOTAL SLT: | X88: =SUM(M83:W87) -> 26
D89: Final Assessement | K89: % | M89: Face-to-Face (F2F) | U89: NF2F Independent Learning for Assessment (Asynchronous)
M90: Physical | Q90: Online/ Technology-mediated (Synchronous)
D91: 1 | E91: Final Exam | K91: 0.3 | M91: 3 | U91: 8
D92: 2
D93: 3
D94: 4
D95: 5
D96: SUB-TOTAL SLT: | X96: =SUM(M91:W95) -> 11
D98: SLT for Assessment: | X98: =X88+X96 -> 37
D99: GRAND TOTAL SLT: | X99: =X98+X80 -> 120
D100: A | E100: % SLT for F2F Physical Component: [Total F2F Physical /(Total F2F Physical + Total F2F Online + Total Independent Learning) x 100)] | X100: =IFERROR(((SUM(M60:P79)+SUM(M83:P87)+SUM(M91:P95))/X99)* 100,"") -> 36.66666667
D102: B | E102: % SLT for Online & Independent Learning Component: [(Total F2F Online + Total Independent Learning) /( Total F2F Physical + Total F2F Online + Total Independent Learning) x 100] | X102: =IFERROR((SUM(Q60:W79)+SUM(Q83:W87) + SUM(Q91:W95))/X99 * 100,"") -> 63.33333333
D103: C | E103: % SLT for All Practical Component: [% F2F Physical Practical + % F2F Online Practical] | X103: =IFERROR(X104+X105,"") -> 0
D104: C1 | E104: % SLT for F2F Physical Practical Component [Total F2F Physical Practical /( Total F2F Physical + Total F2F Online + Total Independent Learning) x 100)] | X104: =IFERROR(SUM(O60:O79)/X99*100,"") -> 0
D105: C2 | E105: % SLT for F2F Online Practical Component [Total F2F Online Practical / (Total F2F Physical + Total F2F Online + Total Independent Learning) x 100] | X105: =IFERROR(SUM(S60:S79)/X99*100,"") -> 0
Z106: =IFERROR(X102+X104,"") -> 63.33333333
D107: Please tick (√) if this course is Industrial Training/ Clinical Placement/ Practicum using 50% of Effective Learning Time (ELT)
D108: Note:
D109: * Indicate the CLO based on the CLO's numbering in Item 8
D110: ** For ODL programme: Courses with mandatory practical requiremnets imposed by the programme standards or any related standards can be exempted from complying to the minimum 80% ODL delivery rule in the SLT.
B112: 11 | C112: Identify special requirement or resources to deliver the course (e.g., software, nursery, computer lab, simulation room etc) | K112: None
B114: 12 | C114: References (include required and further readings, and should be the most current) | K114: 1. Dalkir, K. (2023). Knowledge management in theory and practice (4th ed.). MIT Press.
B116: 13 | C116: Other additional information (if applicable) | K116: 1. Bolisani, E., & Bratianu, C. (2023). Emergent knowledge strategies: Strategic thinking in knowledge management (2nd ed.). Springer.
C119: Note: Number of PLO indicated is purely for illustration purposes only and the number is subjected to the curriculum design.

Sheet MKT6223
B2: Back To FORM @ TEMPLATE
AI3: √
B5: 1 | C5: Course Name: | F5: CONSUMER BEHAVIOUR | AI5: Semester
C6: Course Code: | F6: MKT6223 | AI6: 1
C7: Course Classification: | F7: Major (core) | AI7: 2
B8: 2 | C8: Synopsis: | F8: This subject explores the factors influencing consumer behaviour, including psychological, social, cultural and personal determinants that shape purchasing decisions. It equips students with the ability to analyze consumer decision-making processes and apply insights to develop effective marketing strategies in competitive business environments. | AI8: 3
B9: =B8+1 -> 3 | C9: Name(s) of Academic Staff: | F9: 1 | G9: Ms. Ong Cheng Hoon
F10: 2 | AI10: Year Offered
F11: 3 | AI11: 1
B12: =B9+1 -> 4 | C12: Semester and Year offered: | F12: Year Offered | I12: 2 | J12: Semester | L12: 1 | M12: Remarks: | AI12: 2
B13: =B12+1 -> 5 | C13: Credit Value: | F13: =IF(X107 ="√",INT(X99/80),INT(X99/40)) -> 3 | AI13: 3
B14: 6 | C14: Pre-requisite/ co-requisite (if any): | F14: Marketing Management | AI14: 4
AI15: 5
B16: 7 | C16: Course Learning Outcomes (CLO) | F16: CLO1 | H16: Discuss the environment, basic concepts and principles of consumer behaviour in modern management. (PLO1, A2) | AI16: 6
F17: CLO2 | H17: Identify consumer behaviour issues and select the best option to solve them. (PLO2, C4) | AI17: 7
F18: CLO3 | H18: Describe the elements of cross cultural consumer behaviour and elaborate the impact of globalization on consumer behaviour. (PLO3, C5) | AI18: 8
AI20: Compulsory
AI21: Major (core)
AI22: Minor
AI23: Elective (core)
AI24: Elective (open/free)
B25: 8 | C25: Mapping of the Course Learning Outcomes to the Programme Learning Outcomes, Teaching Methods and Assessment Methods
D27: Course Learning Outcomes | F27: Programme Learning Outcomes (PLO) | R27: Teaching Methods | W27: Assessment Methods
F28: PLO 1 | G28: PLO 2 | H28: PLO 3 | I28: PLO 4 | J28: PLO 5 | K28: PLO 6 | L28: PLO 7 | M28: PLO 8 | N28: PLO 9 | O28: PLO 10 | P28: PLO 11
D29: =IF(ISBLANK(F16),"",F16) -> CLO1 | F29: √ | R29: Interactive Lecture/ case study / problem-solving exercises / blended | W29: Mid Term Test
D30: CLO2 | G30: √ | R30: Interactive Lecture/ case study/ problem-solving exercises / simulation | W30: Report with Presentation & Final Examination
D31: CLO3 | H31: √ | R31: Interactive Lecture / case study / problem-solving exercises/ blended / online | W31: Final Examination
AI36: Cognitive skills
D37: Mapping with MQF Cluster of Learning Outcomes | F37: C1 | G37: C4A | H37: C5 | AI37: Interpersonal skills
AI38: Communication Skills
AI39: Digital Skills
AI40: Numeracy Skills
D41: Indicate the primary causal link between the CLO and PLO by ticking '√' in the appropriate box. | AI41: Leadership, Autonomy and Responsibility
D42: C1 = Knowledge & Understanding, C2 = Cognitive Skills, C3A = Practical Skills, C3B = Interpersonal Skills, C3C = Communication Skills, C3D = Digital Skills, | AI42: Personal Skills
D43: C3E = Numeracy Skills, C3F = Leadership, Autonomy & Responsibility, C4A = Personal Skills, C4B = Entrepreneurial Skills, C5 = Ethics & Professionalism | AI43: Entrepreneurial Skills
AI44: Ethics and Professionalism
B45: 9 | C45: Transferable Skills (if applicable)
C46: (Skills learned in the course of study which can be useful and utilized in other settings) | I46: 1 | J46: Leadership, Autonomy and Responsibility | AI46: C1
I47: 2 | J47: Communication Skills | AI47: C2
I48: 3 | J48: Ethics and Professionalism | AI48: C3A
I49: Open-ended response (if any) | AI49: C3B
I50: 4 | AI50: C3C
AI51: C3D
AB52: ` | AI52: C3E
B53: 10 | C53: Distribution of Student Learning Time (SLT) | AI53: C3F
C54: Note: This SLT calculation is designed for home grown programme only. | AI54: C4A
AI55: C4B
D56: Course Content Outline and Subtopics | K56: CLO* | M56: Learning and Teaching Activities** | X56: Total SLT | AI56: C5
M57: Face-to-Face (F2F) | U57: NF2F Independent Learning (Asynchronous)
M58: Physical | Q58: Online/ Technology-mediated (Synchronous)
M59: L | N59: T | O59: P | P59: O | Q59: L | R59: T | S59: P | T59: O
D60: 1 | E60: Chapter 1: Foundations of Consumer Behaviour •Definition and scope •Importance in business and marketing •Interdisciplinary nature (psychology, sociology, economics) | K60: 1 | M60: 3 | U60: 3
D61: 2 | E61: Chapter 2: The Consumer as an Individual •Role of the consumer in the marketplace •Consumer roles and identities •Self-concept and lifestyle | K61: 2 | M61: 3 | U61: 3
D62: 3 | E62: Chapter 3: Motivation and Values •Maslow’s hierarchy of needs •Utilitarian vs. hedonic motivation •Personal values and consumption | K62: 1 | M62: 3 | Q62: 0.5 | U62: 3
D63: 4 | E63: Chapter 4: Perception and Learning •Sensory marketing •Perceptual processes •Learning theories (classical, operant, cognitive) | K63: 1 | M63: 3 | Q63: 0.5 | U63: 3
D64: 5 | E64: Chapter 5: Attitudes and Persuasion •ABC model of attitudes •Attitude formation and change •Persuasion techniques and marketing applications | K64: 1 | M64: 3 | Q64: 0.5 | U64: 3
D65: 6 | E65: Chapter 6: Buying Decision Process •Problem recognition •Information search •Evaluation of alternatives •Purchase and post-purchase behaviour | K65: 2 | M65: 3 | U65: 3
D66: 7 | E66: Chapter 7: Decision-Making Models •Rational vs. emotional decision-making •EKB and Howard-Sheth models •Low vs. high involvement decisions •Behavioural economics and heuristics | K66: 2 | M66: 3 | U66: 3
D67: 8 | E67: Chapter 8: Personality and Psychographics •Trait theory and brand personality •Consumer lifestyles and AIOs •VALS framework | K67: 1 | M67: 3 | Q67: 0.5 | U67: 3
D68: 9 | E68: Chapter 9: Environmental Influences on Consumer Behaviour •Cultural, social, and technological factors •Economic environment •Situational influences | K68: 3 | M68: 3 | Q68: 0.5 | U68: 3
D69: 10 | E69: Chapter 10: Culture and Subculture •Cultural values and norms •Subcultures (ethnic, religious, generational) •Cross-cultural consumer behaviour | K69: 3 | M69: 3 | Q69: 0.5 | U69: 3
D70: =D69+1 -> 11 | E70: Chapter 11: Social Class and Reference Groups •Social stratification and consumption •Reference groups and opinion leaders •Family decision-making roles | K70: 3 | M70: 3 | V70: 3
D71: 12 | E71: Chapter 12: Consumer and the Digital World •Online consumer behaviour •Social media influence •E-commerce and mobile marketing | K71: 3 | M71: 3 | V71: 3
D72: 13 | E72: Chapter 13: Consumer Ethics and Sustainability •Ethical consumption •Green marketing and CSR •Consumer rights and protection | K72: 3 | M72: 3 | Q72: 0.5 | V72: 3
D73: 14 | E73: Chapter 14: Trends and Future Directions in Consumer Behaviour •Emerging consumer trends •AI and personalization •Future challenges and opportunities | K73: 3 | M73: 3 | Q73: 0.5 | V73: 3
D74: 15
D75: 16
D76: 17
D77: 18
D78: 19
D79: 20
D80: SUB-TOTAL SLT: | X80: =SUM(M60:P79)+SUM(Q60:T79)+SUM(U60:W79) -> 88
D81: Continous Assessement | K81: % | M81: Face-to-Face (F2F) | U81: NF2F Independent Learning for Assessment (Asynchronous)
M82: Physical | Q82: Online/ Technology-mediated (Synchronous)
D83: 1 | E83: Report with Presentation | K83: 0.4 | M83: 3 | U83: 10
D84: 2 | E84: Mid Term Test | K84: 0.2 | M84: 2 | U84: 6
D85: 3
D86: 4
D87: 5
D88: SUB-TOTAL SLT: | X88: =SUM(M83:W87) -> 21
D89: Final Assessement | K89: % | M89: Face-to-Face (F2F) | U89: NF2F Independent Learning for Assessment (Asynchronous)
M90: Physical | Q90: Online/ Technology-mediated (Synchronous)
D91: 1 | E91: Final Exam | K91: 0.4 | M91: 3 | U91: 8
D92: 2
D93: 3
D94: 4
D95: 5
D96: SUB-TOTAL SLT: | X96: =SUM(M91:W95) -> 11
D98: SLT for Assessment: | X98: =X88+X96 -> 32
D99: GRAND TOTAL SLT: | X99: =X98+X80 -> 120
D100: A | E100: % SLT for F2F Physical Component: [Total F2F Physical /(Total F2F Physical + Total F2F Online + Total Independent Learning) x 100)] | X100: =IFERROR(((SUM(M60:P79)+SUM(M83:P87)+SUM(M91:P95))/X99)* 100,"") -> 41.66666667
D102: B | E102: % SLT for Online & Independent Learning Component: [(Total F2F Online + Total Independent Learning) /( Total F2F Physical + Total F2F Online + Total Independent Learning) x 100] | X102: =IFERROR((SUM(Q60:W79)+SUM(Q83:W87) + SUM(Q91:W95))/X99 * 100,"") -> 58.33333333
D103: C | E103: % SLT for All Practical Component: [% F2F Physical Practical + % F2F Online Practical] | X103: =IFERROR(X104+X105,"") -> 0
D104: C1 | E104: % SLT for F2F Physical Practical Component [Total F2F Physical Practical /( Total F2F Physical + Total F2F Online + Total Independent Learning) x 100)] | X104: =IFERROR(SUM(O60:O79)/X99*100,"") -> 0
D105: C2 | E105: % SLT for F2F Online Practical Component [Total F2F Online Practical / (Total F2F Physical + Total F2F Online + Total Independent Learning) x 100] | X105: =IFERROR(SUM(S60:S79)/X99*100,"") -> 0
Z106: =IFERROR(X102+X104,"") -> 58.33333333
D107: Please tick (√) if this course is Industrial Training/ Clinical Placement/ Practicum using 50% of Effective Learning Time (ELT)
D108: Note:
D109: * Indicate the CLO based on the CLO's numbering in Item 8
D110: ** For ODL programme: Courses with mandatory practical requiremnets imposed by the programme standards or any related standards can be exempted from complying to the minimum 80% ODL delivery rule in the SLT.
B112: 11 | C112: Identify special requirement or resources to deliver the course (e.g., software, nursery, computer lab, simulation room etc) | K112: None
B114: 12 | C114: References (include required and further readings, and should be the most current) | K114: 1. Solomon, M. R. (2023). Consumer behavior: Buying, having, and being (14th ed.). Pearson.
B116: 13 | C116: Other additional information (if applicable) | K116: Schiffman, L. G., & Wisenblit, J. L. (2022). Consumer behavior (13th ed.). Pearson.
C119: Note: Number of PLO indicated is purely for illustration purposes only and the number is subjected to the curriculum design.

Sheet CIT6223
B2: Back To FORM @ TEMPLATE
AI3: √
B5: 1 | C5: Course Name: | F5: BUSINESS INTELLIGENCE AND IT SECURITY | AI5: Semester
C6: Course Code: | F6: CIT6223 | AI6: 1
C7: Course Classification: | F7: Major (core) | AI7: 2
B8: 2 | C8: Synopsis: | F8: The subject was designed to enable students to integrate and manipulate skills and knowledge to effectively manage workplace communications. Further, this subject will enable students to understand the role of computer-based information systems in business management activities and use of technology to address problems and opportunities in business organizations. | AI8: 3
B9: =B8+1 -> 3 | C9: Name(s) of Academic Staff: | F9: 1 | G9: Mr. Chandra Kanthen A/L Jumbulingam
F10: 2 | AI10: Year Offered
F11: 3 | AI11: 1
B12: =B9+1 -> 4 | C12: Semester and Year offered: | F12: Year Offered | I12: 2 | J12: Semester | L12: 1 | M12: Remarks: | AI12: 2
B13: =B12+1 -> 5 | C13: Credit Value: | F13: =IF(X107 ="√",INT(X99/80),INT(X99/40)) -> 3 | AI13: 3
B14: 6 | C14: Pre-requisite/ co-requisite (if any): | AI14: 4
AI15: 5
B16: 7 | C16: Course Learning Outcomes (CLO) | F16: CLO1 | H16: Evaluate information systems development processes and techniques (PLO 1,C5) | AI16: 6
F17: CLO2 | H17: Intergrate data management technologies (PLO 6,A4) | AI17: 7
F18: CLO3 | H18: Apply the security risks associated with management information systems (PLO 11,C3) | AI18: 8
AI20: Compulsory
AI21: Major (core)
AI22: Minor
AI23: Elective (core)
AI24: Elective (open/free)
B25: 8 | C25: Mapping of the Course Learning Outcomes to the Programme Learning Outcomes, Teaching Methods and Assessment Methods
D27: Course Learning Outcomes | F27: Programme Learning Outcomes (PLO) | R27: Teaching Methods | W27: Assessment Methods
F28: PLO 1 | G28: PLO 2 | H28: PLO 3 | I28: PLO 4 | J28: PLO 5 | K28: PLO 6 | L28: PLO 7 | M28: PLO 8 | N28: PLO 9 | O28: PLO 10 | P28: PLO 11
D29: =IF(ISBLANK(F16),"",F16) -> CLO1 | F29: √ | R29: Lecture/Tutorial | W29: Group Assignment
D30: CLO2 | K30: √ | R30: Lecture/Tutorial | W30: Project/Presentation
D31: CLO3 | P31: √ | R31: Lecture/Tutorial | W31: Final Assessment
AI36: Cognitive skills
D37: Mapping with MQF Cluster of Learning Outcomes | F37: C1 | K37: C3A | P37: C5 | AI37: Interpersonal skills
AI38: Communication Skills
AI39: Digital Skills
AI40: Numeracy Skills
D41: Indicate the primary causal link between the CLO and PLO by ticking '√' in the appropriate box. | AI41: Leadership, Autonomy and Responsibility
D42: C1 = Knowledge & Understanding, C2 = Cognitive Skills, C3A = Practical Skills, C3B = Interpersonal Skills, C3C = Communication Skills, C3D = Digital Skills, | AI42: Personal Skills
D43: C3E = Numeracy Skills, C3F = Leadership, Autonomy & Responsibility, C4A = Personal Skills, C4B = Entrepreneurial Skills, C5 = Ethics & Professionalism | AI43: Entrepreneurial Skills
AI44: Ethics and Professionalism
B45: 9 | C45: Transferable Skills (if applicable)
C46: (Skills learned in the course of study which can be useful and utilized in other settings) | I46: 1 | J46: Cognitive skills | AI46: C1
I47: 2 | J47: Digital Skills | AI47: C2
I48: 3 | J48: Ethics and Professionalism | AI48: C3A
I49: Open-ended response (if any) | AI49: C3B
I50: 4 | AI50: C3C
AI51: C3D
AB52: ` | AI52: C3E
B53: 10 | C53: Distribution of Student Learning Time (SLT) | AI53: C3F
C54: Note: This SLT calculation is designed for home grown programme only. | AI54: C4A
AI55: C4B
D56: Course Content Outline and Subtopics | K56: CLO* | M56: Learning and Teaching Activities** | X56: Total SLT | AI56: C5
M57: Face-to-Face (F2F) | U57: NF2F Independent Learning (Asynchronous)
M58: Physical | Q58: Online/ Technology-mediated (Synchronous)
M59: L | N59: T | O59: P | P59: O | Q59: L | R59: T | S59: P | T59: O
D60: 1 | E60: Business Intelligence Development (Part 1) -Processes, technologies tools that help us change data into information | K60: 1 | M60: 2 | N60: 1 | O60: 1 | U60: 5
D61: 2 | E61: Business Intelligence Development (Part 2) -Information into knowledge and knowledge into plans that guide organization | K61: 1 | M61: 2 | N61: 1 | O61: 1 | U61: 5
D62: 3 | E62: Business Intelligence Development (Part 3) -Technologies for gathering, storing, analyzing | K62: 1 | M62: 2 | N62: 1 | O62: 1 | U62: 5
D63: 4 | E63: Information Technology Infrastructure (Part 1) - IT Infrastructure and Emerging Technologies | K63: 2 | M63: 2 | N63: 1 | O63: 1 | U63: 5
D64: 5 | E64: Information Technology Infrastructure (Part 2) - Foundations of Business Intelligence: Databases and Information Management | K64: 2 | M64: 2 | N64: 1 | O64: 1 | U64: 5
D65: 6 | E65: Information Technology Infrastructure (Part 3) - Telecommunications, the Internet, and Wireless Technology | K65: 2 | M65: 2 | N65: 1 | O65: 1 | U65: 5
D66: 7 | E66: Managing Organizational Data and Information (Part 1) - Basic of Data Arrangement and Access - The Traditional File Environment - Databases: The Modern Approach | K66: 3 | M66: 2 | N66: 1 | O66: 1 | U66: 5
D67: 8 | E67: Managing Organizational Data and Information (Part 2) - Database Management Systems | K67: 3 | M67: 2 | N67: 1 | O67: 1 | U67: 5
D68: 9 | E68: Managing Organizational Data and Information (Part 3) - Logical Data Models - Data Warehouses | K68: 3 | M68: 2 | N68: 1 | O68: 1 | U68: 5
D69: 10 | E69: The Importance of a Security and Control -Ethical Issues -Impacts of IT on Organisation and Jobs -Societal Impacts and Internet Communities -Security Is a Concern of Everyone -Protecting Information Systems | K69: 3 | M69: 2 | N69: 2 | O69: 1 | U69: 3
D70: =D69+1 -> 11
D71: 12
D72: 13
D73: 14
D74: 15
D75: 16
D76: 17
D77: 18
D78: 19
D79: 20
D80: SUB-TOTAL SLT: | X80: =SUM(M60:P79)+SUM(Q60:T79)+SUM(U60:W79) -> 89
D81: Continous Assessement | K81: % | M81: Face-to-Face (F2F) | U81: NF2F Independent Learning for Assessment (Asynchronous)
M82: Physical | Q82: Online/ Technology-mediated (Synchronous)
D83: 1 | E83: Group Assignment | K83: 0.3 | M83: 3 | U83: 7
D84: 2 | E84: Project | K84: 0.4 | M84: 2 | U84: 7
D85: 3
D86: 4
D87: 5
D88: SUB-TOTAL SLT: | X88: =SUM(M83:W87) -> 19
D89: Final Assessement | K89: % | M89: Face-to-Face (F2F) | U89: NF2F Independent Learning for Assessment (Asynchronous)
M90: Physical | Q90: Online/ Technology-mediated (Synchronous)
D91: 1 | E91: Final Exam | K91: 0.3 | M91: 3 | U91: 9
D92: 2
D93: 3
D94: 4
D95: 5
D96: SUB-TOTAL SLT: | X96: =SUM(M91:W95) -> 12
D98: SLT for Assessment: | X98: =X88+X96 -> 31
D99: GRAND TOTAL SLT: | X99: =X98+X80 -> 120
D100: A | E100: % SLT for F2F Physical Component: [Total F2F Physical /(Total F2F Physical + Total F2F Online + Total Independent Learning) x 100)] | X100: =IFERROR(((SUM(M60:P79)+SUM(M83:P87)+SUM(M91:P95))/X99)* 100,"") -> 40.83333333
D102: B | E102: % SLT for Online & Independent Learning Component: [(Total F2F Online + Total Independent Learning) /( Total F2F Physical + Total F2F Online + Total Independent Learning) x 100] | X102: =IFERROR((SUM(Q60:W79)+SUM(Q83:W87) + SUM(Q91:W95))/X99 * 100,"") -> 59.16666667
D103: C | E103: % SLT for All Practical Component: [% F2F Physical Practical + % F2F Online Practical] | X103: =IFERROR(X104+X105,"") -> 8.333333333
D104: C1 | E104: % SLT for F2F Physical Practical Component [Total F2F Physical Practical /( Total F2F Physical + Total F2F Online + Total Independent Learning) x 100)] | X104: =IFERROR(SUM(O60:O79)/X99*100,"") -> 8.333333333
D105: C2 | E105: % SLT for F2F Online Practical Component [Total F2F Online Practical / (Total F2F Physical + Total F2F Online + Total Independent Learning) x 100] | X105: =IFERROR(SUM(S60:S79)/X99*100,"") -> 0
Z106: =IFERROR(X102+X104,"") -> 67.5
D107: Please tick (√) if this course is Industrial Training/ Clinical Placement/ Practicum using 50% of Effective Learning Time (ELT)
D108: Note:
D109: * Indicate the CLO based on the CLO's numbering in Item 8
D110: ** For ODL programme: Courses with mandatory practical requiremnets imposed by the programme standards or any related standards can be exempted from complying to the minimum 80% ODL delivery rule in the SLT.
B112: 11 | C112: Identify special requirement or resources to deliver the course (e.g., software, nursery, computer lab, simulation room etc) | K112: Computer Lab
B114: 12 | C114: References (include required and further readings, and should be the most current) | K114: 1.Kenneth C. Laudon; Jane P. Laudon , J.P. (2022). Management Information Systems Managing the Digital Firm, 17th Edition. New York : Pearson Print ISBN: 9780136971276, 013697127XPrint ISBN: 9780136971276, 013697127X 2. Abedin, M. Z., & Hajek, P. (Eds.). (2024). Cyber security and business intelligence: Innovations and machine learning for cyber risk management. Routledge.
B116: 13 | C116: Other additional information (if applicable) | K116: None
C119: Note: Number of PLO indicated is purely for illustration purposes only and the number is subjected to the curriculum design.

Sheet MGT6233
B2: Back To FORM @ TEMPLATE
AI3: √
B5: 1 | C5: Course Name: | F5: Quality and Change Management | AI5: Semester
C6: Course Code: | F6: MGT6233 | AI6: 1
C7: Course Classification: | F7: Elective (open/free) | AI7: 2
B8: 2 | C8: Synopsis: | F8: This course examines the importance of managing organizational change in dynamic and uncertain business environments to support continuous improvement, renewal and transformation. It explores key change initiatives such as Total Quality Management (TQM), Business Process Re-engineering (BPR) and continuous improvement practices, highlighting their role in enhancing product quality, service delivery and overall business performance. | AI8: 3
B9: =B8+1 -> 3 | C9: Name(s) of Academic Staff: | F9: 1 | G9: Ms. Ros Farahwani Binti Rosali
F10: 2 | AI10: Year Offered
F11: 3 | AI11: 1
B12: =B9+1 -> 4 | C12: Semester and Year offered: | F12: Year Offered | I12: 2 | J12: Semester | L12: 1 | M12: Remarks: | AI12: 2
B13: =B12+1 -> 5 | C13: Credit Value: | F13: =IF(X107 ="√",INT(X99/80),INT(X99/40)) -> 3 | AI13: 3
B14: 6 | C14: Pre-requisite/ co-requisite (if any): | F14: NIL | AI14: 4
AI15: 5
B16: 7 | C16: Course Learning Outcomes (CLO) | F16: CLO1 | H16: Describe the environment, basic concepts and principles of Quality and Change Management in modern management.(PLO1,C5) | AI16: 6
F17: CLO2 | H17: Justify the measuring process fulfils the established quality requirements.(PLO11,A3) | AI17: 7
F18: CLO3 | H18: Discover the different models of change to manage complex issues in business organization. (PLO2,C3) | AI18: 8
AI20: Compulsory
AI21: Major (core)
AI22: Minor
AI23: Elective (core)
AI24: Elective (open/free)
B25: 8 | C25: Mapping of the Course Learning Outcomes to the Programme Learning Outcomes, Teaching Methods and Assessment Methods
D27: Course Learning Outcomes | F27: Programme Learning Outcomes (PLO) | R27: Teaching Methods | W27: Assessment Methods
F28: PLO 1 | G28: PLO 2 | H28: PLO 3 | I28: PLO 4 | J28: PLO 5 | K28: PLO 6 | L28: PLO 7 | M28: PLO 8 | N28: PLO 9 | O28: PLO 10 | P28: PLO 11
D29: =IF(ISBLANK(F16),"",F16) -> CLO1 | F29: √ | R29: Interactive Lecture, Tutorial ,case study | W29: Assignment
D30: CLO2 | P30: √ | R30: Interactive Lecture, case study & problem-solving exercises. | W30: Project
D31: CLO3 | G31: √ | R31: Interactive Lecture, case study & problem-solving exercises. | W31: Final Examination
AI36: Cognitive skills
D37: Mapping with MQF Cluster of Learning Outcomes | F37: C1 | G37: C2 | P37: C5 | AI37: Interpersonal skills
AI38: Communication Skills
AI39: Digital Skills
AI40: Numeracy Skills
D41: Indicate the primary causal link between the CLO and PLO by ticking '√' in the appropriate box. | AI41: Leadership, Autonomy and Responsibility
D42: C1 = Knowledge & Understanding, C2 = Cognitive Skills, C3A = Practical Skills, C3B = Interpersonal Skills, C3C = Communication Skills, C3D = Digital Skills, | AI42: Personal Skills
D43: C3E = Numeracy Skills, C3F = Leadership, Autonomy & Responsibility, C4A = Personal Skills, C4B = Entrepreneurial Skills, C5 = Ethics & Professionalism | AI43: Entrepreneurial Skills
AI44: Ethics and Professionalism
B45: 9 | C45: Transferable Skills (if applicable)
C46: (Skills learned in the course of study which can be useful and utilized in other settings) | I46: 1 | J46: Cognitive skills | AI46: C1
I47: 2 | J47: Ethics and Professionalism | AI47: C2
I48: 3 | J48: Interpersonal skills | AI48: C3A
I49: Open-ended response (if any) | AI49: C3B
I50: 4 | J50: Managers should be exposed to basic concepts and learned the principles and practice of Quality and Change Management so that they can become better managers and decision makers | AI50: C3C
AI51: C3D
AB52: ` | AI52: C3E
B53: 10 | C53: Distribution of Student Learning Time (SLT) | AI53: C3F
C54: Note: This SLT calculation is designed for home grown programme only. | AI54: C4A
AI55: C4B
D56: Course Content Outline and Subtopics | K56: CLO* | M56: Learning and Teaching Activities** | X56: Total SLT | AI56: C5
M57: Face-to-Face (F2F) | U57: NF2F Independent Learning (Asynchronous)
M58: Physical | Q58: Online/ Technology-mediated (Synchronous)
M59: L | N59: T | O59: P | P59: O | Q59: L | R59: T | S59: P | T59: O
D60: 1 | E60: Introduction to Quality and Change Management | K60: 1 | M60: 4 | N60: 2 | U60: 6
D61: 2 | E61: Planned versus Emergent Change | K61: 1 | M61: 4 | N61: 2 | U61: 6
D62: 3 | E62: Human Reaction to Change | K62: 2 | M62: 4 | N62: 2 | U62: 6
D63: 4 | E63: Models of Change | K63: 2 | M63: 4 | N63: 2 | U63: 6
D64: 5 | E64: Quality Initiatives as a Tool for Change | K64: 3 | M64: 4 | N64: 2 | U64: 6
D65: 6 | E65: Introduction to Quality and Change Management | K65: 3 | M65: 4 | N65: 2 | U65: 7
D66: 7 | E66: Forces of Change | K66: 3 | M66: 4 | N66: 2 | U66: 7
D67: 8
D68: 9
D69: 10
D70: =D69+1 -> 11
D71: 12
D72: 13
D73: 14
D74: 15
D75: 16
D76: 17
D77: 18
D78: 19
D79: 20
D80: SUB-TOTAL SLT: | X80: =SUM(M60:P79)+SUM(Q60:T79)+SUM(U60:W79) -> 86
D81: Continous Assessement | K81: % | M81: Face-to-Face (F2F) | U81: NF2F Independent Learning for Assessment (Asynchronous)
M82: Physical | Q82: Online/ Technology-mediated (Synchronous)
D83: 1 | E83: Assignment – Case Analysis / Report | K83: 0.3 | M83: 3 | U83: 9
D84: 2 | E84: Project | K84: 0.4 | M84: 3 | U84: 6
D85: 3
D86: 4
D87: 5
D88: SUB-TOTAL SLT: | X88: =SUM(M83:W87) -> 21
D89: Final Assessement | K89: % | M89: Face-to-Face (F2F) | U89: NF2F Independent Learning for Assessment (Asynchronous)
M90: Physical | Q90: Online/ Technology-mediated (Synchronous)
D91: 1 | E91: Final Exam | K91: 0.3 | M91: 3 | U91: 10
D92: 2
D93: 3
D94: 4
D95: 5
D96: SUB-TOTAL SLT: | X96: =SUM(M91:W95) -> 13
D98: SLT for Assessment: | X98: =X88+X96 -> 34
D99: GRAND TOTAL SLT: | X99: =X98+X80 -> 120
D100: A | E100: % SLT for F2F Physical Component: [Total F2F Physical /(Total F2F Physical + Total F2F Online + Total Independent Learning) x 100)] | X100: =IFERROR(((SUM(M60:P79)+SUM(M83:P87)+SUM(M91:P95))/X99)* 100,"") -> 42.5
D102: B | E102: % SLT for Online & Independent Learning Component: [(Total F2F Online + Total Independent Learning) /( Total F2F Physical + Total F2F Online + Total Independent Learning) x 100] | X102: =IFERROR((SUM(Q60:W79)+SUM(Q83:W87) + SUM(Q91:W95))/X99 * 100,"") -> 57.5
D103: C | E103: % SLT for All Practical Component: [% F2F Physical Practical + % F2F Online Practical] | X103: =IFERROR(X104+X105,"") -> 0
D104: C1 | E104: % SLT for F2F Physical Practical Component [Total F2F Physical Practical /( Total F2F Physical + Total F2F Online + Total Independent Learning) x 100)] | X104: =IFERROR(SUM(O60:O79)/X99*100,"") -> 0
D105: C2 | E105: % SLT for F2F Online Practical Component [Total F2F Online Practical / (Total F2F Physical + Total F2F Online + Total Independent Learning) x 100] | X105: =IFERROR(SUM(S60:S79)/X99*100,"") -> 0
Z106: =IFERROR(X102+X104,"") -> 57.5
D107: Please tick (√) if this course is Industrial Training/ Clinical Placement/ Practicum using 50% of Effective Learning Time (ELT)
D108: Note:
D109: * Indicate the CLO based on the CLO's numbering in Item 8
D110: ** For ODL programme: Courses with mandatory practical requiremnets imposed by the programme standards or any related standards can be exempted from complying to the minimum 80% ODL delivery rule in the SLT.
B112: 11 | C112: Identify special requirement or resources to deliver the course (e.g., software, nursery, computer lab, simulation room etc) | K112: None
B114: 12 | C114: References (include required and further readings, and should be the most current) | K114: Maleyeff, J. (2022). Quality service management: A guide to improving business processes. Routledge.
B116: 13 | C116: Other additional information (if applicable) | K116: Maes, G., & Van Hootegem, G. (Eds.). (2023). Organizational change and management. MDPI Books.
C119: Note: Number of PLO indicated is purely for illustration purposes only and the number is subjected to the curriculum design.

Sheet ISF6213
B2: Back To FORM @ TEMPLATE
AI3: √
B5: 1 | C5: Course Name: | F5: Islamic Banking & Finance | AI5: Semester
C6: Course Code: | F6: ISF6213 | AI6: 1
C7: Course Classification: | F7: Elective (open/free) | AI7: 2
B8: 2 | C8: Synopsis: | F8: This course was designed to introduce students to the theory and practice of Islamic banking and finance in general and in Malaysia in particular. Students will be exposed to concepts governing Islamic economics, finance and banking, Syariah compliant financial and banking products and trade instruments and practical issues related to the practice in Malaysian context. | AI8: 3
B9: =B8+1 -> 3 | C9: Name(s) of Academic Staff: | F9: 1 | G9: Mr. Tan Weng Kean
F10: 2 | AI10: Year Offered
F11: 3 | AI11: 1
B12: =B9+1 -> 4 | C12: Semester and Year offered: | F12: Year Offered | I12: 2 | J12: Semester | L12: 1 | M12: Remarks: | AI12: 2
B13: =B12+1 -> 5 | C13: Credit Value: | F13: =IF(X107 ="√",INT(X99/80),INT(X99/40)) -> 3 | AI13: 3
B14: 6 | C14: Pre-requisite/ co-requisite (if any): | F14: NIL | AI14: 4
AI15: 5
B16: 7 | C16: Course Learning Outcomes (CLO) | F16: CLO1 | H16: Describe the basic concept of Islam, economic, muamalat, islamic economics system, principles of muamalat and implementation of zakat in Islam. (PLO1, C5) | AI16: 6
F17: CLO2 | H17: Explain in group the development and practice of Islamic Banking and Finance in Malaysia (PLO4, A3) | AI17: 7
F18: CLO3 | H18: Evaluate the contract in Islamic Banking, Takaful and Islamic financial market in solving the problems. (PLO2, C4) | AI18: 8
AI20: Compulsory
AI21: Major (core)
AI22: Minor
AI23: Elective (core)
AI24: Elective (open/free)
B25: 8 | C25: Mapping of the Course Learning Outcomes to the Programme Learning Outcomes, Teaching Methods and Assessment Methods
D27: Course Learning Outcomes | F27: Programme Learning Outcomes (PLO) | R27: Teaching Methods | W27: Assessment Methods
F28: PLO 1 | G28: PLO 2 | H28: PLO 3 | I28: PLO 4 | J28: PLO 5 | K28: PLO 6 | L28: PLO 7 | M28: PLO 8 | N28: PLO 9 | O28: PLO 10 | P28: PLO 11
D29: =IF(ISBLANK(F16),"",F16) -> CLO1 | F29: √ | R29: Interactive Lecture, Tutorial ,case study | W29: Assignment
D30: CLO2 | I30: √ | R30: Interactive Lecture, case study & problem-solving exercises. | W30: Project
D31: CLO3 | G31: √ | R31: Interactive Lecture, case study & problem-solving exercises. | W31: Final Examination
AI36: Cognitive skills
D37: Mapping with MQF Cluster of Learning Outcomes | F37: C1 | G37: C2 | I37: C3B | AI37: Interpersonal skills
AI38: Communication Skills
AI39: Digital Skills
AI40: Numeracy Skills
D41: Indicate the primary causal link between the CLO and PLO by ticking '√' in the appropriate box. | AI41: Leadership, Autonomy and Responsibility
D42: C1 = Knowledge & Understanding, C2 = Cognitive Skills, C3A = Practical Skills, C3B = Interpersonal Skills, C3C = Communication Skills, C3D = Digital Skills, | AI42: Personal Skills
D43: C3E = Numeracy Skills, C3F = Leadership, Autonomy & Responsibility, C4A = Personal Skills, C4B = Entrepreneurial Skills, C5 = Ethics & Professionalism | AI43: Entrepreneurial Skills
AI44: Ethics and Professionalism
B45: 9 | C45: Transferable Skills (if applicable)
C46: (Skills learned in the course of study which can be useful and utilized in other settings) | I46: 1 | J46: Cognitive skills | AI46: C1
I47: 2 | J47: Interpersonal skills | AI47: C2
I48: 3 | J48: Ethics and Professionalism | AI48: C3A
I49: Open-ended response (if any) | AI49: C3B
I50: 4 | AI50: C3C
AI51: C3D
AB52: ` | AI52: C3E
B53: 10 | C53: Distribution of Student Learning Time (SLT) | AI53: C3F
C54: Note: This SLT calculation is designed for home grown programme only. | AI54: C4A
AI55: C4B
D56: Course Content Outline and Subtopics | K56: CLO* | M56: Learning and Teaching Activities** | X56: Total SLT | AI56: C5
M57: Face-to-Face (F2F) | U57: NF2F Independent Learning (Asynchronous)
M58: Physical | Q58: Online/ Technology-mediated (Synchronous)
M59: L | N59: T | O59: P | P59: O | Q59: L | R59: T | S59: P | T59: O
D60: 1 | E60: Introduction • The concept – Islam as a way of life‘ • Economic and muamalat in Islamic framework • Islamic Economic system | K60: 1 | M60: 2 | N60: 1 | U60: =SUM(M60+N60) -> 3
D61: 2 | E61: Basic Muamalat Principles • Riba vs interest – definition, nature and types • Principles and rules of Islamic transactions • Views from the four mazhabs‘ in Islam • Sources of Syariah as the basis of rules in muamalat. • Islamic contracts and Syariah compliance. • The issue of Gharar‘ in Islamic transactions • Views from the four mazhabs‘ in Islam | K61: 1 | M61: 3 | N61: 1 | U61: 4
D62: 3 | E62: Islamic Banking and Finance • Historical development • Islamic approach in muamalat •goal and objective of Islamic banking and finance • Islamic financial instruments. • Asset products and liabilities. • Concepts and practices of profit sharing in Islamic compliance transactions | K62: 2 | M62: 8 | N62: 6 | U62: 14
D63: 4 | E63: Sales and lease contract • Muammalat Instruments & Accounting Issues • Bai‘ Bathiman Ajil (sales and progressive payments) • Murabahah (sales at costs + mark-up) • Ijarah dan Muntahia Bithamleek (leasing and hire purchase) • Istisna‘ & Salam sales | K63: 3 | M63: 3 | N63: 2 | U63: 5
D64: 5 | E64: Partnership contract • Musyarakah (partnerships/joint ventures) • Mudharabah (profit sharing) | K64: 3 | M64: 3 | N64: 2 | U64: 5
D65: 6 | E65: Portfolio Management/Debt contract • Al Bai ‗ Al Dayn (debt instruments) • Trade financing Instruments To focus on the understanding of concepts, rationale and mechanics | K65: 3 | M65: 2 | N65: 1 | U65: 3
D66: 7 | E66: Services Based contract • wakalah • hawalah • Kafalah • Hibah | K66: 3 | M66: 2 | N66: 1 | U66: 3
D67: 8 | E67: Zakat • Islamic concept of ‗zakat‘ • Assets and properties that Zakat is payable • Calculation and accounting of Zakat | K67: 1 | M67: 2 | N67: 1 | U67: 3
D68: 9 | E68: THE ISLAMIC FINANCIAL MARKETS • Islamic financial markets - Definition, characteristics and scope • Islamic and conventional financial markets compared • Participants in the Islamic financial markets • Islamic financial market instruments: issuance, pricing and trading | K68: 3 | M68: 3 | N68: 2 | U68: 5
D69: 10 | E69: TAKAFUL • The philosophy, principles and practice of takaful • Operational issues of takaful • Types of takaful | K69: 3 | M69: 2 | N69: 1 | U69: 3
D70: =D69+1 -> 11
D71: 12
D72: 13
D73: 14
D74: 15
D75: 16
D76: 17
D77: 18
D78: 19
D79: 20
D80: SUB-TOTAL SLT: | X80: =SUM(M60:P79)+SUM(Q60:T79)+SUM(U60:W79) -> 96
D81: Continous Assessement | K81: % | M81: Face-to-Face (F2F) | U81: NF2F Independent Learning for Assessment (Asynchronous)
M82: Physical | Q82: Online/ Technology-mediated (Synchronous)
D83: 1 | E83: ASSIGNMENT | K83: 0.3 | M83: 1 | U83: 3
D84: 2 | E84: PROJECT/CASE STUDY/PRESENTATION (1000-1167 words) | K84: 0.4 | M84: 2 | U84: 9
D85: 3
D86: 4
D87: 5
D88: SUB-TOTAL SLT: | X88: =SUM(M83:W87) -> 15
D89: Final Assessement | K89: % | M89: Face-to-Face (F2F) | U89: NF2F Independent Learning for Assessment (Asynchronous)
M90: Physical | Q90: Online/ Technology-mediated (Synchronous)
D91: 1 | E91: FINAL EXAM | K91: 0.3 | M91: 3 | U91: 6
D92: 2
D93: 3
D94: 4
D95: 5
D96: SUB-TOTAL SLT: | X96: =SUM(M91:W95) -> 9
D98: SLT for Assessment: | X98: =X88+X96 -> 24
D99: GRAND TOTAL SLT: | X99: =X98+X80 -> 120
D100: A | E100: % SLT for F2F Physical Component: [Total F2F Physical /(Total F2F Physical + Total F2F Online + Total Independent Learning) x 100)] | X100: =IFERROR(((SUM(M60:P79)+SUM(M83:P87)+SUM(M91:P95))/X99)* 100,"") -> 45
D102: B | E102: % SLT for Online & Independent Learning Component: [(Total F2F Online + Total Independent Learning) /( Total F2F Physical + Total F2F Online + Total Independent Learning) x 100] | X102: =IFERROR((SUM(Q60:W79)+SUM(Q83:W87) + SUM(Q91:W95))/X99 * 100,"") -> 55
D103: C | E103: % SLT for All Practical Component: [% F2F Physical Practical + % F2F Online Practical] | X103: =IFERROR(X104+X105,"") -> 0
D104: C1 | E104: % SLT for F2F Physical Practical Component [Total F2F Physical Practical /( Total F2F Physical + Total F2F Online + Total Independent Learning) x 100)] | X104: =IFERROR(SUM(O60:O79)/X99*100,"") -> 0
D105: C2 | E105: % SLT for F2F Online Practical Component [Total F2F Online Practical / (Total F2F Physical + Total F2F Online + Total Independent Learning) x 100] | X105: =IFERROR(SUM(S60:S79)/X99*100,"") -> 0
Z106: =IFERROR(X102+X104,"") -> 55
D107: Please tick (√) if this course is Industrial Training/ Clinical Placement/ Practicum using 50% of Effective Learning Time (ELT)
D108: Note:
D109: * Indicate the CLO based on the CLO's numbering in Item 8
D110: ** For ODL programme: Courses with mandatory practical requiremnets imposed by the programme standards or any related standards can be exempted from complying to the minimum 80% ODL delivery rule in the SLT.
B112: 11 | C112: Identify special requirement or resources to deliver the course (e.g., software, nursery, computer lab, simulation room etc) | K112: None
B114: 12 | C114: References (include required and further readings, and should be the most current) | K114: 1. Iqbal, Z., & Mirakhor, A. (2022). An introduction to Islamic finance: Theory and practice (3rd ed.). Wiley.
B116: 13 | C116: Other additional information (if applicable) | K116: 2. Hanif, M. (2023). Islamic banking and finance: Fundamentals and contemporary issues (2nd ed.). Cengage Learning Asia.
C119: Note: Number of PLO indicated is purely for illustration purposes only and the number is subjected to the curriculum design.

Sheet LPG6223
B2: Back To FORM @ TEMPLATE
AI3: √
B5: 1 | C5: Course Name: | F5: Ethics, Governance & Accountability | AI5: Semester
C6: Course Code: | F6: LPG6223 | AI6: 1
C7: Course Classification: | F7: Major (core) | AI7: 2
B8: 2 | C8: Synopsis: | F8: This course provides an advanced understanding of corporate accountability and the governance of large public and corporate entities. It examines political and economic influences on corporate governance, international financial reporting frameworks, ethical codes and regulatory developments, while also addressing key international and cultural issues in accountability practices. | AI8: 3
B9: =B8+1 -> 3 | C9: Name(s) of Academic Staff: | F9: 1 | G9: Mr. Gunalan A/L Nachiappan
F10: 2 | AI10: Year Offered
F11: 3 | AI11: 1
B12: =B9+1 -> 4 | C12: Semester and Year offered: | F12: Year Offered | I12: 2 | J12: Semester | L12: 2 | M12: Remarks: | AI12: 2
B13: =B12+1 -> 5 | C13: Credit Value: | F13: =IF(X107 ="√",INT(X99/80),INT(X99/40)) -> 3 | AI13: 3
B14: 6 | C14: Pre-requisite/ co-requisite (if any): | AI14: 4
AI15: 5
B16: 7 | C16: Course Learning Outcomes (CLO) | F16: CLO1 | H16: Explain the principles of ethics, governance, and accountability in corporate and public organizations. (PLO1, C1) | AI16: 6
F17: CLO2 | H17: Analyze how political, economic, and cultural factors influence corporate governance, accountability, and ethical decision-making. (PLO 2, C2) | AI17: 7
F18: CLO3 | H18: Evaluate international reporting standards, ethical codes, regulatory requirements, and cultural considerations in promoting accountability and ethical behaviour in organisations. (PLO3,C5) | AI18: 8
AI20: Compulsory
AI21: Major (core)
AI22: Minor
AI23: Elective (core)
AI24: Elective (open/free)
B25: 8 | C25: Mapping of the Course Learning Outcomes to the Programme Learning Outcomes, Teaching Methods and Assessment Methods
D27: Course Learning Outcomes | F27: Programme Learning Outcomes (PLO) | R27: Teaching Methods | W27: Assessment Methods
F28: PLO 1 | G28: PLO 2 | H28: PLO 3 | I28: PLO 4 | J28: PLO 5 | K28: PLO 6 | L28: PLO 7 | M28: PLO 8 | N28: PLO 9 | O28: PLO 10 | P28: PLO 11
D29: =IF(ISBLANK(F16),"",F16) -> CLO1 | F29: √ | R29: Lecture,Tutorial | W29: Oral Presentation
D30: CLO2 | G30: √ | R30: Lecture,Tutorial | W30: Work Report
D31: CLO3 | J31: √ | R31: Lecture,Tutorial | W31: Final Examination
AI36: Cognitive skills
D37: Mapping with MQF Cluster of Learning Outcomes | F37: C1 | G37: C2 | J37: C5 | AI37: Interpersonal skills
AI38: Communication Skills
AI39: Digital Skills
AI40: Numeracy Skills
D41: Indicate the primary causal link between the CLO and PLO by ticking '√' in the appropriate box. | AI41: Leadership, Autonomy and Responsibility
D42: C1 = Knowledge & Understanding, C2 = Cognitive Skills, C3A = Practical Skills, C3B = Interpersonal Skills, C3C = Communication Skills, C3D = Digital Skills, | AI42: Personal Skills
D43: C3E = Numeracy Skills, C3F = Leadership, Autonomy & Responsibility, C4A = Personal Skills, C4B = Entrepreneurial Skills, C5 = Ethics & Professionalism | AI43: Entrepreneurial Skills
AI44: Ethics and Professionalism
B45: 9 | C45: Transferable Skills (if applicable)
C46: (Skills learned in the course of study which can be useful and utilized in other settings) | I46: 1 | J46: Cognitive skills | AI46: C1
I47: 2 | J47: Ethics and Professionalism | AI47: C2
I48: 3 | J48: Interpersonal skills | AI48: C3A
I49: Open-ended response (if any) | AI49: C3B
I50: 4 | AI50: C3C
AI51: C3D
AB52: ` | AI52: C3E
B53: 10 | C53: Distribution of Student Learning Time (SLT) | AI53: C3F
C54: Note: This SLT calculation is designed for home grown programme only. | AI54: C4A
AI55: C4B
D56: Course Content Outline and Subtopics | K56: CLO* | M56: Learning and Teaching Activities** | X56: Total SLT | AI56: C5
M57: Face-to-Face (F2F) | U57: NF2F Independent Learning (Asynchronous)
M58: Physical | Q58: Online/ Technology-mediated (Synchronous)
M59: L | N59: T | O59: P | P59: O | Q59: L | R59: T | S59: P | T59: O
D60: 1 | E60: Chapter 1: Ethics in the World of Business * Meaning and scope of ethics * Ethics vs morals vs law * Importance of ethics in business and society * Contemporary ethical issues in business | K60: 1 | M60: 3 | U60: 5
D61: 2 | E61: Chapter 2: Ethical Decision Making * Utilitarianism, deontology, virtue ethics * Justice and rights-based theories * Ethical decision-making frameworks * Applying ethical models to business cases | K61: 3 | M61: 3 | U61: 5
D62: 3 | E62: Chapter 3: Moral Development * Concept of moral development * Stages of moral development (e.g. Kohlberg’s theory) * Moral reasoning and ethical behaviour in organisations * Influence of culture, education and leadership on moral development | K62: 2 | M62: 3 | U62: 5
D63: 4 | E63: Chapter 4: Corporate Governance: Concepts and Principles * Definition and objectives of corporate governance * Principles of good governance (transparency, accountability, fairness, responsibility) * Governance frameworks and codes (e.g. Malaysian Code on Corporate Governance) * Role of governance in organisational sustainability | K63: 3 | M63: 3 | U63: 5
D64: 5 | E64: Chapter 5: Governance Structures in Organisations * Board of Directors: roles and responsibilities * Board committees (audit, risk, nomination, remuneration) * Role of management vs board * Stakeholders in corporate governance | K64: 2 | M64: 3 | U64: 8
D65: 6 | E65: Chapter 6: Accountability in Business and Public Organisations * Concept and dimensions of accountability * Financial, managerial, social and ethical accountability * Accountability mechanisms and reporting * Accountability in private vs public sector | K65: 1 | M65: 3 | U65: 5
D66: 7 | E66: Chapter 7: Ethics, Compliance and Regulatory Environment * CSR concepts and models * Ethical responsibilities to stakeholders * Environmental, social and governance (ESG) perspectives * Sustainability reporting and accountability | K66: 3 | M66: 3 | U66: 5
D67: 8 | E67: Chapter 8: Corporate Social Responsibility (CSR) and Sustainability * CSR concepts and models * Ethical responsibilities to stakeholders * Environmental, social and governance (ESG) perspectives * Sustainability reporting and accountability | K67: 1 | M67: 3 | U67: 5
D68: 9 | E68: Chapter 9: Fraud, Corruption and Whistleblowing * Types and causes of fraud and corruption * Ethical implications of corruption in business * Whistleblowing policies and protection * Preventive measures and ethical culture | K68: 3 | M68: 3 | U68: 5
D69: 10 | E69: Chapter 10: Ethical Leadership and Organisational Culture * Characteristics of ethical leaders * Leadership influence on ethical behaviour * Building and sustaining ethical organisational culture * Managing ethical dilemmas at leadership level | K69: 2 | M69: 3 | U69: 5
D70: =D69+1 -> 11 | E70: Chapter 11: Ethics in Global and Digital Business * Ethical challenges in global business operations * Cross-cultural ethical issues * Ethics in digital business, AI and data privacy * Cyber ethics and accountability | K70: 3 | M70: 3 | U70: 4
D71: 12 | E71: Chapter 12: Case Studies in Ethics, Governance & Accountability * Local and international business ethics cases * Corporate governance failures and lessons learned * Ethical dilemma analysis and group discussions | L71: 2 | M71: 3 | U71: 5
D72: 13
D73: 14
D74: 15
D75: 16
D76: 17
D77: 18
D78: 19
D79: 20
D80: SUB-TOTAL SLT: | X80: =SUM(M60:P79)+SUM(Q60:T79)+SUM(U60:W79) -> 98
D81: Continous Assessement | K81: % | M81: Face-to-Face (F2F) | U81: NF2F Independent Learning for Assessment (Asynchronous)
M82: Physical | Q82: Online/ Technology-mediated (Synchronous)
D83: 1 | E83: Oral Presentation | K83: 0.2 | M83: 2 | U83: 5
D84: 2 | E84: Written report | K84: 0.3 | M84: 3 | U84: 5
D85: 3
D86: 4
D87: 5
D88: SUB-TOTAL SLT: | X88: =SUM(M83:W87) -> 15
D89: Final Assessement | K89: % | M89: Face-to-Face (F2F) | U89: NF2F Independent Learning for Assessment (Asynchronous)
M90: Physical | Q90: Online/ Technology-mediated (Synchronous)
D91: 1 | E91: Final Exam | K91: 0.5 | M91: 3 | U91: 4
D92: 2
D93: 3
D94: 4
D95: 5
D96: SUB-TOTAL SLT: | X96: =SUM(M91:W95) -> 7
D98: SLT for Assessment: | X98: =X88+X96 -> 22
D99: GRAND TOTAL SLT: | X99: =X98+X80 -> 120
D100: A | E100: % SLT for F2F Physical Component: [Total F2F Physical /(Total F2F Physical + Total F2F Online + Total Independent Learning) x 100)] | X100: =IFERROR(((SUM(M60:P79)+SUM(M83:P87)+SUM(M91:P95))/X99)* 100,"") -> 36.66666667
D102: B | E102: % SLT for Online & Independent Learning Component: [(Total F2F Online + Total Independent Learning) /( Total F2F Physical + Total F2F Online + Total Independent Learning) x 100] | X102: =IFERROR((SUM(Q60:W79)+SUM(Q83:W87) + SUM(Q91:W95))/X99 * 100,"") -> 63.33333333
D103: C | E103: % SLT for All Practical Component: [% F2F Physical Practical + % F2F Online Practical] | X103: =IFERROR(X104+X105,"") -> 0
D104: C1 | E104: % SLT for F2F Physical Practical Component [Total F2F Physical Practical /( Total F2F Physical + Total F2F Online + Total Independent Learning) x 100)] | X104: =IFERROR(SUM(O60:O79)/X99*100,"") -> 0
D105: C2 | E105: % SLT for F2F Online Practical Component [Total F2F Online Practical / (Total F2F Physical + Total F2F Online + Total Independent Learning) x 100] | X105: =IFERROR(SUM(S60:S79)/X99*100,"") -> 0
Z106: =IFERROR(X102+X104,"") -> 63.33333333
D107: Please tick (√) if this course is Industrial Training/ Clinical Placement/ Practicum using 50% of Effective Learning Time (ELT)
D108: Note:
D109: * Indicate the CLO based on the CLO's numbering in Item 8
D110: ** For ODL programme: Courses with mandatory practical requiremnets imposed by the programme standards or any related standards can be exempted from complying to the minimum 80% ODL delivery rule in the SLT.
B112: 11 | C112: Identify special requirement or resources to deliver the course (e.g., software, nursery, computer lab, simulation room etc) | K112: None
B114: 12 | C114: References (include required and further readings, and should be the most current) | K114: Boatright, J.R., 2020. Ethics and the Conduct of Business. Pearson Higher Ed.
B116: 13 | C116: Other additional information (if applicable) | K116: Tricker, B. (2022). Corporate governance: Principles, policies, and practices (5th ed.). Oxford University Press.
C119: Note: Number of PLO indicated is purely for illustration purposes only and the number is subjected to the curriculum design.

Sheet LPG6233
B2: Back To FORM @ TEMPLATE
AI3: √
B5: 1 | C5: Course Name: | F5: Business Law | AI5: Semester
C6: Course Code: | F6: LPG6233 | AI6: 1
C7: Course Classification: | F7: Major (core) | AI7: 2
B8: 2 | C8: Synopsis: | F8: This course introduces students to the fundamental principles of business law governing the rights, duties and obligations of individuals and organizations in commercial activities. It covers key areas such as contract law, company and partnership regulations, competition and consumer protection law as well as legal aspects of business financing, banking, and insurance, providing a balanced understanding of legal frameworks in business transactions. | AI8: 3
B9: =B8+1 -> 3 | C9: Name(s) of Academic Staff: | F9: 1 | G9: Mr Yap Kok Kheong
F10: 2 | AI10: Year Offered
F11: 3 | AI11: 1
B12: =B9+1 -> 4 | C12: Semester and Year offered: | F12: Year Offered | I12: 2 | J12: Semester | L12: 2 | M12: Remarks: | AI12: 2
B13: =B12+1 -> 5 | C13: Credit Value: | F13: =IF(X107 ="√",INT(X99/80),INT(X99/40)) -> 3 | AI13: 3
B14: 6 | C14: Pre-requisite/ co-requisite (if any): | AI14: 4
AI15: 5
B16: 7 | C16: Course Learning Outcomes (CLO) | F16: CLO1 | H16: Discover the Malaysian legal framework with business transaction(PLO 2,C3) | AI16: 6
F17: CLO2 | H17: Comply the legal rules of business entities and contractual transaction in Malaysia(PLO 3,A2) | AI17: 7
F18: CLO3 | H18: Analyse problem based scenario with references to relevant statutes and case law in arriving at a solution(PLO 5,C4) | AI18: 8
AI20: Compulsory
AI21: Major (core)
AI22: Minor
AI23: Elective (core)
AI24: Elective (open/free)
B25: 8 | C25: Mapping of the Course Learning Outcomes to the Programme Learning Outcomes, Teaching Methods and Assessment Methods
D27: Course Learning Outcomes | F27: Programme Learning Outcomes (PLO) | R27: Teaching Methods | W27: Assessment Methods
F28: PLO 1 | G28: PLO 2 | H28: PLO 3 | I28: PLO 4 | J28: PLO 5 | K28: PLO 6 | L28: PLO 7 | M28: PLO 8 | N28: PLO 9 | O28: PLO 10 | P28: PLO 11
D29: =IF(ISBLANK(F16),"",F16) -> CLO1 | G29: √ | R29: Interactive Lecture & Case based study/discussion | W29: Assignment
D30: CLO2 | H30: √ | R30: case study | W30: Project
D31: CLO3 | J31: √ | R31: Interactive Lecture/discussion | W31: Final Exam
AI36: Cognitive skills
D37: Mapping with MQF Cluster of Learning Outcomes | G37: C2 | H37: C3A | J37: C5 | AI37: Interpersonal skills
AI38: Communication Skills
AI39: Digital Skills
AI40: Numeracy Skills
D41: Indicate the primary causal link between the CLO and PLO by ticking '√' in the appropriate box. | AI41: Leadership, Autonomy and Responsibility
D42: C1 = Knowledge & Understanding, C2 = Cognitive Skills, C3A = Practical Skills, C3B = Interpersonal Skills, C3C = Communication Skills, C3D = Digital Skills, | AI42: Personal Skills
D43: C3E = Numeracy Skills, C3F = Leadership, Autonomy & Responsibility, C4A = Personal Skills, C4B = Entrepreneurial Skills, C5 = Ethics & Professionalism | AI43: Entrepreneurial Skills
AI44: Ethics and Professionalism
B45: 9 | C45: Transferable Skills (if applicable)
C46: (Skills learned in the course of study which can be useful and utilized in other settings) | I46: 1 | J46: Cognitive skills | AI46: C1
I47: 2 | J47: Interpersonal skills | AI47: C2
I48: 3 | J48: Ethics and Professionalism | AI48: C3A
I49: Open-ended response (if any) | AI49: C3B
I50: 4 | AI50: C3C
AI51: C3D
AB52: ` | AI52: C3E
B53: 10 | C53: Distribution of Student Learning Time (SLT) | AI53: C3F
C54: Note: This SLT calculation is designed for home grown programme only. | AI54: C4A
AI55: C4B
D56: Course Content Outline and Subtopics | K56: CLO* | M56: Learning and Teaching Activities** | X56: Total SLT | AI56: C5
M57: Face-to-Face (F2F) | U57: NF2F Independent Learning (Asynchronous)
M58: Physical | Q58: Online/ Technology-mediated (Synchronous)
M59: L | N59: T | O59: P | P59: O | Q59: L | R59: T | S59: P | T59: O
D60: 1 | E60: MALAYSIAN LEGAL SYSTEM | K60: 1 | M60: 6 | N60: 2 | U60: 4
D61: 2 | E61: CONTRACTS | K61: 1 | M61: 3 | N61: 1 | U61: 2
D62: 3 | E62: DEVELOPMENTS OF CONTRACTS | K62: 1 | M62: 6 | N62: 2 | U62: 4
D63: 4 | E63: REMEDY | K63: 1 | M63: 3 | N63: 1 | U63: 2
D64: 5 | E64: AGENCIES | K64: 2 | M64: 6 | N64: 2 | U64: 4
D65: 6 | E65: HIRE PURCHASE | K65: 2 | M65: 6 | N65: 2 | U65: 4
D66: 7 | E66: SALES OF GOODS | K66: 2 | M66: 6 | N66: 2 | U66: 4
D67: 8 | E67: INSURANCE | K67: 3 | M67: 6 | N67: 2 | U67: 2
D68: 9 | E68: EMPLOYE-EMPLOYEE RELATIONSHIP | K68: 3 | M68: 6 | N68: 2 | U68: 3
D69: 10
D70: =D69+1 -> 11
D71: 12
D72: 13
D73: 14
D74: 15
D75: 16
D76: 17
D77: 18
D78: 19
D79: 20
D80: SUB-TOTAL SLT: | X80: =SUM(M60:P79)+SUM(Q60:T79)+SUM(U60:W79) -> 93
D81: Continous Assessement | K81: % | M81: Face-to-Face (F2F) | U81: NF2F Independent Learning for Assessment (Asynchronous)
M82: Physical | Q82: Online/ Technology-mediated (Synchronous)
D83: 1 | E83: ASSIGNMENT | K83: 0.3 | M83: 1 | U83: 7
D84: 2 | E84: MID TERM | K84: 0.2 | M84: 2 | U84: 6
D85: 3
D86: 4
D87: 5
D88: SUB-TOTAL SLT: | X88: =SUM(M83:W87) -> 16
D89: Final Assessement | K89: % | M89: Face-to-Face (F2F) | U89: NF2F Independent Learning for Assessment (Asynchronous)
M90: Physical | Q90: Online/ Technology-mediated (Synchronous)
D91: 1 | E91: FINAL EXAM | K91: 0.5 | M91: 3 | U91: 8
D92: 2
D93: 3
D94: 4
D95: 5
D96: SUB-TOTAL SLT: | X96: =SUM(M91:W95) -> 11
D98: SLT for Assessment: | X98: =X88+X96 -> 27
D99: GRAND TOTAL SLT: | X99: =X98+X80 -> 120
D100: A | E100: % SLT for F2F Physical Component: [Total F2F Physical /(Total F2F Physical + Total F2F Online + Total Independent Learning) x 100)] | X100: =IFERROR(((SUM(M60:P79)+SUM(M83:P87)+SUM(M91:P95))/X99)* 100,"") -> 58.33333333
D102: B | E102: % SLT for Online & Independent Learning Component: [(Total F2F Online + Total Independent Learning) /( Total F2F Physical + Total F2F Online + Total Independent Learning) x 100] | X102: =IFERROR((SUM(Q60:W79)+SUM(Q83:W87) + SUM(Q91:W95))/X99 * 100,"") -> 41.66666667
D103: C | E103: % SLT for All Practical Component: [% F2F Physical Practical + % F2F Online Practical] | X103: =IFERROR(X104+X105,"") -> 0
D104: C1 | E104: % SLT for F2F Physical Practical Component [Total F2F Physical Practical /( Total F2F Physical + Total F2F Online + Total Independent Learning) x 100)] | X104: =IFERROR(SUM(O60:O79)/X99*100,"") -> 0
D105: C2 | E105: % SLT for F2F Online Practical Component [Total F2F Online Practical / (Total F2F Physical + Total F2F Online + Total Independent Learning) x 100] | X105: =IFERROR(SUM(S60:S79)/X99*100,"") -> 0
Z106: =IFERROR(X102+X104,"") -> 41.66666667
D107: Please tick (√) if this course is Industrial Training/ Clinical Placement/ Practicum using 50% of Effective Learning Time (ELT)
D108: Note:
D109: * Indicate the CLO based on the CLO's numbering in Item 8
D110: ** For ODL programme: Courses with mandatory practical requiremnets imposed by the programme standards or any related standards can be exempted from complying to the minimum 80% ODL delivery rule in the SLT.
B112: 11 | C112: Identify special requirement or resources to deliver the course (e.g., software, nursery, computer lab, simulation room etc) | K112: None
B114: 12 | C114: References (include required and further readings, and should be the most current) | K114: Twomey, D. P., Jennings, M. M., & Greene, S. (2023). Anderson's business law and the legal environment (25th ed.). Cengage Learning.
B116: 13 | C116: Other additional information (if applicable) | K116: Abdul Majid bin Nabi Baksh & Krishnan Arjunan (2020),Business Law,3rd Edition,LexisNexis
C119: Note: Number of PLO indicated is purely for illustration purposes only and the number is subjected to the curriculum design.

Sheet MPU3143
B2: Back To FORM @ TEMPLATE
AI3: √
B5: 1 | C5: Course Name: | F5: BAHASA MELAYU KOMUNIKASI 2 | AI5: Semester
C6: Course Code: | F6: MPU3143 | AI6: 1
C7: Course Classification: | F7: Compulsory | AI7: 2
B8: 2 | C8: Synopsis: | F8: Kursus ini melatih pelajar antarabangsa untuk berkomunikai dalam bahasa Melayu asas yang meliputi situasi kehidupan harian. Pelajar akan diperkenalkan dengan pertuturan dan penulisan Bahasa Melayu mudah. Pengajaran dan pembelajaran akan dilaksanakan dalam bentuk kuliah, tutorial, tugasan dan pengalaman pembelajaran pelajar di dalam kelas dan di luar kelas. Pada akhir kursus ini, pelajar diharapkan dapat berkomunikasi dan menulis menggunakan ayat mudah dengan berkesan | AI8: 3
B9: =B8+1 -> 3 | C9: Name(s) of Academic Staff: | F9: 1 | G9: Mr. Muhammad Mu’adz Bin Mohd Saufee
F10: 2 | AI10: Year Offered
F11: 3 | AI11: 1
B12: =B9+1 -> 4 | C12: Semester and Year offered: | F12: Year Offered | I12: 2 | J12: Semester | L12: 3 | M12: Remarks: | AI12: 2
B13: =B12+1 -> 5 | C13: Credit Value: | F13: =IF(X107 ="√",INT(X99/80),INT(X99/40)) -> 3 | AI13: 3
B14: 6 | C14: Pre-requisite/ co-requisite (if any): | F14: NIL | AI14: 4
AI15: 5
B16: 7 | C16: Course Learning Outcomes (CLO) | F16: CLO1 | H16: Menerangkan kandungan teks penuh yang menggunakan ayat mudah dan ayat berlapis (PLO5, C3) | AI16: 6
F17: CLO2 | H17: Bertutur dalam pelbagai situati dengan menggunakan ayat mudah dan ayat berlapis (PLO4, C4) | AI17: 7
F18: CLO3 | H18: Menyusun idea secara kreatif dan sistematik dalam penulisan karangan pendek. (PLO7, C2) | AI18: 8
AI20: Compulsory
AI21: Major (core)
AI22: Minor
AI23: Elective (core)
AI24: Elective (open/free)
B25: 8 | C25: Mapping of the Course Learning Outcomes to the Programme Learning Outcomes, Teaching Methods and Assessment Methods
D27: Course Learning Outcomes | F27: Programme Learning Outcomes (PLO) | R27: Teaching Methods | W27: Assessment Methods
F28: PLO 1 | G28: PLO 2 | H28: PLO 3 | I28: PLO 4 | J28: PLO 5 | K28: PLO 6 | L28: PLO 7 | M28: PLO 8 | N28: PLO 9 | O28: PLO 10 | P28: PLO 11
D29: =IF(ISBLANK(F16),"",F16) -> CLO1 | J29: √ | R29: Lecture | W29: Assignment , Final Exam
D30: CLO2 | I30: √ | R30: Lecture | W30: Assignment , Final Exam
D31: CLO3 | L31: √ | R31: Lecture | W31: Assignment , Final Exam
AI36: Cognitive skills
D37: Mapping with MQF Cluster of Learning Outcomes | I37: C4A | J37: C3C | L37: C2 | AI37: Interpersonal skills
AI38: Communication Skills
AI39: Digital Skills
AI40: Numeracy Skills
D41: Indicate the primary causal link between the CLO and PLO by ticking '√' in the appropriate box. | AI41: Leadership, Autonomy and Responsibility
D42: C1 = Knowledge & Understanding, C2 = Cognitive Skills, C3A = Practical Skills, C3B = Interpersonal Skills, C3C = Communication Skills, C3D = Digital Skills, | AI42: Personal Skills
D43: C3E = Numeracy Skills, C3F = Leadership, Autonomy & Responsibility, C4A = Personal Skills, C4B = Entrepreneurial Skills, C5 = Ethics & Professionalism | AI43: Entrepreneurial Skills
AI44: Ethics and Professionalism
B45: 9 | C45: Transferable Skills (if applicable)
C46: (Skills learned in the course of study which can be useful and utilized in other settings) | I46: 1 | J46: Cognitive skills | AI46: C1
I47: 2 | J47: Communication Skills | AI47: C2
I48: 3 | J48: Personal Skills | AI48: C3A
I49: Open-ended response (if any) | AI49: C3B
I50: 4 | AI50: C3C
AI51: C3D
AB52: ` | AI52: C3E
B53: 10 | C53: Distribution of Student Learning Time (SLT) | AI53: C3F
C54: Note: This SLT calculation is designed for home grown programme only. | AI54: C4A
AI55: C4B
D56: Course Content Outline and Subtopics | K56: CLO* | M56: Learning and Teaching Activities** | X56: Total SLT | AI56: C5
M57: Face-to-Face (F2F) | U57: NF2F Independent Learning (Asynchronous)
M58: Physical | Q58: Online/ Technology-mediated (Synchronous)
M59: L | N59: T | O59: P | P59: O | Q59: L | R59: T | S59: P | T59: O
D60: 1 | E60: Topik 1. Bunyi dan Sebutan | K60: 1 | M60: 3 | N60: 3 | U60: 9
D61: 2 | E61: Topik 2. Saya, Kawan dan Keluarga | K61: 1,2 | M61: 3 | N61: 3 | U61: 9
D62: 3 | E62: Topik 3. Persekitaran | K62: 1,2 | M62: 3 | N62: 3 | U62: 9
D63: 4 | E63: Topik 4. Situasi Perbualan | K63: 2 | M63: 3 | N63: 3 | U63: 9
D64: 5 | E64: Topik 5. Percutian | K64: 3 | M64: 3 | N64: 3 | U64: 9
D65: 6
D66: 7
D67: 8
D68: 9
D69: 10
D70: =D69+1 -> 11
D71: 12
D72: 13
D73: 14
D74: 15
D75: 16
D76: 17
D77: 18
D78: 19
D79: 20
D80: SUB-TOTAL SLT: | X80: =SUM(M60:P79)+SUM(Q60:T79)+SUM(U60:W79) -> 75
D81: Continous Assessement | K81: % | M81: Face-to-Face (F2F) | U81: NF2F Independent Learning for Assessment (Asynchronous)
M82: Physical | Q82: Online/ Technology-mediated (Synchronous)
D83: 1 | E83: Tugasan | K83: 0.3 | U83: 30
D84: 2 | E84: Pembentangan | K84: 0.2 | M84: 1 | U84: 4
D85: 3 | E85: Ujian | K85: 0.2 | M85: 1 | U85: 3
D86: 4
D87: 5
D88: SUB-TOTAL SLT: | X88: =SUM(M83:W87) -> 39
D89: Final Assessement | K89: % | M89: Face-to-Face (F2F) | U89: NF2F Independent Learning for Assessment (Asynchronous)
M90: Physical | Q90: Online/ Technology-mediated (Synchronous)
D91: 1 | E91: Peperiksaan Akhir | K91: 0.3 | M91: 2 | U91: 4
D92: 2
D93: 3
D94: 4
D95: 5
D96: SUB-TOTAL SLT: | X96: =SUM(M91:W95) -> 6
D98: SLT for Assessment: | X98: =X88+X96 -> 45
D99: GRAND TOTAL SLT: | X99: =X98+X80 -> 120
D100: A | E100: % SLT for F2F Physical Component: [Total F2F Physical /(Total F2F Physical + Total F2F Online + Total Independent Learning) x 100)] | X100: =IFERROR(((SUM(M60:P79)+SUM(M83:P87)+SUM(M91:P95))/X99)* 100,"") -> 28.33333333
D102: B | E102: % SLT for Online & Independent Learning Component: [(Total F2F Online + Total Independent Learning) /( Total F2F Physical + Total F2F Online + Total Independent Learning) x 100] | X102: =IFERROR((SUM(Q60:W79)+SUM(Q83:W87) + SUM(Q91:W95))/X99 * 100,"") -> 71.66666667
D103: C | E103: % SLT for All Practical Component: [% F2F Physical Practical + % F2F Online Practical] | X103: =IFERROR(X104+X105,"") -> 0
D104: C1 | E104: % SLT for F2F Physical Practical Component [Total F2F Physical Practical /( Total F2F Physical + Total F2F Online + Total Independent Learning) x 100)] | X104: =IFERROR(SUM(O60:O79)/X99*100,"") -> 0
D105: C2 | E105: % SLT for F2F Online Practical Component [Total F2F Online Practical / (Total F2F Physical + Total F2F Online + Total Independent Learning) x 100] | X105: =IFERROR(SUM(S60:S79)/X99*100,"") -> 0
Z106: =IFERROR(X102+X104,"") -> 71.66666667
D107: Please tick (√) if this course is Industrial Training/ Clinical Placement/ Practicum using 50% of Effective Learning Time (ELT)
D108: Note:
D109: * Indicate the CLO based on the CLO's numbering in Item 8
D110: ** For ODL programme: Courses with mandatory practical requiremnets imposed by the programme standards or any related standards can be exempted from complying to the minimum 80% ODL delivery rule in the SLT.
B112: 11 | C112: Identify special requirement or resources to deliver the course (e.g., software, nursery, computer lab, simulation room etc) | K112: None
B114: 12 | C114: References (include required and further readings, and should be the most current) | K114: Roslan, S. M. (2023). Asas komunikasi dan teknik penyampaian. Penerbit UiTM.
B116: 13 | C116: Other additional information (if applicable) | K116: Zainal, A. R., & Hidayah, M. N. (2022). Komunikasi berkesan dalam organisasi. Penerbit Universiti Kebangsaan Malaysia.
C119: Note: Number of PLO indicated is purely for illustration purposes only and the number is subjected to the curriculum design.

Sheet MPU3183
B2: Back To FORM @ TEMPLATE
AI3: √
B5: 1 | C5: Course Name: | F5: Penghayatan Etika dan Peradaban | AI5: Semester
C6: Course Code: | F6: MPU3183 | AI6: 1
C7: Course Classification: | F7: Compulsory | AI7: 2
B8: 2 | C8: Synopsis: | F8: "Kursus ini mempersiapkan pelajar untuk menghayati etika dan peradaban yang wujud dalam masyarakat kepelbagaian etnik di Malaysia untuk memperteguhkan pemikiran kritikal dan analitikal mereka bagi menangani kehidupan yang lebih mencabar. Pengisian kursus ini memfokuskan kepada penghayatan etika dan peradaban dalam acuan Malaysia. Pelajar akan didedahkan dengan dinamika konsep etika dan peradaban yang menjadi kekuatan kepada pembentukan negara Malaysia berdasarkan susur masa evolusi sejarahnya dari era pra-kolonial sehingga ke pasca-kolonial. Kefahaman tentang pembentukan etika dan peradaban dalam masyarakat kepelbagaian dibincangkan bagi meningkatkan penghayatan etika dan peradaban ke arah pemantapan kesepaduan nasional dan bangsa Malaysia. Peradaban acuan Malaysia perlu dikupas serta diperdebatkan dalam aktiviti akademik berpandukan Perlembagaan Persekutuan sebagai tapak integrasi dan wahana etika dan peradaban. Pembinaan kesepaduan nasional amat dipengaruhi oleh globalisasi dan perkembangan teknologi maklumat dan komunikasi yang kompleks. Oleh kerana itu, penghayatan etika dan peradaban menzahirkan perilaku tanggungjawab sosial dan digerakkan pada peringkat individu, keluarga, komuniti, masyarakat, dan negara. Justeru, perubahan yang berlaku dalam masyarakat dan pembangunan langsung ekonomi telah membawa cabaran baru dalam mengukuhkan kelestarian etika dan peradaban di Malaysia. Amalan Pendidikan Berimpak Tinggi (HIEPs) dipraktikkan dalam pengajaran dan pembelajaran bagi mendalami kursus ini. (pengajaran & pembelajaran). " | AI8: 3
B9: =B8+1 -> 3 | C9: Name(s) of Academic Staff: | F9: 1 | G9: Mr. Muhammad Mu’adz Bin Mohd Saufee
F10: 2 | AI10: Year Offered
F11: 3 | AI11: 1
B12: =B9+1 -> 4 | C12: Semester and Year offered: | F12: Year Offered | I12: 2 | J12: Semester | L12: 3 | M12: Remarks: | AI12: 2
B13: =B12+1 -> 5 | C13: Credit Value: | F13: =IF(X107 ="√",INT(X99/80),INT(X99/40)) -> 3 | AI13: 3
B14: 6 | C14: Pre-requisite/ co-requisite (if any): | F14: NIL | AI14: 4
AI15: 5
B16: 7 | C16: Course Learning Outcomes (CLO) | F16: CLO1 | H16: Menjelaskan konsep etika dan peradaban dalam konteks penghayatannya mengikut acuan Malaysia. (PLO2, C2) | AI16: 6
F17: CLO2 | H17: Menganalisis sistem, tahap perkembangan, kemajuan sosial dan kebudayaan merentas etnik. (PLO5, A2) | AI17: 7
F18: CLO3 | H18: Menilai isu kontemporari berkaitan ekonomi, politik, sosial, budaya dan alam sekitar daripada perspektif etika dan peradaban. (PLO8, A3) | AI18: 8
AI20: Compulsory
AI21: Major (core)
AI22: Minor
AI23: Elective (core)
AI24: Elective (open/free)
B25: 8 | C25: Mapping of the Course Learning Outcomes to the Programme Learning Outcomes, Teaching Methods and Assessment Methods
D27: Course Learning Outcomes | F27: Programme Learning Outcomes (PLO) | R27: Teaching Methods | W27: Assessment Methods
F28: PLO 1 | G28: PLO 2 | H28: PLO 3 | I28: PLO 4 | J28: PLO 5 | K28: PLO 6 | L28: PLO 7 | M28: PLO 8 | N28: PLO 9 | O28: PLO 10 | P28: PLO 11
D29: =IF(ISBLANK(F16),"",F16) -> CLO1 | G29: √ | R29: face to face /discussion / online forum | W29: Written assignment/ Final examination / Online activities / Quiz
D30: CLO2 | J30: √ | R30: face to face /discussion / online forum | W30: Written assignment/ Final examination / Online activities / Quiz
D31: CLO3 | M31: √ | R31: face to face /discussion / online forum | W31: Written assignment/ Final examination / Online activities / Quiz
AI36: Cognitive skills
D37: Mapping with MQF Cluster of Learning Outcomes | G37: C2 | J37: C3C | M37: C3F | AI37: Interpersonal skills
AI38: Communication Skills
AI39: Digital Skills
AI40: Numeracy Skills
D41: Indicate the primary causal link between the CLO and PLO by ticking '√' in the appropriate box. | AI41: Leadership, Autonomy and Responsibility
D42: C1 = Knowledge & Understanding, C2 = Cognitive Skills, C3A = Practical Skills, C3B = Interpersonal Skills, C3C = Communication Skills, C3D = Digital Skills, | AI42: Personal Skills
D43: C3E = Numeracy Skills, C3F = Leadership, Autonomy & Responsibility, C4A = Personal Skills, C4B = Entrepreneurial Skills, C5 = Ethics & Professionalism | AI43: Entrepreneurial Skills
AI44: Ethics and Professionalism
B45: 9 | C45: Transferable Skills (if applicable)
C46: (Skills learned in the course of study which can be useful and utilized in other settings) | I46: 1 | J46: Interpersonal skills | AI46: C1
I47: 2 | J47: Cognitive skills | AI47: C2
I48: 3 | J48: Communication Skills | AI48: C3A
I49: Open-ended response (if any) | AI49: C3B
I50: 4 | AI50: C3C
AI51: C3D
AB52: ` | AI52: C3E
B53: 10 | C53: Distribution of Student Learning Time (SLT) | AI53: C3F
C54: Note: This SLT calculation is designed for home grown programme only. | AI54: C4A
AI55: C4B
D56: Course Content Outline and Subtopics | K56: CLO* | M56: Learning and Teaching Activities** | X56: Total SLT | AI56: C5
M57: Face-to-Face (F2F) | U57: NF2F Independent Learning (Asynchronous)
M58: Physical | Q58: Online/ Technology-mediated (Synchronous)
M59: L | N59: T | O59: P | P59: O | Q59: L | R59: T | S59: P | T59: O
D60: 1 | E60: Pengenalan Penghayatan Etika dan Peradaban Dalam Acuan Malaysia | K60: 1 | M60: 2 | Q60: 2 | T60: 1 | U60: 6
D61: 2 | E61: Konsep Etika dan Peradaban | K61: 1 | M61: 2 | Q61: 2 | T61: 1 | U61: 4
D62: 3 | E62: Etika dan Peradaban Dalam Masyarakat Kepelbagaian | K62: 2 | M62: 2 | N62: 1 | Q62: 2 | R62: 1 | U62: 6
D63: 4 | E63: Pemantapan Kesepaduan Nasional Malaysia | K63: 2 | M63: 2 | N63: 1 | Q63: 2 | R63: 1 | U63: 6
D64: 5 | E64: Pembinaan Peradaban Majmuk di Malaysia | K64: 2 | M64: 2 | N64: 1 | U64: 3
D65: 6 | E65: Perlembagaan sebagai Tapak Integrasi dan Wahana Etika dan Peradaban di Malaysia | K65: 2 | M65: 2 | N65: 1 | Q65: 2 | R65: 1 | U65: 6
D66: 7 | E66: Teknologi Maklumat dan Komunikasi Penggerak Kesepaduan Nasional di Malaysia | K66: 3 | M66: 2 | N66: 1 | U66: 3
D67: 8 | E67: Peranan Etika dan Peradaban Mendokong Tanggungjawab Sosial di Malaysia | K67: 3 | M67: 2 | N67: 1 | U67: 3
D68: 9 | E68: Cabaran Kelestarian Etika dan Peradaban di Malaysia | K68: 3 | M68: 2 | Q68: 2 | T68: 1 | U68: 3
D69: 10
D70: =D69+1 -> 11
D71: 12
D72: 13
D73: 14
D74: 15
D75: 16
D76: 17
D77: 18
D78: 19
D79: 20
D80: SUB-TOTAL SLT: | X80: =SUM(M60:P79)+SUM(Q60:T79)+SUM(U60:W79) -> 82
D81: Continous Assessement | K81: % | M81: Face-to-Face (F2F) | U81: NF2F Independent Learning for Assessment (Asynchronous)
M82: Physical | Q82: Online/ Technology-mediated (Synchronous)
D83: 1 | K83: 0.3 | M83: 1 | U83: 12
D84: 2 | E84: Presentation (projek / debat / poster/ dll) | K84: 0.2 | M84: 0.5 | U84: 4
D85: 3 | E85: Kuiz/ujian/dll (bertulis / MCQ / SEQ, online) | K85: 0.2 | M85: 0.5 | U85: 3
D86: 4
D87: 5
D88: SUB-TOTAL SLT: | X88: =SUM(M83:W87) -> 21
D89: Final Assessement | K89: % | M89: Face-to-Face (F2F) | U89: NF2F Independent Learning for Assessment (Asynchronous)
M90: Physical | Q90: Online/ Technology-mediated (Synchronous)
D91: 1 | E91: Peperiksaan /Pentaksiran | K91: 0.3 | M91: 3 | U91: 14
D92: 2
D93: 3
D94: 4
D95: 5
D96: SUB-TOTAL SLT: | X96: =SUM(M91:W95) -> 17
D98: SLT for Assessment: | X98: =X88+X96 -> 38
D99: GRAND TOTAL SLT: | X99: =X98+X80 -> 120
D100: A | E100: % SLT for F2F Physical Component: [Total F2F Physical /(Total F2F Physical + Total F2F Online + Total Independent Learning) x 100)] | X100: =IFERROR(((SUM(M60:P79)+SUM(M83:P87)+SUM(M91:P95))/X99)* 100,"") -> 24.16666667
D102: B | E102: % SLT for Online & Independent Learning Component: [(Total F2F Online + Total Independent Learning) /( Total F2F Physical + Total F2F Online + Total Independent Learning) x 100] | X102: =IFERROR((SUM(Q60:W79)+SUM(Q83:W87) + SUM(Q91:W95))/X99 * 100,"") -> 75.83333333
D103: C | E103: % SLT for All Practical Component: [% F2F Physical Practical + % F2F Online Practical] | X103: =IFERROR(X104+X105,"") -> 0
D104: C1 | E104: % SLT for F2F Physical Practical Component [Total F2F Physical Practical /( Total F2F Physical + Total F2F Online + Total Independent Learning) x 100)] | X104: =IFERROR(SUM(O60:O79)/X99*100,"") -> 0
D105: C2 | E105: % SLT for F2F Online Practical Component [Total F2F Online Practical / (Total F2F Physical + Total F2F Online + Total Independent Learning) x 100] | X105: =IFERROR(SUM(S60:S79)/X99*100,"") -> 0
Z106: =IFERROR(X102+X104,"") -> 75.83333333
D107: Please tick (√) if this course is Industrial Training/ Clinical Placement/ Practicum using 50% of Effective Learning Time (ELT)
D108: Note:
D109: * Indicate the CLO based on the CLO's numbering in Item 8
D110: ** For ODL programme: Courses with mandatory practical requiremnets imposed by the programme standards or any related standards can be exempted from complying to the minimum 80% ODL delivery rule in the SLT.
B112: 11 | C112: Identify special requirement or resources to deliver the course (e.g., software, nursery, computer lab, simulation room etc) | K112: None
B114: 12 | C114: References (include required and further readings, and should be the most current) | K114: 1. Baharuddin, S.A. (Ed). (2012). Modul hubungan etnik (2nd ed.). Bangi: Institut Kajian Etnik, UKM. 2. M.B. Hooker. (1970). Readings in Malay Adat Laws. Singapore: Singapore University Press. 3. Hooker, M. B. (1972). Adat laws in modern Malaya: land tenure, traditional government, and religion. Oxford University Press. 4. Nazri Muslim. (2020). Islam dan Melayu dalam Perlembagaan: Tiang Seri Hubungan Etnik di Malaysia. Edisi Kedua. Bangi: Penerbit UKM. 5. Shamsul Amri Baharuddin. (2008). Hubungan Etnik di Malaysia: Mencari dan Mengekal Kejernihan dalam Kekeruhan. UKM Ethnic Studies Paper Series No. 1 (November) 6. Shamsul Amri Baharuddin. (2008). Many Ethnicities, Many Cultures, One Nation: The Malaysian Experience. UKM Ethnic Studies Paper Series No. 2 (November) Shamrahayu A. Aziz, “Kuasa dan Peranan Raja-Raja Melayu Dalam Perlembagaan: Sejarah dan Masa Depan, hp://www.arkib.gov.my/documents/10157/6f1c6800-188b-4885-8ba8- 698102207ad1 (14.01.2020 7. Shamrahayu A. Aziz, “Kuasa dan Peranan Raja-Raja Melayu Dalam Perlembagaan: Sejarah dan Masa Depan, https://www.arkib.gov.my/documents/10157/6f1c6800-188b-4885-8ba8-698102207ad1 (14.01.2020) Sayyid Muhammad Naquib Al-Aas, Islam Dalam Sejarah dan Kebudayaan Melayu, Kuala Lumpur: Universi# Kebangsaan Malaysia, 1972 8. Sayyid Muhammad Naquib Al-Atas, Islam Dalam Sejarah dan Kebudayaan Melayu, Kuala Lumpur: Universi# Kebangsaan Malaysia, 1972
B116: 13 | C116: Other additional information (if applicable) | K116: None
C119: Note: Number of PLO indicated is purely for illustration purposes only and the number is subjected to the curriculum design.

Sheet MGT6243
B2: Back To FORM @ TEMPLATE
AI3: √
B5: 1 | C5: Course Name: | F5: Principles of Risk Management | AI5: Semester
C6: Course Code: | F6: MGT6243 | AI6: 1
C7: Course Classification: | F7: Major (core) | AI7: 2
B8: 2 | C8: Synopsis: | F8: This course emphasizes the principles and practices of risk management in organizations with illustrative examples demonstrating how risks arise and are addressed in real-world contexts. It covers key risk sources such as market uncertainty, project failures, accidents and natural disasters as well as introduces various tools and strategies used to minimize or mitigate these risks effectively. | AI8: 3
B9: =B8+1 -> 3 | C9: Name(s) of Academic Staff: | F9: 1 | G9: Mr. Gunalan A/L Nachiappan
F10: 2 | AI10: Year Offered
F11: 3 | AI11: 1
B12: =B9+1 -> 4 | C12: Semester and Year offered: | F12: Year Offered | I12: 2 | J12: Semester | L12: 3 | M12: Remarks: | AI12: 2
B13: =B12+1 -> 5 | C13: Credit Value: | F13: =IF(X107 ="√",INT(X99/80),INT(X99/40)) -> 3 | AI13: 3
B14: 6 | C14: Pre-requisite/ co-requisite (if any): | AI14: 4
AI15: 5
B16: 7 | C16: Course Learning Outcomes (CLO) | F16: CLO1 | H16: Describe the key stages in the risk management process, concepts and the main components of a risk management framework (PLO1,C5) | AI16: 6
F17: CLO2 | H17: Demonstrate the risk management plan based on business environment (PLO4,A3) | AI17: 7
F18: CLO3 | H18: Discover the successful implementation of risk management in organization. (PLO2,C3) | AI18: 8
AI20: Compulsory
AI21: Major (core)
AI22: Minor
AI23: Elective (core)
AI24: Elective (open/free)
B25: 8 | C25: Mapping of the Course Learning Outcomes to the Programme Learning Outcomes, Teaching Methods and Assessment Methods
D27: Course Learning Outcomes | F27: Programme Learning Outcomes (PLO) | R27: Teaching Methods | W27: Assessment Methods
F28: PLO 1 | G28: PLO 2 | H28: PLO 3 | I28: PLO 4 | J28: PLO 5 | K28: PLO 6 | L28: PLO 7 | M28: PLO 8 | N28: PLO 9 | O28: PLO 10 | P28: PLO 11
D29: =IF(ISBLANK(F16),"",F16) -> CLO1 | F29: √ | R29: Lecture/Tutorial/Case Study | W29: Assignment
D30: CLO2 | H30: √ | R30: Lecture/Tutorial/Case Study | W30: Project
D31: CLO3 | G31: √ | R31: Lecture/Tutorial | W31: Final Assessment
AI36: Cognitive skills
D37: Mapping with MQF Cluster of Learning Outcomes | F37: C1 | G37: C2 | H37: C3B | AI37: Interpersonal skills
AI38: Communication Skills
AI39: Digital Skills
AI40: Numeracy Skills
D41: Indicate the primary causal link between the CLO and PLO by ticking '√' in the appropriate box. | AI41: Leadership, Autonomy and Responsibility
D42: C1 = Knowledge & Understanding, C2 = Cognitive Skills, C3A = Practical Skills, C3B = Interpersonal Skills, C3C = Communication Skills, C3D = Digital Skills, | AI42: Personal Skills
D43: C3E = Numeracy Skills, C3F = Leadership, Autonomy & Responsibility, C4A = Personal Skills, C4B = Entrepreneurial Skills, C5 = Ethics & Professionalism | AI43: Entrepreneurial Skills
AI44: Ethics and Professionalism
B45: 9 | C45: Transferable Skills (if applicable)
C46: (Skills learned in the course of study which can be useful and utilized in other settings) | I46: 1 | J46: Interpersonal skills | AI46: C1
I47: 2 | J47: Cognitive skills | AI47: C2
I48: 3 | J48: Communication Skills | AI48: C3A
I49: Open-ended response (if any) | AI49: C3B
I50: 4 | AI50: C3C
AI51: C3D
AB52: ` | AI52: C3E
B53: 10 | C53: Distribution of Student Learning Time (SLT) | AI53: C3F
C54: Note: This SLT calculation is designed for home grown programme only. | AI54: C4A
AI55: C4B
D56: Course Content Outline and Subtopics | K56: CLO* | M56: Learning and Teaching Activities** | X56: Total SLT | AI56: C5
M57: Face-to-Face (F2F) | U57: NF2F Independent Learning (Asynchronous)
M58: Physical | Q58: Online/ Technology-mediated (Synchronous)
M59: L | N59: T | O59: P | P59: O | Q59: L | R59: T | S59: P | T59: O
D60: 1 | E60: Introduction to risk management - Definitions of risk - Types of risks - Risk description - Inherent level of risk | K60: 1 | M60: 3 | N60: 2 | U60: 4
D61: 2 | E61: Impact of risk on organizations - Risk importance - Risk and reward -Attitudes to risk | K61: 1 | M61: 3 | N61: 2 | U61: 4
D62: 3 | E62: Types of risks - Timescale of risk impact - Hazard, control and opportunity risks - Management of hazard risks - Uncertainty acceptance | K62: 2 | M62: 3 | N62: 2 | U62: 4
D63: 4 | E63: Development of risk management - Origins of risk management - Specialist areas of risk management - Enterprise risk management | K63: 2 | M63: 3 | N63: 2 | U63: 4
D64: 5 | E64: Principles and aims of risk management - Importance of risk management - Risk management activities - Implementing risk management | K64: 3 | M64: 3 | N64: 2 | U64: 4
D65: 6 | E65: Risk management standards - Scope of risk management standards - Risk management process | K65: 3 | M65: 3 | N65: 2 | U65: 4
D66: 7 | E66: Risk strategy - Risk management policy - Risk management guidelines | K66: 2 | M66: 3 | N66: 2 | U66: 4
D67: 8 | E67: Risk management documentation - Record of risk management activities - Risk performance | K67: 3 | M67: 3 | N67: 2 | U67: 4
D68: 9 | E68: Risk management responsibilities - Risk management and internal audit - Role of the risk manager | K68: 3 | M68: 3 | N68: 2 | U68: 4
D69: 10 | E69: Risk assessment - Risk assessment techniques - Project risk management - Operational risk management - Importance of risk appetite - Risk Tolerate, treat, transfer and terminate | K69: 3 | M69: 3 | N69: 2 | U69: 4
D70: =D69+1 -> 11
D71: 12
D72: 13
D73: 14
D74: 15
D75: 16
D76: 17
D77: 18
D78: 19
D79: 20
D80: SUB-TOTAL SLT: | X80: =SUM(M60:P79)+SUM(Q60:T79)+SUM(U60:W79) -> 90
D81: Continous Assessement | K81: % | M81: Face-to-Face (F2F) | U81: NF2F Independent Learning for Assessment (Asynchronous)
M82: Physical | Q82: Online/ Technology-mediated (Synchronous)
D83: 1 | E83: Assignment | K83: 0.3 | M83: 2 | Q83: 2 | U83: 6
D84: 2 | E84: Project | K84: 0.4 | M84: 2 | Q84: 2 | U84: 8
D85: 3
D86: 4
D87: 5
D88: SUB-TOTAL SLT: | X88: =SUM(M83:W87) -> 22
D89: Final Assessement | K89: % | M89: Face-to-Face (F2F) | U89: NF2F Independent Learning for Assessment (Asynchronous)
M90: Physical | Q90: Online/ Technology-mediated (Synchronous)
D91: 1 | E91: Final Exam | K91: 0.3 | M91: 3 | U91: 5
D92: 2
D93: 3
D94: 4
D95: 5
D96: SUB-TOTAL SLT: | X96: =SUM(M91:W95) -> 8
D98: SLT for Assessment: | X98: =X88+X96 -> 30
D99: GRAND TOTAL SLT: | X99: =X98+X80 -> 120
D100: A | E100: % SLT for F2F Physical Component: [Total F2F Physical /(Total F2F Physical + Total F2F Online + Total Independent Learning) x 100)] | X100: =IFERROR(((SUM(M60:P79)+SUM(M83:P87)+SUM(M91:P95))/X99)* 100,"") -> 47.5
D102: B | E102: % SLT for Online & Independent Learning Component: [(Total F2F Online + Total Independent Learning) /( Total F2F Physical + Total F2F Online + Total Independent Learning) x 100] | X102: =IFERROR((SUM(Q60:W79)+SUM(Q83:W87) + SUM(Q91:W95))/X99 * 100,"") -> 52.5
D103: C | E103: % SLT for All Practical Component: [% F2F Physical Practical + % F2F Online Practical] | X103: =IFERROR(X104+X105,"") -> 0
D104: C1 | E104: % SLT for F2F Physical Practical Component [Total F2F Physical Practical /( Total F2F Physical + Total F2F Online + Total Independent Learning) x 100)] | X104: =IFERROR(SUM(O60:O79)/X99*100,"") -> 0
D105: C2 | E105: % SLT for F2F Online Practical Component [Total F2F Online Practical / (Total F2F Physical + Total F2F Online + Total Independent Learning) x 100] | X105: =IFERROR(SUM(S60:S79)/X99*100,"") -> 0
Z106: =IFERROR(X102+X104,"") -> 52.5
D107: Please tick (√) if this course is Industrial Training/ Clinical Placement/ Practicum using 50% of Effective Learning Time (ELT)
D108: Note:
D109: * Indicate the CLO based on the CLO's numbering in Item 8
D110: ** For ODL programme: Courses with mandatory practical requiremnets imposed by the programme standards or any related standards can be exempted from complying to the minimum 80% ODL delivery rule in the SLT.
B112: 11 | C112: Identify special requirement or resources to deliver the course (e.g., software, nursery, computer lab, simulation room etc) | K112: 1.Boothroyd, K., & Thompson, C. (2024). Fundamentals of risk management (7th ed.). Kogan Page. 2. Lima, G. P. (2024). First principles project risk management: Revolutionizing risk management with Aristotle and ChatGPT. Independently published.
B114: 12 | C114: References (include required and further readings, and should be the most current) | K114: Jeynes, J. (2023). Risk management: 10 principles (2nd ed.). CRC Press.
B116: 13 | C116: Other additional information (if applicable) | K116: None
C119: Note: Number of PLO indicated is purely for illustration purposes only and the number is subjected to the curriculum design.

Sheet FIN6223 _x0009__x0009__x0009__x
B2: Back To FORM @ TEMPLATE
AI3: √
B5: 1 | C5: Course Name: | F5: Financial Management | AI5: Semester
C6: Course Code: | F6: FIN6223 | AI6: 1
C7: Course Classification: | F7: Major (core) | AI7: 2
B8: 2 | C8: Synopsis: | F8: This course is a continuation of Principles of Finance and aims to deepen students’ understanding of the key roles and responsibilities of financial managers. It covers core financial concepts in detail, including financial statement analysis, time value of money, financial instruments and capital budgeting for effective financial decision-making. | AI8: 3
B9: =B8+1 -> 3 | C9: Name(s) of Academic Staff: | F9: 1 | G9: Suba A/P Paramasivam
F10: 2 | AI10: Year Offered
F11: 3 | AI11: 1
B12: =B9+1 -> 4 | C12: Semester and Year offered: | F12: Year Offered | I12: 2 | J12: Semester | L12: 3 | M12: Remarks: | AI12: 2
B13: =B12+1 -> 5 | C13: Credit Value: | F13: =IF(X107 ="√",INT(X99/80),INT(X99/40)) -> 3 | AI13: 3
B14: 6 | C14: Pre-requisite/ co-requisite (if any): | F14: Principle of Finance | AI14: 4
AI15: 5
B16: 7 | C16: Course Learning Outcomes (CLO) | F16: CLO1 | H16: Describe the fundamental of financial management, financial institution, financial market and time value of money. (PLO1, C5) | AI16: 6
F17: CLO2 | H17: Explain financial statement analysis and financial ratios for continuing professional development. (PLO9, A3) | AI17: 7
F18: CLO3 | H18: Compute the financial instrument, risk and return with evaluation of capital budgeting and sources of finance in solving the problems. (PLO2, C3) | AI18: 8
AI20: Compulsory
AI21: Major (core)
AI22: Minor
AI23: Elective (core)
AI24: Elective (open/free)
B25: 8 | C25: Mapping of the Course Learning Outcomes to the Programme Learning Outcomes, Teaching Methods and Assessment Methods
D27: Course Learning Outcomes | F27: Programme Learning Outcomes (PLO) | R27: Teaching Methods | W27: Assessment Methods
F28: PLO 1 | G28: PLO 2 | H28: PLO 3 | I28: PLO 4 | J28: PLO 5 | K28: PLO 6 | L28: PLO 7 | M28: PLO 8 | N28: PLO 9 | O28: PLO 10 | P28: PLO 11
D29: =IF(ISBLANK(F16),"",F16) -> CLO1 | F29: √ | R29: LECTURE/TUTORIAL | W29: MIDTERM/TEST
D30: CLO2 | N30: √ | R30: CASE STUDY/PRESENTATION | W30: GROUP ASSIGNMENT
D31: CLO3 | G31: √ | R31: LECTURE/TUTORIAL | W31: FINAL EXAMINATION
AI36: Cognitive skills
D37: Mapping with MQF Cluster of Learning Outcomes | F37: C1 | G37: C2 | N37: C4A | AI37: Interpersonal skills
AI38: Communication Skills
AI39: Digital Skills
AI40: Numeracy Skills
D41: Indicate the primary causal link between the CLO and PLO by ticking '√' in the appropriate box. | AI41: Leadership, Autonomy and Responsibility
D42: C1 = Knowledge & Understanding, C2 = Cognitive Skills, C3A = Practical Skills, C3B = Interpersonal Skills, C3C = Communication Skills, C3D = Digital Skills, | AI42: Personal Skills
D43: C3E = Numeracy Skills, C3F = Leadership, Autonomy & Responsibility, C4A = Personal Skills, C4B = Entrepreneurial Skills, C5 = Ethics & Professionalism | AI43: Entrepreneurial Skills
AI44: Ethics and Professionalism
B45: 9 | C45: Transferable Skills (if applicable)
C46: (Skills learned in the course of study which can be useful and utilized in other settings) | I46: 1 | J46: Cognitive skills | AI46: C1
I47: 2 | J47: Personal Skills | AI47: C2
I48: 3 | J48: Ethics and Professionalism | AI48: C3A
I49: Open-ended response (if any) | AI49: C3B
I50: 4 | AI50: C3C
AI51: C3D
AB52: ` | AI52: C3E
B53: 10 | C53: Distribution of Student Learning Time (SLT) | AI53: C3F
C54: Note: This SLT calculation is designed for home grown programme only. | AI54: C4A
AI55: C4B
D56: Course Content Outline and Subtopics | K56: CLO* | M56: Learning and Teaching Activities** | X56: Total SLT | AI56: C5
M57: Face-to-Face (F2F) | U57: NF2F Independent Learning (Asynchronous)
M58: Physical | Q58: Online/ Technology-mediated (Synchronous)
M59: L | N59: T | O59: P | P59: O | Q59: L | R59: T | S59: P | T59: O
D60: 1 | E60: An Overview of Financial Management • Finance vs Economics & Accounting • Corporate Finance, Capital Markets and Investments • Conflicts between Managers, Stockholders and Bondholders | K60: 1 | M60: 2 | N60: 1 | U60: 3
D61: 2 | E61: Firms And The Financial Markets • Structure Of The Financial Markets Usa And Malaysia) • The Financial Marketplace: Financial Institutions • The Financial Marketplace: Securities Markets | K61: 1 | M61: 3 | N61: 1 | U61: 4
D62: 3 | E62: Understanding Financial Statements • An Overview Of The Firm‘s Financial Statements • The Income Statement • Corporate Taxes • The Balance Sheet • The Cash Flow Statement | K62: 2 | M62: 5 | N62: 2 | U62: 7
D63: 4 | E63: Reviewing Financial Statements • Income Statement • Balance Sheet • Statement of Cash Flows • Cautions in Interpreting Financial Statements • Calculation and Application of Different of Types Ratios | K63: 2 | M63: 4 | N63: 3 | U63: 7
D64: 5 | E64: Application of Time Value Money • Ordinary annuity vs Annuity due • Calculation of Perpetuities Cash Flow • Calculation based on Compounding periods • Loan Ammortisation • Annual Percentage Rate (ARR) vs Effective Annual Rate (EAR) • Calculation of Effective Annual Rate (EAR) | K64: 1 | M64: 2 | N64: 1 | U64: 3
D65: 6 | E65: Risk and Return • Risk Averse vs Risk taker • Systematic and Unsystematic risk • Measuring Stand-Alone Risk: The Standard Deviation • Computing Historical Risks • Measuring Stand-Alone Risk: The Coefficient of Variation • Beta, a Measure of Market Risk • Computing Historical Returns • Realised, expected and required rates of returns • Geometric vs Arithmetic average rate of return • The calculation of CAPM | K65: 3 | M65: 3 | N65: 2 | U65: 5
D66: 7 | E66: Sources of Finance • Internal sources •External sources | K66: 3 | M66: 2 | N66: 1 | U66: 3
D67: 8 | E67: Bonds • Valuation/ Calculation of Bonds • Application of Bond Valuation • Yield to Maturity (YTM) • Yield to Curve (YTC) | K67: 3 | M67: 3 | N67: 2 | U67: 5
D68: 9 | E68: Stocks • Calculating stocks using Discounted Dividend Model (DDM) • Calculating stocks using Constant Growth Model (CGM) • Application of Stock Valuation | K68: 3 | M68: 3 | N68: 2 | U68: 5
D69: 10 | E69: Capital Budgeting • What is capital budgeting? • The importance of capital budgeting • The capital budgeting process • Types of capital budgeting decisions • guidelines for capital budgeting • capital budgeting techniques • Types of capital budgeting techniques | K69: 3 | M69: 4 | N69: 2 | U69: 6
D70: =D69+1 -> 11
D71: 12
D72: 13
D73: 14
D74: 15
D75: 16
D76: 17
D77: 18
D78: 19
D79: 20
D80: SUB-TOTAL SLT: | X80: =SUM(M60:P79)+SUM(Q60:T79)+SUM(U60:W79) -> 96
D81: Continous Assessement | K81: % | M81: Face-to-Face (F2F) | U81: NF2F Independent Learning for Assessment (Asynchronous)
M82: Physical | Q82: Online/ Technology-mediated (Synchronous)
D83: 1 | E83: MIDTERM | K83: 0.2 | M83: 1 | U83: 3
D84: 2 | E84: GROUP ASSIGNMENT | K84: 0.3 | M84: 2 | U84: 6
D85: 3
D86: 4
D87: 5
D88: SUB-TOTAL SLT: | X88: =SUM(M83:W87) -> 12
D89: Final Assessement | K89: % | M89: Face-to-Face (F2F) | U89: NF2F Independent Learning for Assessment (Asynchronous)
M90: Physical | Q90: Online/ Technology-mediated (Synchronous)
D91: 1 | E91: FINAL EXAM | K91: 0.5 | M91: 3 | U91: 9
D92: 2
D93: 3
D94: 4
D95: 5
D96: SUB-TOTAL SLT: | X96: =SUM(M91:W95) -> 12
D98: SLT for Assessment: | X98: =X88+X96 -> 24
D99: GRAND TOTAL SLT: | X99: =X98+X80 -> 120
D100: A | E100: % SLT for F2F Physical Component: [Total F2F Physical /(Total F2F Physical + Total F2F Online + Total Independent Learning) x 100)] | X100: =IFERROR(((SUM(M60:P79)+SUM(M83:P87)+SUM(M91:P95))/X99)* 100,"") -> 45
D102: B | E102: % SLT for Online & Independent Learning Component: [(Total F2F Online + Total Independent Learning) /( Total F2F Physical + Total F2F Online + Total Independent Learning) x 100] | X102: =IFERROR((SUM(Q60:W79)+SUM(Q83:W87) + SUM(Q91:W95))/X99 * 100,"") -> 55
D103: C | E103: % SLT for All Practical Component: [% F2F Physical Practical + % F2F Online Practical] | X103: =IFERROR(X104+X105,"") -> 0
D104: C1 | E104: % SLT for F2F Physical Practical Component [Total F2F Physical Practical /( Total F2F Physical + Total F2F Online + Total Independent Learning) x 100)] | X104: =IFERROR(SUM(O60:O79)/X99*100,"") -> 0
D105: C2 | E105: % SLT for F2F Online Practical Component [Total F2F Online Practical / (Total F2F Physical + Total F2F Online + Total Independent Learning) x 100] | X105: =IFERROR(SUM(S60:S79)/X99*100,"") -> 0
Z106: =IFERROR(X102+X104,"") -> 55
D107: Please tick (√) if this course is Industrial Training/ Clinical Placement/ Practicum using 50% of Effective Learning Time (ELT)
D108: Note:
D109: * Indicate the CLO based on the CLO's numbering in Item 8
D110: ** For ODL programme: Courses with mandatory practical requiremnets imposed by the programme standards or any related standards can be exempted from complying to the minimum 80% ODL delivery rule in the SLT.
B112: 11 | C112: Identify special requirement or resources to deliver the course (e.g., software, nursery, computer lab, simulation room etc) | K112: None
B114: 12 | C114: References (include required and further readings, and should be the most current) | K114: 1. Financial Management Latest Edition by Dr. F. C. Sharma, Rachit Mittal: SBPD Publications, Dr. F. C. Sharma, Rachit Mittal (2020) 2.Brealey, R. A., Myers, S. C., Allen, F., & Edmans, A. (2022). Principles of corporate finance (14th ed.). McGraw-Hill/Irwin.
B116: 13 | C116: Other additional information (if applicable) | K116: Titman, S., Keown, A., & Martin, J. (2025). Financial management: Principles and applications (14th Global ed.). Pearson.
C119: Note: Number of PLO indicated is purely for illustration purposes only and the number is subjected to the curriculum design.

Sheet HRM6223
B2: Back To FORM @ TEMPLATE
AI3: √
B5: 1 | C5: Course Name: | F5: Training & Development | AI5: Semester
C6: Course Code: | F6: HRM6223 | AI6: 1
C7: Course Classification: | F7: Major (core) | AI7: 2
B8: 2 | C8: Synopsis: | F8: This course explores the importance of training and development in aligning employee capabilities with organizational goals and business strategy. It covers key components of effective training such as objectives, methods, evaluation and trainers, while also emphasizing the growing role of technology in transforming modern training practices and delivery. | AI8: 3
B9: =B8+1 -> 3 | C9: Name(s) of Academic Staff: | F9: 1 | G9: Ms. Ong Cheng Hoon
F10: 2 | AI10: Year Offered
F11: 3 | AI11: 1
B12: =B9+1 -> 4 | C12: Semester and Year offered: | F12: Year Offered | I12: 2 | J12: Semester | L12: 3 | M12: Remarks: | AI12: 2
B13: =B12+1 -> 5 | C13: Credit Value: | F13: =IF(X107 ="√",INT(X99/80),INT(X99/40)) -> 3 | AI13: 3
B14: 6 | C14: Pre-requisite/ co-requisite (if any): | AI14: 4
AI15: 5
B16: 7 | C16: Course Learning Outcomes (CLO) | F16: CLO1 | H16: Illustrate the concepts , principles and theories of Training and Development in modern management (PLO1,C2) | AI16: 6
F17: CLO2 | H17: Explain the process, and the methods of training and development in an organization (PLO4,A3) | AI17: 7
F18: CLO3 | H18: Describe the issues and the solution related to the training and development in managing organizational activities.(PLO2,C5) | AI18: 8
AI20: Compulsory
AI21: Major (core)
AI22: Minor
AI23: Elective (core)
AI24: Elective (open/free)
B25: 8 | C25: Mapping of the Course Learning Outcomes to the Programme Learning Outcomes, Teaching Methods and Assessment Methods
D27: Course Learning Outcomes | F27: Programme Learning Outcomes (PLO) | R27: Teaching Methods | W27: Assessment Methods
F28: PLO 1 | G28: PLO 2 | H28: PLO 3 | I28: PLO 4 | J28: PLO 5 | K28: PLO 6 | L28: PLO 7 | M28: PLO 8 | N28: PLO 9 | O28: PLO 10 | P28: PLO 11
D29: =IF(ISBLANK(F16),"",F16) -> CLO1 | F29: √ | R29: Interactive Lecture, case study & problem-solving exercises. | W29: Assignment , Presentation
D30: CLO2 | H30: √ | R30: Interactive Lecture, discussion, case study | W30: Project
D31: CLO3 | G31: √ | R31: Interactive Lecture, case study & problem-solving exercises. | W31: Final Examination
AI36: Cognitive skills
D37: Mapping with MQF Cluster of Learning Outcomes | F37: C1 | G37: C2 | H37: C3B | AI37: Interpersonal skills
AI38: Communication Skills
AI39: Digital Skills
AI40: Numeracy Skills
D41: Indicate the primary causal link between the CLO and PLO by ticking '√' in the appropriate box. | AI41: Leadership, Autonomy and Responsibility
D42: C1 = Knowledge & Understanding, C2 = Cognitive Skills, C3A = Practical Skills, C3B = Interpersonal Skills, C3C = Communication Skills, C3D = Digital Skills, | AI42: Personal Skills
D43: C3E = Numeracy Skills, C3F = Leadership, Autonomy & Responsibility, C4A = Personal Skills, C4B = Entrepreneurial Skills, C5 = Ethics & Professionalism | AI43: Entrepreneurial Skills
AI44: Ethics and Professionalism
B45: 9 | C45: Transferable Skills (if applicable)
C46: (Skills learned in the course of study which can be useful and utilized in other settings) | I46: 1 | J46: Interpersonal skills | AI46: C1
I47: 2 | J47: Communication Skills | AI47: C2
I48: 3 | J48: Ethics and Professionalism | AI48: C3A
I49: Open-ended response (if any) | AI49: C3B
I50: 4 | J50: This course will enable students to develop their knowledge on Training and Development, the principles and requirements. Besides that, the programme reflects the ability to utilise knowledge gained during the module to develop and evaluate marketing strategies in the light of Training and Development. Furthermore, the students also insight both qualitative and quantitative data collection, analysis and interpretation. | AI50: C3C
AI51: C3D
AB52: ` | AI52: C3E
B53: 10 | C53: Distribution of Student Learning Time (SLT) | AI53: C3F
C54: Note: This SLT calculation is designed for home grown programme only. | AI54: C4A
AI55: C4B
D56: Course Content Outline and Subtopics | K56: CLO* | M56: Learning and Teaching Activities** | X56: Total SLT | AI56: C5
M57: Face-to-Face (F2F) | U57: NF2F Independent Learning (Asynchronous)
M58: Physical | Q58: Online/ Technology-mediated (Synchronous)
M59: L | N59: T | O59: P | P59: O | Q59: L | R59: T | S59: P | T59: O
D60: 1 | E60: Introduction to Employee Training and Development • Definition of Training and development • Designing Effective Training • The forces influencing Working and learning. | K60: 1 | M60: 2 | N60: 1 | U60: 4
D61: 2 | E61: Strategic Training • The work roles of employees, managers, and executives • Organizational characteristics influencing training • Human Resource Planning | K61: 1 | M61: 2 | N61: 1 | U61: 4
D62: 3 | E62: Needs Assessment  Methods used in Needs assessment  The Needs Assessment Process  Competency Models | K62: 1 | M62: 4 | N62: 2 | U62: 4
D63: 4 | E63: Learning: Theories and Program Designs • Learning Theories • Learning process | K63: 1 | M63: 4 | N63: 2 | U63: 4
D64: 5 | E64: Theories and Program Designs • Instructional Emphasis for learning | K64: 2 | M64: 2 | N64: 1 | U64: 4
D65: 6 | E65: Training • Training Design • Work environment characteristics influencing transfer of training • Organizational environments that encourage transfers | K65: 2 | M65: 2 | N65: 1 | U65: 4
D66: 7 | E66: Training Evaluation • Reasons for evaluating training • Overview of evaluation process • Outcomes used in evaluating training program. | K66: 2 | M66: 2 | N66: 1 | U66: 4
D67: 8 | E67: Traditional Training Methods • Presentation methods • Hands-on methods • Group building methods Choosing a training method | K67: 2 | M67: 2 | N67: 1 | U67: 4
D68: 9 | E68: E-Learning and Use of Technology in Training • Technologies influence on training and learning • Distance learning • Choosing new technology training methods | K68: 3 | M68: 2 | N68: 1 | U68: 4
D69: 10 | E69: Employee Development • Approaches to employee development • The Development Planning process • Company‘s strategy for providing development | K69: 3 | M69: 2 | N69: 1 | U69: 4
D70: =D69+1 -> 11 | E70: Careers and Career Development • What is career? • Traditional career versus Protean career • Career management systems | K70: 3 | M70: 2 | N70: 1 | U70: 4
D71: 12 | E71: Contemporary Issues and The Future of Training and Development • Training involves partnership • New technologies • Demand for training for virtual work arrangements • Determining change • Steps in implementing change | K71: 3 | M71: 2 | N71: 1 | U71: 4
D72: 13
D73: 14
D74: 15
D75: 16
D76: 17
D77: 18
D78: 19
D79: 20
D80: SUB-TOTAL SLT: | X80: =SUM(M60:P79)+SUM(Q60:T79)+SUM(U60:W79) -> 90
D81: Continous Assessement | K81: % | M81: Face-to-Face (F2F) | U81: NF2F Independent Learning for Assessment (Asynchronous)
M82: Physical | Q82: Online/ Technology-mediated (Synchronous)
D83: 1 | E83: Assignment – Case Analysis / Report | K83: 0.3 | M83: 2 | U83: 6
D84: 2 | E84: Project | K84: 0.4 | M84: 2 | U84: 8
D85: 3
D86: 4
D87: 5
D88: SUB-TOTAL SLT: | X88: =SUM(M83:W87) -> 18
D89: Final Assessement | K89: % | M89: Face-to-Face (F2F) | U89: NF2F Independent Learning for Assessment (Asynchronous)
M90: Physical | Q90: Online/ Technology-mediated (Synchronous)
D91: 1 | E91: Final Exam | K91: 0.3 | M91: 3 | U91: 9
D92: 2
D93: 3
D94: 4
D95: 5
D96: SUB-TOTAL SLT: | X96: =SUM(M91:W95) -> 12
D98: SLT for Assessment: | X98: =X88+X96 -> 30
D99: GRAND TOTAL SLT: | X99: =X98+X80 -> 120
D100: A | E100: % SLT for F2F Physical Component: [Total F2F Physical /(Total F2F Physical + Total F2F Online + Total Independent Learning) x 100)] | X100: =IFERROR(((SUM(M60:P79)+SUM(M83:P87)+SUM(M91:P95))/X99)* 100,"") -> 40.83333333
D102: B | E102: % SLT for Online & Independent Learning Component: [(Total F2F Online + Total Independent Learning) /( Total F2F Physical + Total F2F Online + Total Independent Learning) x 100] | X102: =IFERROR((SUM(Q60:W79)+SUM(Q83:W87) + SUM(Q91:W95))/X99 * 100,"") -> 59.16666667
D103: C | E103: % SLT for All Practical Component: [% F2F Physical Practical + % F2F Online Practical] | X103: =IFERROR(X104+X105,"") -> 0
D104: C1 | E104: % SLT for F2F Physical Practical Component [Total F2F Physical Practical /( Total F2F Physical + Total F2F Online + Total Independent Learning) x 100)] | X104: =IFERROR(SUM(O60:O79)/X99*100,"") -> 0
D105: C2 | E105: % SLT for F2F Online Practical Component [Total F2F Online Practical / (Total F2F Physical + Total F2F Online + Total Independent Learning) x 100] | X105: =IFERROR(SUM(S60:S79)/X99*100,"") -> 0
Z106: =IFERROR(X102+X104,"") -> 59.16666667
D107: Please tick (√) if this course is Industrial Training/ Clinical Placement/ Practicum using 50% of Effective Learning Time (ELT)
D108: Note:
D109: * Indicate the CLO based on the CLO's numbering in Item 8
D110: ** For ODL programme: Courses with mandatory practical requiremnets imposed by the programme standards or any related standards can be exempted from complying to the minimum 80% ODL delivery rule in the SLT.
B112: 11 | C112: Identify special requirement or resources to deliver the course (e.g., software, nursery, computer lab, simulation room etc) | K112: None
B114: 12 | C114: References (include required and further readings, and should be the most current) | K114: Brown, A., & Green, T. (2022). Digital learning and development: New directions in training. Routledge.
B116: 13 | C116: Other additional information (if applicable) | K116: Noe, R. A., Hollenbeck, J. R., Gerhart, B., & Wright, P. M. (2023). Employee training & development (8th ed.). McGraw-Hill Education.
C119: Note: Number of PLO indicated is purely for illustration purposes only and the number is subjected to the curriculum design.

Sheet MKT6243
B2: Back To FORM @ TEMPLATE
AI3: √
B5: 1 | C5: Course Name: | F5: E-Commerce | AI5: Semester
C6: Course Code: | F6: MKT6243 | AI6: 1
C7: Course Classification: | F7: Major (core) | AI7: 2
B8: 2 | C8: Synopsis: | F8: This course provides an overview of the principles and applications of e-commerce, including its origin, growth and enabling technologies. It also examines key e-commerce business models, strategies and contemporary issues faced by businesses in adapting to digital commerce environments and challenges. | AI8: 3
B9: =B8+1 -> 3 | C9: Name(s) of Academic Staff: | F9: 1 | G9: Mr. Chandra Kanthen A/L Jumbulingam
F10: 2 | AI10: Year Offered
F11: 3 | AI11: 1
B12: =B9+1 -> 4 | C12: Semester and Year offered: | F12: Year Offered | I12: 2 | J12: Semester | L12: 3 | M12: Remarks: | AI12: 2
B13: =B12+1 -> 5 | C13: Credit Value: | F13: =IF(X107 ="√",INT(X99/80),INT(X99/40)) -> 3 | AI13: 3
B14: 6 | C14: Pre-requisite/ co-requisite (if any): | F14: Nil | AI14: 4
AI15: 5
B16: 7 | C16: Course Learning Outcomes (CLO) | F16: CLO1 | H16: Examine the theories and application of the e-commerce within real-world scenarios (PLO1, C3) | AI16: 6
F17: CLO2 | H17: Demonstrate the fundamental e-commerce approaches within an e-marketing setting (PLO6, A3) | AI17: 7
F18: CLO3 | H18: Integrate the ethical and professional practice in facing the issues of e-commerce (PLO11, A4) | AI18: 8
AI20: Compulsory
AI21: Major (core)
AI22: Minor
AI23: Elective (core)
AI24: Elective (open/free)
B25: 8 | C25: Mapping of the Course Learning Outcomes to the Programme Learning Outcomes, Teaching Methods and Assessment Methods
D27: Course Learning Outcomes | F27: Programme Learning Outcomes (PLO) | R27: Teaching Methods | W27: Assessment Methods
F28: PLO 1 | G28: PLO 2 | H28: PLO 3 | I28: PLO 4 | J28: PLO 5 | K28: PLO 6 | L28: PLO 7 | M28: PLO 8 | N28: PLO 9 | O28: PLO 10 | P28: PLO 11
D29: =IF(ISBLANK(F16),"",F16) -> CLO1 | F29: √ | R29: Interactive Lecture, case study & problem-solving exercises. | W29: Final examination
D30: CLO2 | K30: √ | R30: Interactive Lecture, case study & problem-solving exercises. | W30: Project
D31: CLO3 | P31: √ | R31: Interactive Lecture, case study & problem-solving exercises. | W31: Report with presentation
AI36: Cognitive skills
D37: Mapping with MQF Cluster of Learning Outcomes | F37: C1 | K37: C3D | P37: C5 | AI37: Interpersonal skills
AI38: Communication Skills
AI39: Digital Skills
AI40: Numeracy Skills
D41: Indicate the primary causal link between the CLO and PLO by ticking '√' in the appropriate box. | AI41: Leadership, Autonomy and Responsibility
D42: C1 = Knowledge & Understanding, C2 = Cognitive Skills, C3A = Practical Skills, C3B = Interpersonal Skills, C3C = Communication Skills, C3D = Digital Skills, | AI42: Personal Skills
D43: C3E = Numeracy Skills, C3F = Leadership, Autonomy & Responsibility, C4A = Personal Skills, C4B = Entrepreneurial Skills, C5 = Ethics & Professionalism | AI43: Entrepreneurial Skills
AI44: Ethics and Professionalism
B45: 9 | C45: Transferable Skills (if applicable)
C46: (Skills learned in the course of study which can be useful and utilized in other settings) | I46: 1 | J46: Cognitive skills | AI46: C1
I47: 2 | J47: Leadership, Autonomy and Responsibility | AI47: C2
I48: 3 | J48: Ethics and Professionalism | AI48: C3A
I49: Open-ended response (if any) | AI49: C3B
I50: 4 | AI50: C3C
AI51: C3D
AB52: ` | AI52: C3E
B53: 10 | C53: Distribution of Student Learning Time (SLT) | AI53: C3F
C54: Note: This SLT calculation is designed for home grown programme only. | AI54: C4A
AI55: C4B
D56: Course Content Outline and Subtopics | K56: CLO* | M56: Learning and Teaching Activities** | X56: Total SLT | AI56: C5
M57: Face-to-Face (F2F) | U57: NF2F Independent Learning (Asynchronous)
M58: Physical | Q58: Online/ Technology-mediated (Synchronous)
M59: L | N59: T | O59: P | P59: O | Q59: L | R59: T | S59: P | T59: O
D60: 1 | E60: Introduction to E-commerce | K60: 1 | M60: 2 | N60: 1 | U60: 3
D61: 2 | E61: E-commerce Infrastructure | K61: 1 | M61: 2 | N61: 1 | U61: 3
D62: 3 | E62: Building an E-commerce Presence | K62: 1 | M62: 2 | N62: 1 | U62: 3
D63: 4 | E63: E-commerce Security and Payment Systems | K63: 2 | M63: 2 | N63: 1 | U63: 3
D64: 5 | E64: E-commerce Business Strategies | K64: 2 | M64: 2 | N64: 1 | U64: 3
D65: 6 | E65: E-commerce Marketing and Advertising Concepts | K65: 2 | M65: 2 | N65: 1 | U65: 3
D66: 7 | E66: Social, Mobile, and Local Marketing | K66: 2 | M66: 2 | N66: 1 | U66: 3
D67: 8 | E67: Ethics, Law, and E-commerce | K67: 3 | M67: 2 | N67: 1 | U67: 3
D68: 9 | E68: Online Media | K68: 3 | M68: 2 | N68: 1 | U68: 3
D69: 10 | E69: Online Communities | K69: 2 | M69: 2 | N69: 1 | U69: 3
D70: =D69+1 -> 11 | E70: E-commerce Retailing and Services | K70: 1 | M70: 2 | N70: 1 | V70: 3
D71: 12 | E71: B2B E-commerce | K71: 2 | M71: 2 | N71: 1 | V71: 3
D72: 13 | E72: E-commerce and Globalization | K72: 3 | M72: 2 | N72: 1 | V72: 3
D73: 14 | E73: Contemporary Development in E-commerce | K73: 1 | M73: 2 | N73: 1 | V73: 3
D74: 15
D75: 16
D76: 17
D77: 18
D78: 19
D79: 20
D80: SUB-TOTAL SLT: | X80: =SUM(M60:P79)+SUM(Q60:T79)+SUM(U60:W79) -> 84
D81: Continous Assessement | K81: % | M81: Face-to-Face (F2F) | U81: NF2F Independent Learning for Assessment (Asynchronous)
M82: Physical | Q82: Online/ Technology-mediated (Synchronous)
D83: 1 | E83: Assignment with Presentation | K83: 0.4 | M83: 3 | U83: 10
D84: 2 | E84: Mid Term Exam | K84: 0.3 | M84: 2 | U84: 8
D85: 3
D86: 4
D87: 5
D88: SUB-TOTAL SLT: | X88: =SUM(M83:W87) -> 23
D89: Final Assessement | K89: % | M89: Face-to-Face (F2F) | U89: NF2F Independent Learning for Assessment (Asynchronous)
M90: Physical | Q90: Online/ Technology-mediated (Synchronous)
D91: 1 | E91: Final Project | K91: 0.3 | M91: 3 | U91: 10
D92: 2
D93: 3
D94: 4
D95: 5
D96: SUB-TOTAL SLT: | X96: =SUM(M91:W95) -> 13
D98: SLT for Assessment: | X98: =X88+X96 -> 36
D99: GRAND TOTAL SLT: | X99: =X98+X80 -> 120
D100: A | E100: % SLT for F2F Physical Component: [Total F2F Physical /(Total F2F Physical + Total F2F Online + Total Independent Learning) x 100)] | X100: =IFERROR(((SUM(M60:P79)+SUM(M83:P87)+SUM(M91:P95))/X99)* 100,"") -> 41.66666667
D102: B | E102: % SLT for Online & Independent Learning Component: [(Total F2F Online + Total Independent Learning) /( Total F2F Physical + Total F2F Online + Total Independent Learning) x 100] | X102: =IFERROR((SUM(Q60:W79)+SUM(Q83:W87) + SUM(Q91:W95))/X99 * 100,"") -> 58.33333333
D103: C | E103: % SLT for All Practical Component: [% F2F Physical Practical + % F2F Online Practical] | X103: =IFERROR(X104+X105,"") -> 0
D104: C1 | E104: % SLT for F2F Physical Practical Component [Total F2F Physical Practical /( Total F2F Physical + Total F2F Online + Total Independent Learning) x 100)] | X104: =IFERROR(SUM(O60:O79)/X99*100,"") -> 0
D105: C2 | E105: % SLT for F2F Online Practical Component [Total F2F Online Practical / (Total F2F Physical + Total F2F Online + Total Independent Learning) x 100] | X105: =IFERROR(SUM(S60:S79)/X99*100,"") -> 0
Z106: =IFERROR(X102+X104,"") -> 58.33333333
D107: Please tick (√) if this course is Industrial Training/ Clinical Placement/ Practicum using 50% of Effective Learning Time (ELT)
D108: Note:
D109: * Indicate the CLO based on the CLO's numbering in Item 8
D110: ** For ODL programme: Courses with mandatory practical requiremnets imposed by the programme standards or any related standards can be exempted from complying to the minimum 80% ODL delivery rule in the SLT.
B112: 11 | C112: Identify special requirement or resources to deliver the course (e.g., software, nursery, computer lab, simulation room etc) | K112: None
B114: 12 | C114: References (include required and further readings, and should be the most current) | K114: Laudon, K. C., & Traver, C. G. (2023). E-commerce 2023: Business, technology, and society (17th ed.). Pearson.
B116: 13 | C116: Other additional information (if applicable) | K116: Morrison, S. (2022). E-commerce essentials. Cengage Learning.
C119: Note: Number of PLO indicated is purely for illustration purposes only and the number is subjected to the curriculum design.

Sheet MGT6253
B2: Back To FORM @ TEMPLATE
AI3: √
B5: 1 | C5: Course Name: | F5: Logistics and Supply Chain Management | AI5: Semester
C6: Course Code: | F6: MGT6253 | AI6: 1
C7: Course Classification: | F7: Major (core) | AI7: 2
B8: 2 | C8: Synopsis: | F8: This course provides a detailed overview of logistics management as a key component of supply chain management. It focuses on the planning, implementation and control of the efficient forward and reverse flow of goods, services and related information from origin to consumption to meet customer requirements effectively. | AI8: 3
B9: =B8+1 -> 3 | C9: Name(s) of Academic Staff: | F9: 1 | G9: Ms. Praveena Uthayakumar
F10: 2 | AI10: Year Offered
F11: 3 | AI11: 1
B12: =B9+1 -> 4 | C12: Semester and Year offered: | F12: Year Offered | I12: 2 | J12: Semester | L12: 3 | M12: Remarks: | AI12: 2
B13: =B12+1 -> 5 | C13: Credit Value: | F13: =IF(X107 ="√",INT(X99/80),INT(X99/40)) -> 3 | AI13: 3
B14: 6 | C14: Pre-requisite/ co-requisite (if any): | AI14: 4
AI15: 5
B16: 7 | C16: Course Learning Outcomes (CLO) | F16: CLO1 | H16: Comprehend the Logistics and Supply Chain Management in the modern organization. (C2, PLO1) | AI16: 6
F17: CLO2 | H17: Interpret the Logistics and Supply Chain Management issues in the modern organization. (A2, PLO3) | AI17: 7
F18: CLO3 | H18: Discuss the quality and materials concept in managing the organizational operation. (A3, PLO5) | AI18: 8
AI20: Compulsory
AI21: Major (core)
AI22: Minor
AI23: Elective (core)
AI24: Elective (open/free)
B25: 8 | C25: Mapping of the Course Learning Outcomes to the Programme Learning Outcomes, Teaching Methods and Assessment Methods
D27: Course Learning Outcomes | F27: Programme Learning Outcomes (PLO) | R27: Teaching Methods | W27: Assessment Methods
F28: PLO 1 | G28: PLO 2 | H28: PLO 3 | I28: PLO 4 | J28: PLO 5 | K28: PLO 6 | L28: PLO 7 | M28: PLO 8 | N28: PLO 9 | O28: PLO 10 | P28: PLO 11
D29: =IF(ISBLANK(F16),"",F16) -> CLO1 | F29: √ | W29: ASSIGNMENT
D30: CLO2 | G30: √ | R30: Interactive Lecture / Tutorial | W30: PROJECT
D31: CLO3 | J31: √ | R31: Interactive Lecture / Tutorial | W31: FINAL ASSESSMENT
AI36: Cognitive skills
D37: Mapping with MQF Cluster of Learning Outcomes | F37: C3A | G37: C3D | J37: C4A | AI37: Interpersonal skills
AI38: Communication Skills
AI39: Digital Skills
AI40: Numeracy Skills
D41: Indicate the primary causal link between the CLO and PLO by ticking '√' in the appropriate box. | AI41: Leadership, Autonomy and Responsibility
D42: C1 = Knowledge & Understanding, C2 = Cognitive Skills, C3A = Practical Skills, C3B = Interpersonal Skills, C3C = Communication Skills, C3D = Digital Skills, | AI42: Personal Skills
D43: C3E = Numeracy Skills, C3F = Leadership, Autonomy & Responsibility, C4A = Personal Skills, C4B = Entrepreneurial Skills, C5 = Ethics & Professionalism | AI43: Entrepreneurial Skills
AI44: Ethics and Professionalism
B45: 9 | C45: Transferable Skills (if applicable)
C46: (Skills learned in the course of study which can be useful and utilized in other settings) | I46: 1 | J46: Cognitive skills | AI46: C1
I47: 2 | J47: Interpersonal skills | AI47: C2
I48: 3 | J48: Leadership, Autonomy and Responsibility | AI48: C3A
I49: Open-ended response (if any) | AI49: C3B
I50: 4 | AI50: C3C
AI51: C3D
AB52: ` | AI52: C3E
